Workbook

Sheet Main
B10: 2018-02-01
B12: Sheet No. | C12: Template Name | D12: Summary
B13: 1 | C13: Future Intra | D13: For Intraday trading in F&O segment
B14: 2 | C14: Cash Intra | D14: For Intraday trading in cash market segment
B15: 3 | C15: Mid-cap Intra | D15: For Intraday trading in Mid-cap stocks
B16: 4 | C16: Bulk Deals | D16: Reveals Bulk Deals carried on NSE & BSE
B17: 5 | C17: Call Tracker

Sheet Future Intra
M5: Back to Main Page
A6: FOR INTRA DAY TRADING | L6: =Main!B10 -> 2018-02-01
A9: Sr.no | B9: Sector | C9: Scrip | D9: CLOSE RATE | E9: Pivot Point | F9: Supports | I9: Resistances
B10: Sector | D10: Point | E10: Point | F10: S1 | G10: S2 | H10: S3 | I10: R1 | J10: R2 | K10: R3 | L10: HIGH | M10: LOW | N10: OI | O10: % Change in OI
A11: 1 | B11: Index | C11: BANKNIFTY | D11: 27465.60 | E11: 27419.48 | F11: 27256.47 | G11: 27047.33 | H11: 26884.32 | I11: 27628.62 | J11: 27791.63 | K11: 28000.77 | L11: 27582.5 | M11: 27210.35 | N11: 2141280 | O11: -4.22%
A12: 2 | B12: Index | C12: NIFTY | D12: 11055.40 | E12: 11046.82 | F12: 11015.93 | G12: 10976.47 | H12: 10945.58 | I12: 11086.28 | J12: 11117.17 | K12: 11156.63 | L12: 11077.7 | M12: 11007.35 | N12: 25510050 | O12: -4.32%
A13: 3 | B13: Index | C13: NIFTYCPSE | D13: 2661.05 | E13: 887.02 | F13: 1774.03 | G13: 887.02 | H13: 1774.03 | I13: 1774.03 | J13: 887.02 | K13: 1774.03 | L13: 0 | M13: 0 | N13: 0 | O13: 0.00%
A14: 4 | B14: Index | C14: NIFTYINFRA | D14: 3569.30 | E14: 1189.77 | F14: 2379.53 | G14: 1189.77 | H14: 2379.53 | I14: 2379.53 | J14: 1189.77 | K14: 2379.53 | L14: 0 | M14: 0 | N14: 0 | O14: 0.00%
A15: 5 | B15: Index | C15: NIFTYIT | D15: 13043.00 | E15: 13071.33 | F15: 12972.67 | G15: 12902.33 | H15: 12803.67 | I15: 13141.67 | J15: 13240.33 | K15: 13310.67 | L15: 13170 | M15: 13001 | N15: 39050 | O15: 4.13%
A16: 6 | B16: Index | C16: NIFTYMID50 | D16: 5516.65 | E16: 5516.65 | F16: 5516.65 | G16: 5516.65 | H16: 5516.65 | I16: 5516.65 | J16: 5516.65 | K16: 5516.65 | L16: 5516.65 | M16: 5516.65 | N16: 523800 | O16: 0.00%
A17: 7 | B17: Index | C17: NIFTYPSE | D17: 4297.00 | E17: 1432.33 | F17: 2864.67 | G17: 1432.33 | H17: 2864.67 | I17: 2864.67 | J17: 1432.33 | K17: 2864.67 | L17: 0 | M17: 0 | N17: 0 | O17: 0.00%
A18: 8 | B18: Cement | C18: ACC | D18: 1717.85 | E18: 1721.78 | F18: 1701.07 | G18: 1684.28 | H18: 1663.57 | I18: 1738.57 | J18: 1759.28 | K18: 1776.07 | L18: 1742.5 | M18: 1705 | N18: 1343600 | O18: -0.50%
A19: 9 | B19: Others | C19: ADANIENT | D19: 213.70 | E19: 214.60 | F19: 209.65 | G19: 205.60 | H19: 200.65 | I19: 218.65 | J19: 223.60 | K19: 227.65 | L19: 219.55 | M19: 210.55 | N19: 16540000 | O19: -2.34%
A20: 10 | B20: Others | C20: ADANIPORTS | D20: 431.10 | E20: 431.82 | F20: 426.63 | G20: 422.17 | H20: 416.98 | I20: 436.28 | J20: 441.47 | K20: 445.93 | L20: 437 | M20: 427.35 | N20: 11220000 | O20: 0.13%
A21: 11 | B21: Power | C21: ADANIPOWER | D21: 36.85 | E21: 37.15 | F21: 35.85 | G21: 34.85 | H21: 33.55 | I21: 38.15 | J21: 39.45 | K21: 40.45 | L21: 38.45 | M21: 36.15 | N21: 112200000 | O21: -1.72%
A22: 12 | B22: Pharma | C22: AJANTPHARM | D22: 1454.25 | E22: 1450.13 | F22: 1436.32 | G22: 1418.38 | H22: 1404.57 | I22: 1468.07 | J22: 1481.88 | K22: 1499.82 | L22: 1463.95 | M22: 1432.2 | N22: 991500 | O22: 0.97%
A23: 13 | B23: Banking | C23: ALBK | D23: 67.00 | E23: 67.40 | F23: 66.05 | G23: 65.10 | H23: 63.75 | I23: 68.35 | J23: 69.70 | K23: 70.65 | L23: 68.75 | M23: 66.45 | N23: 19290000 | O23: 5.93%
A24: 14 | B24: Automobile | C24: AMARAJABAT | D24: 812.30 | E24: 811.68 | F24: 804.12 | G24: 795.93 | H24: 788.37 | I24: 819.87 | J24: 827.43 | K24: 835.62 | L24: 819.25 | M24: 803.5 | N24: 2035600 | O24: -2.51%
A25: 15 | B25: Cement | C25: AMBUJACEM | D25: 261.10 | E25: 260.80 | F25: 258.30 | G25: 255.50 | H25: 253.00 | I25: 263.60 | J25: 266.10 | K25: 268.90 | L25: 263.3 | M25: 258 | N25: 13082500 | O25: -0.23%
A26: 16 | B26: Banking | C26: ANDHRABANK | D26: 52.90 | E26: 52.95 | F26: 52.05 | G26: 51.20 | H26: 50.30 | I26: 53.80 | J26: 54.70 | K26: 55.55 | L26: 53.85 | M26: 52.1 | N26: 25430000 | O26: 2.79%
A27: 17 | B27: Others | C27: APOLLOHOSP | D27: 1167.10 | E27: 1159.85 | F27: 1147.20 | G27: 1127.30 | H27: 1114.65 | I27: 1179.75 | J27: 1192.40 | K27: 1212.30 | L27: 1172.5 | M27: 1139.95 | N27: 697000 | O27: 12.24%
A28: 18 | B28: Automobile | C28: APOLLOTYRE | D28: 255.90 | E28: 258.15 | F28: 251.80 | G28: 247.70 | H28: 241.35 | I28: 262.25 | J28: 268.60 | K28: 272.70 | L28: 264.5 | M28: 254.05 | N28: 10617000 | O28: -5.75%
A29: 19 | B29: Textile | C29: ARVIND | D29: 413.70 | E29: 417.43 | F29: 403.27 | G29: 392.83 | H29: 378.67 | I29: 427.87 | J29: 442.03 | K29: 452.47 | L29: 431.6 | M29: 407 | N29: 6660000 | O29: 15.79%
A30: 20 | B30: Automobile | C30: ASHOKLEY | D30: 126.30 | E30: 125.92 | F30: 125.18 | G30: 124.07 | H30: 123.33 | I30: 127.03 | J30: 127.77 | K30: 128.88 | L30: 126.65 | M30: 124.8 | N30: 58597000 | O30: -1.34%
A31: 21 | B31: FMCG | C31: ASIANPAINT | D31: 1134.85 | E31: 1136.75 | F31: 1128.55 | G31: 1122.25 | H31: 1114.05 | I31: 1143.05 | J31: 1151.25 | K31: 1157.55 | L31: 1144.95 | M31: 1130.45 | N31: 4111800 | O31: -2.68%
A32: 22 | B32: Pharma | C32: AUROPHARMA | D32: 629.05 | E32: 630.35 | F32: 623.85 | G32: 618.65 | H32: 612.15 | I32: 635.55 | J32: 642.05 | K32: 647.25 | L32: 636.85 | M32: 625.15 | N32: 24493600 | O32: -0.90%
A33: 23 | B33: Banking | C33: AXISBANK | D33: 596.75 | E33: 595.42 | F33: 591.63 | G33: 586.52 | H33: 582.73 | I33: 600.53 | J33: 604.32 | K33: 609.43 | L33: 599.2 | M33: 590.3 | N33: 47202000 | O33: 1.38%
A34: 24 | B34: Automobile | C34: BAJAJ-AUTO | D34: 3347.10 | E34: 3347.20 | F34: 3299.90 | G34: 3252.70 | H34: 3205.40 | I34: 3394.40 | J34: 3441.70 | K34: 3488.90 | L34: 3394.5 | M34: 3300 | N34: 2065250 | O34: -5.47%
A35: 25 | B35: Others | C35: BAJAJFINSV | D35: 4828.50 | E35: 4823.43 | F35: 4758.07 | G35: 4687.63 | H35: 4622.27 | I35: 4893.87 | J35: 4959.23 | K35: 5029.67 | L35: 4888.8 | M35: 4753 | N35: 842750 | O35: -0.38%
A36: 26 | B36: Finance | C36: BAJFINANCE | D36: 1684.05 | E36: 1677.47 | F36: 1658.28 | G36: 1632.52 | H36: 1613.33 | I36: 1703.23 | J36: 1722.42 | K36: 1748.18 | L36: 1696.65 | M36: 1651.7 | N36: 5985500 | O36: -1.87%
A37: 27 | B37: Others | C37: BALKRISIND | D37: 1144.75 | E37: 1148.30 | F37: 1113.70 | G37: 1082.65 | H37: 1048.05 | I37: 1179.35 | J37: 1213.95 | K37: 1245.00 | L37: 1182.9 | M37: 1117.25 | N37: 1269600 | O37: -3.58%
A38: 28 | B38: Others | C38: BALRAMCHIN | D38: 122.60 | E38: 122.82 | F38: 119.78 | G38: 116.97 | H38: 113.93 | I38: 125.63 | J38: 128.67 | K38: 131.48 | L38: 125.85 | M38: 120 | N38: 19474000 | O38: 4.96%
A39: 29 | B39: Banking | C39: BANKBARODA | D39: 157.65 | E39: 158.78 | F39: 155.07 | G39: 152.48 | H39: 148.77 | I39: 161.37 | J39: 165.08 | K39: 167.67 | L39: 162.5 | M39: 156.2 | N39: 55080000 | O39: 4.35%
A40: 30 | B40: Banking | C40: BANKINDIA | D40: 157.95 | E40: 159.12 | F40: 154.93 | G40: 151.92 | H40: 147.73 | I40: 162.13 | J40: 166.32 | K40: 169.33 | L40: 163.3 | M40: 156.1 | N40: 18702000 | O40: 8.27%
A41: 31 | B41: FMCG | C41: BATAINDIA | D41: 707.90 | E41: 710.70 | F41: 700.35 | G41: 692.80 | H41: 682.45 | I41: 718.25 | J41: 728.60 | K41: 736.15 | L41: 721.05 | M41: 703.15 | N41: 2400200 | O41: -0.59%
A42: 32 | B42: Capital_Goods | C42: BEL | D42: 168.25 | E42: 169.38 | F42: 165.87 | G42: 163.48 | H42: 159.97 | I42: 171.77 | J42: 175.28 | K42: 177.67 | L42: 172.9 | M42: 167 | N42: 27828900 | O42: -1.39%
A43: 33 | B43: Infrastructure | C43: BEML | D43: 1460.40 | E43: 1469.55 | F43: 1445.10 | G43: 1429.80 | H43: 1405.35 | I43: 1484.85 | J43: 1509.30 | K43: 1524.60 | L43: 1494 | M43: 1454.25 | N43: 2382900 | O43: 0.34%
A44: 34 | B44: Others | C44: BERGEPAINT | D44: 251.30 | E44: 250.38 | F44: 247.27 | G44: 243.23 | H44: 240.12 | I44: 254.42 | J44: 257.53 | K44: 261.57 | L44: 253.5 | M44: 246.35 | N44: 1425600 | O44: -2.99%
A45: 35 | B45: Finance | C45: BHARATFIN | D45: 1051.25 | E45: 1039.70 | F45: 1021.65 | G45: 992.05 | H45: 974.00 | I45: 1069.30 | J45: 1087.35 | K45: 1116.95 | L45: 1057.75 | M45: 1010.1 | N45: 7458000 | O45: -2.31%
A46: 36 | B46: Automobile | C46: BHARATFORG | D46: 720.10 | E46: 720.10 | F46: 714.50 | G46: 708.90 | H46: 703.30 | I46: 725.70 | J46: 731.30 | K46: 736.90 | L46: 725.7 | M46: 714.5 | N46: 6284400 | O46: -0.68%
A47: 37 | B47: Telecom | C47: BHARTIARTL | D47: 441.45 | E47: 441.93 | F47: 436.97 | G47: 432.48 | H47: 427.52 | I47: 446.42 | J47: 451.38 | K47: 455.87 | L47: 446.9 | M47: 437.45 | N47: 54527500 | O47: -2.34%
A48: 38 | B48: Capital_Goods | C48: BHEL | D48: 100.05 | E48: 100.80 | F48: 97.90 | G48: 95.75 | H48: 92.85 | I48: 102.95 | J48: 105.85 | K48: 108.00 | L48: 103.7 | M48: 98.65 | N48: 46515000 | O48: 2.84%
A49: 39 | B49: Pharma | C49: BIOCON | D49: 617.65 | E49: 619.97 | F49: 608.68 | G49: 599.72 | H49: 588.43 | I49: 628.93 | J49: 640.22 | K49: 649.18 | L49: 631.25 | M49: 611 | N49: 7840800 | O49: -2.90%
A50: 40 | B50: Automobile | C50: BOSCHLTD | D50: 19440.65 | E50: 19486.68 | F50: 19323.37 | G50: 19206.08 | H50: 19042.77 | I50: 19603.97 | J50: 19767.28 | K50: 19884.57 | L50: 19650 | M50: 19369.4 | N50: 136125 | O50: -0.95%
A51: 41 | B51: Oil_Gas | C51: BPCL | D51: 477.60 | E51: 478.30 | F51: 473.00 | G51: 468.40 | H51: 463.10 | I51: 482.90 | J51: 488.20 | K51: 492.80 | L51: 483.6 | M51: 473.7 | N51: 8913600 | O51: -5.51%
A52: 42 | B52: FMCG | C52: BRITANNIA | D52: 4690.95 | E52: 4690.98 | F52: 4651.97 | G52: 4612.98 | H52: 4573.97 | I52: 4729.97 | J52: 4768.98 | K52: 4807.97 | L52: 4730 | M52: 4652 | N52: 863600 | O52: -2.02%
A53: 43 | B53: Pharma | C53: CADILAHC | D53: 426.50 | E53: 426.60 | F53: 421.80 | G53: 417.10 | H53: 412.30 | I53: 431.30 | J53: 436.10 | K53: 440.80 | L53: 431.4 | M53: 421.9 | N53: 6488000 | O53: -1.82%
A54: 44 | B54: Banking | C54: CANBK | D54: 343.30 | E54: 345.50 | F54: 337.90 | G54: 332.50 | H54: 324.90 | I54: 350.90 | J54: 358.50 | K54: 363.90 | L54: 353.1 | M54: 340.1 | N54: 11921600 | O54: 2.03%
A55: 45 | B55: Others | C55: CANFINHOME | D55: 451.30 | E55: 450.68 | F55: 447.02 | G55: 442.73 | H55: 439.07 | I55: 454.97 | J55: 458.63 | K55: 462.92 | L55: 454.35 | M55: 446.4 | N55: 6308750 | O55: -0.36%
A56: 46 | B56: Finance | C56: CAPF | D56: 741.70 | E56: 743.30 | F56: 735.20 | G56: 728.70 | H56: 720.60 | I56: 749.80 | J56: 757.90 | K56: 764.40 | L56: 751.4 | M56: 736.8 | N56: 6779200 | O56: 0.36%
A57: 47 | B57: Oil_Gas | C57: CASTROLIND | D57: 184.40 | E57: 184.22 | F57: 180.98 | G57: 177.57 | H57: 174.33 | I57: 187.63 | J57: 190.87 | K57: 194.28 | L57: 187.45 | M57: 180.8 | N57: 19958400 | O57: -6.95%
A58: 48 | B58: Automobile | C58: CEATLTD | D58: 1829.55 | E58: 1838.78 | F58: 1807.02 | G58: 1784.48 | H58: 1752.72 | I58: 1861.32 | J58: 1893.08 | K58: 1915.62 | L58: 1870.55 | M58: 1816.25 | N58: 989100 | O58: 0.68%
A59: 49 | B59: Textile | C59: CENTURYTEX | D59: 1392.55 | E59: 1393.18 | F59: 1377.37 | G59: 1362.18 | H59: 1346.37 | I59: 1408.37 | J59: 1424.18 | K59: 1439.37 | L59: 1409 | M59: 1378 | N59: 7099400 | O59: -0.11%
A60: 50 | B60: Power | C60: CESC | D60: 1060.25 | E60: 1064.18 | F60: 1049.57 | G60: 1038.88 | H60: 1024.27 | I60: 1074.87 | J60: 1089.48 | K60: 1100.17 | L60: 1078.8 | M60: 1053.5 | N60: 6845850 | O60: 0.02%
A61: 51 | B61: Power | C61: CGPOWER | D61: 91.40 | E61: 91.50 | F61: 90.60 | G61: 89.80 | H61: 88.90 | I61: 92.30 | J61: 93.20 | K61: 94.00 | L61: 92.4 | M61: 90.7 | N61: 25260000 | O61: 0.86%
A62: 52 | B62: Others | C62: CHENNPETRO | D62: 416.05 | E62: 418.02 | F62: 412.03 | G62: 408.02 | H62: 402.03 | I62: 422.03 | J62: 428.02 | K62: 432.03 | L62: 424 | M62: 414 | N62: 3045000 | O62: 1.30%
A63: 53 | B63: Others | C63: CHOLAFIN | D63: 1284.90 | E63: 1294.80 | F63: 1265.15 | G63: 1245.40 | H63: 1215.75 | I63: 1314.55 | J63: 1344.20 | K63: 1363.95 | L63: 1324.45 | M63: 1275.05 | N63: 997000 | O63: -8.03%
A64: 54 | B64: Pharma | C64: CIPLA | D64: 593.60 | E64: 598.32 | F64: 585.18 | G64: 576.77 | H64: 563.63 | I64: 606.73 | J64: 619.87 | K64: 628.28 | L64: 611.45 | M64: 589.9 | N64: 8747000 | O64: 1.91%
A65: 55 | B65: Others | C65: COALINDIA | D65: 296.35 | E65: 295.97 | F65: 293.48 | G65: 290.62 | H65: 288.13 | I65: 298.83 | J65: 301.32 | K65: 304.18 | L65: 298.45 | M65: 293.1 | N65: 16456000 | O65: -2.62%
A66: 56 | B66: FMCG | C66: COLPAL | D66: 1125.90 | E66: 1129.33 | F66: 1116.57 | G66: 1107.23 | H66: 1094.47 | I66: 1138.67 | J66: 1151.43 | K66: 1160.77 | L66: 1142.1 | M66: 1120 | N66: 1040200 | O66: -1.39%
A67: 57 | B67: Others | C67: CONCOR | D67: 1387.30 | E67: 1380.53 | F67: 1369.77 | G67: 1352.23 | H67: 1341.47 | I67: 1398.07 | J67: 1408.83 | K67: 1426.37 | L67: 1391.3 | M67: 1363 | N67: 1041250 | O67: -2.23%
A68: 58 | B68: Capital_Goods | C68: CUMMINSIND | D68: 901.35 | E68: 906.53 | F68: 893.07 | G68: 884.78 | H68: 871.32 | I68: 914.82 | J68: 928.28 | K68: 936.57 | L68: 920 | M68: 898.25 | N68: 550200 | O68: 0.00%
A69: 59 | B69: FMCG | C69: DABUR | D69: 356.10 | E69: 355.10 | F69: 348.50 | G69: 340.90 | H69: 334.30 | I69: 362.70 | J69: 369.30 | K69: 376.90 | L69: 361.7 | M69: 347.5 | N69: 10907500 | O69: 5.62%
A70: 60 | B70: Cement | C70: DALMIABHA | D70: 2950.55 | E70: 2947.18 | F70: 2924.37 | G70: 2898.18 | H70: 2875.37 | I70: 2973.37 | J70: 2996.18 | K70: 3022.37 | L70: 2970 | M70: 2921 | N70: 556500 | O70: -0.38%
A71: 61 | B71: Banking | C71: DCBBANK | D71: 174.00 | E71: 175.70 | F71: 171.60 | G71: 169.20 | H71: 165.10 | I71: 178.10 | J71: 182.20 | K71: 184.60 | L71: 179.8 | M71: 173.3 | N71: 7317000 | O71: -2.17%
A72: 62 | B72: Finance | C72: DHFL | D72: 585.15 | E72: 587.72 | F72: 578.43 | G72: 571.72 | H72: 562.43 | I72: 594.43 | J72: 603.72 | K72: 610.43 | L72: 597 | M72: 581 | N72: 26848500 | O72: 1.53%
A73: 63 | B73: Media | C73: DISHTV | D73: 75.35 | E73: 75.60 | F73: 74.90 | G73: 74.45 | H73: 73.75 | I73: 76.05 | J73: 76.75 | K73: 77.20 | L73: 76.3 | M73: 75.15 | N73: 46431000 | O73: 1.25%
A74: 64 | B74: Pharma | C74: DIVISLAB | D74: 1040.60 | E74: 1043.85 | F74: 1008.30 | G74: 976.00 | H74: 940.45 | I74: 1076.15 | J74: 1111.70 | K74: 1144.00 | L74: 1079.4 | M74: 1011.55 | N74: 2281600 | O74: 12.68%
A75: 65 | B75: Realty | C75: DLF | D75: 251.45 | E75: 252.87 | F75: 246.88 | G75: 242.32 | H75: 236.33 | I75: 257.43 | J75: 263.42 | K75: 267.98 | L75: 258.85 | M75: 248.3 | N75: 46290000 | O75: 0.69%
A76: 66 | B76: Pharma | C76: DRREDDY | D76: 2236.90 | E76: 2252.97 | F76: 2192.43 | G76: 2147.97 | H76: 2087.43 | I76: 2297.43 | J76: 2357.97 | K76: 2402.43 | L76: 2313.5 | M76: 2208.5 | N76: 5514750 | O76: 3.65%
A77: 67 | B77: Automobile | C77: EICHERMOT | D77: 27037.30 | E77: 27043.40 | F77: 26601.80 | G77: 26166.30 | H77: 25724.70 | I77: 27478.90 | J77: 27920.50 | K77: 28356.00 | L77: 27485 | M77: 26607.9 | N77: 277225 | O77: -0.86%
A78: 68 | B78: Infrastructure | C78: ENGINERSIN | D78: 177.10 | E78: 175.85 | F78: 173.75 | G78: 170.40 | H78: 168.30 | I78: 179.20 | J78: 181.30 | K78: 184.65 | L78: 177.95 | M78: 172.5 | N78: 11599000 | O78: 0.52%
A79: 69 | B79: Finance | C79: EQUITAS | D79: 148.90 | E79: 149.18 | F79: 146.72 | G79: 144.53 | H79: 142.07 | I79: 151.37 | J79: 153.83 | K79: 156.02 | L79: 151.65 | M79: 147 | N79: 24800000 | O79: -2.20%
A80: 70 | B80: Automobile | C80: ESCORTS | D80: 816.60 | E80: 821.65 | F80: 797.00 | G80: 777.40 | H80: 752.75 | I80: 841.25 | J80: 865.90 | K80: 885.50 | L80: 846.3 | M80: 802.05 | N80: 2972200 | O80: 15.67%
A81: 71 | B81: Automobile | C81: EXIDEIND | D81: 224.20 | E81: 224.95 | F81: 220.85 | G81: 217.50 | H81: 213.40 | I81: 228.30 | J81: 232.40 | K81: 235.75 | L81: 229.05 | M81: 221.6 | N81: 15264000 | O81: 0.87%
A82: 72 | B82: Banking | C82: FEDERALBNK | D82: 100.80 | E82: 100.85 | F82: 99.35 | G82: 97.90 | H82: 96.40 | I82: 102.30 | J82: 103.80 | K82: 105.25 | L82: 102.35 | M82: 99.4 | N82: 76092500 | O82: -1.04%
A83: 73 | B83: Others | C83: FORTIS | D83: 139.65 | E83: 141.10 | F83: 134.05 | G83: 128.45 | H83: 121.40 | I83: 146.70 | J83: 153.75 | K83: 159.35 | L83: 148.15 | M83: 135.5 | N83: 60938500 | O83: 7.67%
A84: 74 | B84: Oil_Gas | C84: GAIL | D84: 477.15 | E84: 475.38 | F84: 471.17 | G84: 465.18 | H84: 460.97 | I84: 481.37 | J84: 485.58 | K84: 491.57 | L84: 479.6 | M84: 469.4 | N84: 11034000 | O84: -1.80%
A85: 75 | B85: Pharma | C85: GLENMARK | D85: 607.15 | E85: 608.25 | F85: 601.55 | G85: 595.95 | H85: 589.25 | I85: 613.85 | J85: 620.55 | K85: 626.15 | L85: 614.95 | M85: 602.65 | N85: 5643000 | O85: 0.71%
A86: 76 | B86: Infrastructure | C86: GMRINFRA | D86: 21.80 | E86: 21.97 | F86: 21.43 | G86: 21.07 | H86: 20.53 | I86: 22.33 | J86: 22.87 | K86: 23.23 | L86: 22.5 | M86: 21.6 | N86: 310005000 | O86: 0.45%
A87: 77 | B87: Others | C87: GODFRYPHLP | D87: 926.15 | E87: 933.22 | F87: 911.93 | G87: 897.72 | H87: 876.43 | I87: 947.43 | J87: 968.72 | K87: 982.93 | L87: 954.5 | M87: 919 | N87: 843500 | O87: -0.94%
A88: 78 | B88: FMCG | C88: GODREJCP | D88: 1058.15 | E88: 1059.72 | F88: 1046.43 | G88: 1034.72 | H88: 1021.43 | I88: 1071.43 | J88: 1084.72 | K88: 1096.43 | L88: 1073 | M88: 1048 | N88: 1652000 | O88: 3.41%
A89: 79 | B89: FMCG | C89: GODREJIND | D89: 609.50 | E89: 608.20 | F89: 600.40 | G89: 591.30 | H89: 583.50 | I89: 617.30 | J89: 625.10 | K89: 634.20 | L89: 616 | M89: 599.1 | N89: 1675500 | O89: 6.69%
A90: 80 | B90: Pharma | C90: GRANULES | D90: 132.65 | E90: 132.65 | F90: 131.20 | G90: 129.75 | H90: 128.30 | I90: 134.10 | J90: 135.55 | K90: 137.00 | L90: 134.1 | M90: 131.2 | N90: 15395000 | O90: -1.41%
A91: 81 | B91: Cement | C91: GRASIM | D91: 1164.15 | E91: 1161.22 | F91: 1150.43 | G91: 1136.72 | H91: 1125.93 | I91: 1174.93 | J91: 1185.72 | K91: 1199.43 | L91: 1172 | M91: 1147.5 | N91: 3189750 | O91: 0.09%
A92: 82 | B92: Others | C92: GSFC | D92: 145.50 | E92: 145.37 | F92: 142.83 | G92: 140.17 | H92: 137.63 | I92: 148.03 | J92: 150.57 | K92: 153.23 | L92: 147.9 | M92: 142.7 | N92: 22603500 | O92: 0.66%
A93: 83 | B93: Others | C93: HAVELLS | D93: 524.40 | E93: 527.20 | F93: 515.20 | G93: 506.00 | H93: 494.00 | I93: 536.40 | J93: 548.40 | K93: 557.60 | L93: 539.2 | M93: 518 | N93: 6052000 | O93: 51.98%
A94: 84 | B94: Others | C94: HCC | D94: 39.40 | E94: 39.45 | F94: 38.75 | G94: 38.10 | H94: 37.40 | I94: 40.10 | J94: 40.80 | K94: 41.45 | L94: 40.15 | M94: 38.8 | N94: 57510000 | O94: 0.00%
A95: 85 | B95: Technology | C95: HCLTECH | D95: 991.25 | E95: 999.18 | F95: 979.37 | G95: 967.48 | H95: 947.67 | I95: 1011.07 | J95: 1030.88 | K95: 1042.77 | L95: 1019 | M95: 987.3 | N95: 11137700 | O95: 1.01%
A96: 86 | B96: Finance | C96: HDFC | D96: 1965.60 | E96: 1954.48 | F96: 1939.17 | G96: 1912.73 | H96: 1897.42 | I96: 1980.92 | J96: 1996.23 | K96: 2022.67 | L96: 1969.8 | M96: 1928.05 | N96: 18515000 | O96: -1.91%
A97: 87 | B97: Banking | C97: HDFCBANK | D97: 2013.15 | E97: 2010.53 | F97: 1998.62 | G97: 1984.08 | H97: 1972.17 | I97: 2025.07 | J97: 2036.98 | K97: 2051.52 | L97: 2022.45 | M97: 1996 | N97: 20631500 | O97: -2.98%
A98: 88 | B98: Realty | C98: HDIL | D98: 58.15 | E98: 58.48 | F98: 57.17 | G98: 56.18 | H98: 54.87 | I98: 59.47 | J98: 60.78 | K98: 61.77 | L98: 59.8 | M98: 57.5 | N98: 39096000 | O98: 1.97%
A99: 89 | B99: Automobile | C99: HEROMOTOCO | D99: 3659.60 | E99: 3678.20 | F99: 3636.40 | G99: 3613.20 | H99: 3571.40 | I99: 3701.40 | J99: 3743.20 | K99: 3766.40 | L99: 3720 | M99: 3655 | N99: 1678200 | O99: 7.12%
A100: 90 | B100: Technology | C100: HEXAWARE | D100: 381.10 | E100: 381.07 | F100: 375.68 | G100: 370.27 | H100: 364.88 | I100: 386.48 | J100: 391.87 | K100: 397.28 | L100: 386.45 | M100: 375.65 | N100: 4344000 | O100: -1.09%
A101: 91 | B101: Metals | C101: HINDALCO | D101: 257.10 | E101: 257.98 | F101: 252.32 | G101: 247.53 | H101: 241.87 | I101: 262.77 | J101: 268.43 | K101: 273.22 | L101: 263.65 | M101: 253.2 | N101: 38647000 | O101: 1.24%
A102: 92 | B102: Oil_Gas | C102: HINDPETRO | D102: 388.00 | E102: 389.25 | F102: 381.30 | G102: 374.60 | H102: 366.65 | I102: 395.95 | J102: 403.90 | K102: 410.60 | L102: 397.2 | M102: 382.55 | N102: 25118100 | O102: -1.97%
A103: 93 | B103: FMCG | C103: HINDUNILVR | D103: 1374.10 | E103: 1382.15 | F103: 1361.95 | G103: 1349.80 | H103: 1329.60 | I103: 1394.30 | J103: 1414.50 | K103: 1426.65 | L103: 1402.35 | M103: 1370 | N103: 9101400 | O103: -1.49%
A104: 94 | B104: Metals | C104: HINDZINC | D104: 309.35 | E104: 309.45 | F104: 303.90 | G104: 298.45 | H104: 292.90 | I104: 314.90 | J104: 320.45 | K104: 325.90 | L104: 315 | M104: 304 | N104: 11619200 | O104: 8.00%
A105: 95 | B105: Finance | C105: IBULHSGFIN | D105: 1384.95 | E105: 1384.98 | F105: 1363.97 | G105: 1342.98 | H105: 1321.97 | I105: 1405.97 | J105: 1426.98 | K105: 1447.97 | L105: 1406 | M105: 1364 | N105: 15033600 | O105: -1.71%
A106: 96 | B106: Banking | C106: ICICIBANK | D106: 354.35 | E106: 351.62 | F106: 347.78 | G106: 341.22 | H106: 337.38 | I106: 358.18 | J106: 362.02 | K106: 368.58 | L106: 355.45 | M106: 345.05 | N106: 88877250 | O106: -3.26%
A107: 97 | B107: Others | C107: ICICIPRULI | D107: 408.40 | E107: 410.43 | F107: 403.72 | G107: 399.03 | H107: 392.32 | I107: 415.12 | J107: 421.83 | K107: 426.52 | L107: 417.15 | M107: 405.75 | N107: 4681300 | O107: 4.32%
A108: 98 | B108: Banking | C108: IDBI | D108: 60.60 | E108: 60.95 | F108: 59.70 | G108: 58.80 | H108: 57.55 | I108: 61.85 | J108: 63.10 | K108: 64.00 | L108: 62.2 | M108: 60.05 | N108: 30410000 | O108: 3.29%
A109: 99 | B109: Telecom | C109: IDEA | D109: 93.40 | E109: 94.17 | F109: 91.73 | G109: 90.07 | H109: 87.63 | I109: 95.83 | J109: 98.27 | K109: 99.93 | L109: 96.6 | M109: 92.5 | N109: 61600000 | O109: 1.57%
A110: 100 | B110: Finance | C110: IDFC | D110: 56.55 | E110: 56.60 | F110: 55.75 | G110: 54.95 | H110: 54.10 | I110: 57.40 | J110: 58.25 | K110: 59.05 | L110: 57.45 | M110: 55.8 | N110: 199887600 | O110: -1.46%
A111: 101 | B111: Banking | C111: IDFCBANK | D111: 56.95 | E111: 57.07 | F111: 56.38 | G111: 55.82 | H111: 55.13 | I111: 57.63 | J111: 58.32 | K111: 58.88 | L111: 57.75 | M111: 56.5 | N111: 179784000 | O111: -0.48%
A112: 102 | B112: Finance | C112: IFCI | D112: 28.65 | E112: 28.60 | F112: 28.05 | G112: 27.45 | H112: 26.90 | I112: 29.20 | J112: 29.75 | K112: 30.35 | L112: 29.15 | M112: 28 | N112: 78650000 | O112: 0.90%
A113: 103 | B113: Oil_Gas | C113: IGL | D113: 305.35 | E113: 306.25 | F113: 301.70 | G113: 298.05 | H113: 293.50 | I113: 309.90 | J113: 314.45 | K113: 318.10 | L113: 310.8 | M113: 302.6 | N113: 8159250 | O113: 4.25%
A114: 104 | B114: Cement | C114: INDIACEM | D114: 168.60 | E114: 168.92 | F114: 165.98 | G114: 163.37 | H114: 160.43 | I114: 171.53 | J114: 174.47 | K114: 177.08 | L114: 171.85 | M114: 166.3 | N114: 29806000 | O114: 1.39%
A115: 105 | B115: Banking | C115: INDIANB | D115: 363.60 | E115: 365.20 | F115: 356.40 | G115: 349.20 | H115: 340.40 | I115: 372.40 | J115: 381.20 | K115: 388.40 | L115: 374 | M115: 358 | N115: 4256000 | O115: 1.72%
A116: 106 | B116: Others | C116: INDIGO | D116: 1219.15 | E116: 1219.77 | F116: 1207.78 | G116: 1196.42 | H116: 1184.43 | I116: 1231.13 | J116: 1243.12 | K116: 1254.48 | L116: 1231.75 | M116: 1208.4 | N116: 2631000 | O116: -0.45%
A117: 107 | B117: Banking | C117: INDUSINDBK | D117: 1749.90 | E117: 1737.63 | F117: 1716.47 | G117: 1683.03 | H117: 1661.87 | I117: 1771.07 | J117: 1792.23 | K117: 1825.67 | L117: 1758.8 | M117: 1704.2 | N117: 6751500 | O117: -4.95%
A118: 108 | B118: Technology | C118: INFIBEAM | D118: 154.60 | E118: 155.23 | F118: 152.62 | G118: 150.63 | H118: 148.02 | I118: 157.22 | J118: 159.83 | K118: 161.82 | L118: 157.85 | M118: 153.25 | N118: 34892000 | O118: 0.01%
A119: 109 | B119: Telecom | C119: INFRATEL | D119: 352.60 | E119: 349.97 | F119: 345.63 | G119: 338.67 | H119: 334.33 | I119: 356.93 | J119: 361.27 | K119: 368.23 | L119: 354.3 | M119: 343 | N119: 10545100 | O119: -1.27%
A120: 110 | B120: Technology | C120: INFY | D120: 1156.60 | E120: 1158.58 | F120: 1146.17 | G120: 1135.73 | H120: 1123.32 | I120: 1169.02 | J120: 1181.43 | K120: 1191.87 | L120: 1171 | M120: 1148.15 | N120: 35582400 | O120: 1.36%
A121: 111 | B121: Oil_Gas | C121: IOC | D121: 396.85 | E121: 398.43 | F121: 392.47 | G121: 388.08 | H121: 382.12 | I121: 402.82 | J121: 408.78 | K121: 413.17 | L121: 404.4 | M121: 394.05 | N121: 18394500 | O121: 6.11%
A122: 112 | B122: Infrastructure | C122: IRB | D122: 240.80 | E122: 239.78 | F122: 233.57 | G122: 226.33 | H122: 220.12 | I122: 247.02 | J122: 253.23 | K122: 260.47 | L122: 246 | M122: 232.55 | N122: 16342500 | O122: 1.46%
A123: 113 | B123: FMCG | C123: ITC | D123: 272.70 | E123: 273.78 | F123: 270.07 | G123: 267.43 | H123: 263.72 | I123: 276.42 | J123: 280.13 | K123: 282.77 | L123: 277.5 | M123: 271.15 | N123: 91128000 | O123: 0.92%
A124: 114 | B124: Others | C124: JETAIRWAYS | D124: 758.15 | E124: 763.52 | F124: 748.43 | G124: 738.72 | H124: 723.63 | I124: 773.23 | J124: 788.32 | K124: 798.03 | L124: 778.6 | M124: 753.8 | N124: 5314800 | O124: -0.56%
A125: 115 | B125: Metals | C125: JINDALSTEL | D125: 267.90 | E125: 269.63 | F125: 263.62 | G125: 259.33 | H125: 253.32 | I125: 273.92 | J125: 279.93 | K125: 284.22 | L125: 275.65 | M125: 265.35 | N125: 29452500 | O125: 2.70%
A126: 116 | B126: Others | C126: JISLJALEQS | D126: 140.50 | E126: 140.98 | F126: 136.47 | G126: 132.43 | H126: 127.92 | I126: 145.02 | J126: 149.53 | K126: 153.57 | L126: 145.5 | M126: 136.95 | N126: 54900000 | O126: 6.09%
A127: 117 | B127: Realty | C127: JPASSOCIAT | D127: 20.40 | E127: 20.47 | F127: 19.93 | G127: 19.47 | H127: 18.93 | I127: 20.93 | J127: 21.47 | K127: 21.93 | L127: 21 | M127: 20 | N127: 234056000 | O127: -0.95%
A128: 118 | B128: Metals | C128: JSWSTEEL | D128: 292.25 | E128: 289.97 | F128: 284.48 | G128: 276.72 | H128: 271.23 | I128: 297.73 | J128: 303.22 | K128: 310.98 | L128: 295.45 | M128: 282.2 | N128: 49428000 | O128: 3.48%
A129: 119 | B129: Others | C129: JUBLFOOD | D129: 2053.10 | E129: 2082.70 | F129: 2005.60 | G129: 1958.10 | H129: 1881.00 | I129: 2130.20 | J129: 2207.30 | K129: 2254.80 | L129: 2159.8 | M129: 2035.2 | N129: 2481000 | O129: -5.32%
A130: 120 | B130: Others | C130: JUSTDIAL | D130: 518.80 | E130: 519.88 | F130: 508.42 | G130: 498.03 | H130: 486.57 | I130: 530.27 | J130: 541.73 | K130: 552.12 | L130: 531.35 | M130: 509.5 | N130: 3291400 | O130: -2.45%
A131: 121 | B131: Others | C131: KAJARIACER | D131: 635.00 | E131: 647.03 | F131: 616.02 | G131: 597.03 | H131: 566.02 | I131: 666.02 | J131: 697.03 | K131: 716.02 | L131: 678.05 | M131: 628.05 | N131: 1516800 | O131: 13.26%
A132: 122 | B132: Banking | C132: KOTAKBANK | D132: 1112.75 | E132: 1107.75 | F132: 1097.50 | G132: 1082.25 | H132: 1072.00 | I132: 1123.00 | J132: 1133.25 | K132: 1148.50 | L132: 1118 | M132: 1092.5 | N132: 11522400 | O132: -3.56%
A133: 123 | B133: Technology | C133: KPIT | D133: 213.00 | E133: 214.75 | F133: 208.35 | G133: 203.70 | H133: 197.30 | I133: 219.40 | J133: 225.80 | K133: 230.45 | L133: 221.15 | M133: 210.1 | N133: 15291000 | O133: -3.00%
A134: 124 | B134: Others | C134: KSCL | D134: 516.95 | E134: 506.18 | F134: 493.67 | G134: 470.38 | H134: 457.87 | I134: 529.47 | J134: 541.98 | K134: 565.27 | L134: 518.7 | M134: 482.9 | N134: 3945000 | O134: -4.61%
A135: 125 | B135: Banking | C135: KTKBANK | D135: 147.95 | E135: 148.15 | F135: 145.70 | G135: 143.45 | H135: 141.00 | I135: 150.40 | J135: 152.85 | K135: 155.10 | L135: 150.6 | M135: 145.9 | N135: 25486600 | O135: -1.43%
A136: 126 | B136: Finance | C136: L&TFH | D136: 173.25 | E136: 174.28 | F136: 169.97 | G136: 166.68 | H136: 162.37 | I136: 177.57 | J136: 181.88 | K136: 185.17 | L136: 178.6 | M136: 171 | N136: 48177000 | O136: 0.96%
A137: 127 | B137: Finance | C137: LICHSGFIN | D137: 537.35 | E137: 537.32 | F137: 531.63 | G137: 525.92 | H137: 520.23 | I137: 543.03 | J137: 548.72 | K137: 554.43 | L137: 543 | M137: 531.6 | N137: 17965200 | O137: 0.09%
A138: 128 | B138: Capital_Goods | C138: LT | D138: 1424.45 | E138: 1427.05 | F138: 1414.10 | G138: 1403.75 | H138: 1390.80 | I138: 1437.40 | J138: 1450.35 | K138: 1460.70 | L138: 1440 | M138: 1416.7 | N138: 13512750 | O138: -2.22%
A139: 129 | B139: Pharma | C139: LUPIN | D139: 886.95 | E139: 890.42 | F139: 874.63 | G139: 862.32 | H139: 846.53 | I139: 902.73 | J139: 918.52 | K139: 930.83 | L139: 906.2 | M139: 878.1 | N139: 12743400 | O139: 3.45%
A140: 130 | B140: Automobile | C140: M&M | D140: 766.30 | E140: 766.43 | F140: 759.97 | G140: 753.63 | H140: 747.17 | I140: 772.77 | J140: 779.23 | K140: 785.57 | L140: 772.9 | M140: 760.1 | N140: 12433000 | O140: -1.33%
A141: 131 | B141: Finance | C141: M&MFIN | D141: 464.00 | E141: 463.50 | F141: 449.15 | G141: 434.30 | H141: 419.95 | I141: 478.35 | J141: 492.70 | K141: 507.55 | L141: 477.85 | M141: 448.65 | N141: 7555000 | O141: 17.79%
A142: 132 | B142: Others | C142: MANAPPURAM | D142: 110.90 | E142: 111.78 | F142: 108.37 | G142: 105.83 | H142: 102.42 | I142: 114.32 | J142: 117.73 | K142: 120.27 | L142: 115.2 | M142: 109.25 | N142: 32766000 | O142: 1.07%
A143: 133 | B143: FMCG | C143: MARICO | D143: 307.45 | E143: 309.50 | F143: 304.50 | G143: 301.55 | H143: 296.55 | I143: 312.45 | J143: 317.45 | K143: 320.40 | L143: 314.5 | M143: 306.55 | N143: 4838600 | O143: -0.69%
A144: 134 | B144: Automobile | C144: MARUTI | D144: 9548.95 | E144: 9558.40 | F144: 9499.00 | G144: 9449.05 | H144: 9389.65 | I144: 9608.35 | J144: 9667.75 | K144: 9717.70 | L144: 9617.8 | M144: 9508.45 | N144: 2420775 | O144: -1.57%
A145: 135 | B145: FMCG | C145: MCDOWELL-N | D145: 3290.80 | E145: 3285.78 | F145: 3245.52 | G145: 3200.23 | H145: 3159.97 | I145: 3331.07 | J145: 3371.33 | K145: 3416.62 | L145: 3326.05 | M145: 3240.5 | N145: 2566250 | O145: -3.30%
A146: 136 | B146: Others | C146: MCX | D146: 778.70 | E146: 781.35 | F146: 771.10 | G146: 763.50 | H146: 753.25 | I146: 788.95 | J146: 799.20 | K146: 806.80 | L146: 791.6 | M146: 773.75 | N146: 4244000 | O146: -0.31%
A147: 137 | B147: Finance | C147: MFSL | D147: 534.55 | E147: 534.05 | F147: 529.10 | G147: 523.65 | H147: 518.70 | I147: 539.50 | J147: 544.45 | K147: 549.90 | L147: 539 | M147: 528.6 | N147: 2851000 | O147: -2.93%
A148: 138 | B148: Others | C148: MGL | D148: 1012.15 | E148: 1006.13 | F148: 995.32 | G148: 978.48 | H148: 967.67 | I148: 1022.97 | J148: 1033.78 | K148: 1050.62 | L148: 1016.95 | M148: 989.3 | N148: 1409400 | O148: -2.49%
A149: 139 | B149: Technology | C149: MINDTREE | D149: 770.20 | E149: 771.37 | F149: 762.83 | G149: 755.47 | H149: 746.93 | I149: 778.73 | J149: 787.27 | K149: 794.63 | L149: 779.9 | M149: 764 | N149: 1893600 | O149: -7.07%
A150: 140 | B150: Automobile | C150: MOTHERSUMI | D150: 367.20 | E150: 365.87 | F150: 362.93 | G150: 358.67 | H150: 355.73 | I150: 370.13 | J150: 373.07 | K150: 377.33 | L150: 368.8 | M150: 361.6 | N150: 10646400 | O150: -1.13%
A151: 141 | B151: Automobile | C151: MRF | D151: 68232.90 | E151: 68200.97 | F151: 67401.93 | G151: 66570.97 | H151: 65771.93 | I151: 69031.93 | J151: 69830.97 | K151: 70661.93 | L151: 69000 | M151: 67370 | N151: 61230 | O151: -2.02%
A152: 142 | B152: Others | C152: MRPL | D152: 129.00 | E152: 128.57 | F152: 126.83 | G152: 124.67 | H152: 122.93 | I152: 130.73 | J152: 132.47 | K152: 134.63 | L152: 130.3 | M152: 126.4 | N152: 8932500 | O152: -3.78%
A153: 143 | B153: Finance | C153: MUTHOOTFIN | D153: 417.15 | E153: 416.62 | F153: 410.53 | G153: 403.92 | H153: 397.83 | I153: 423.23 | J153: 429.32 | K153: 435.93 | L153: 422.7 | M153: 410 | N153: 2950500 | O153: -3.15%
A154: 144 | B154: Others | C154: NATIONALUM | D154: 73.30 | E154: 74.10 | F154: 71.60 | G154: 69.90 | H154: 67.40 | I154: 75.80 | J154: 78.30 | K154: 80.00 | L154: 76.6 | M154: 72.4 | N154: 53392000 | O154: 4.09%
A155: 145 | B155: Others | C155: NBCC | D155: 226.60 | E155: 226.75 | F155: 222.90 | G155: 219.20 | H155: 215.35 | I155: 230.45 | J155: 234.30 | K155: 238.00 | L155: 230.6 | M155: 223.05 | N155: 14277000 | O155: 3.89%
A156: 146 | B156: Infrastructure | C156: NCC | D156: 123.25 | E156: 124.07 | F156: 120.83 | G156: 118.42 | H156: 115.18 | I156: 126.48 | J156: 129.72 | K156: 132.13 | L156: 127.3 | M156: 121.65 | N156: 30208000 | O156: 4.42%
A157: 147 | B157: Others | C157: NESTLEIND | D157: 7503.45 | E157: 7492.67 | F157: 7440.73 | G157: 7378.02 | H157: 7326.08 | I157: 7555.38 | J157: 7607.32 | K157: 7670.03 | L157: 7544.6 | M157: 7429.95 | N157: 144300 | O157: 2.49%
A158: 148 | B158: Power | C158: NHPC | D158: 28.40 | E158: 28.53 | F158: 28.17 | G158: 27.93 | H158: 27.57 | I158: 28.77 | J158: 29.13 | K158: 29.37 | L158: 28.9 | M158: 28.3 | N158: 55917000 | O158: 0.98%
A159: 149 | B159: Technology | C159: NIITTECH | D159: 860.85 | E159: 862.28 | F159: 850.67 | G159: 840.48 | H159: 828.87 | I159: 872.47 | J159: 884.08 | K159: 894.27 | L159: 873.9 | M159: 852.1 | N159: 1558500 | O159: -10.89%
A160: 150 | B160: Metals | C160: NMDC | D160: 139.10 | E160: 140.30 | F160: 136.10 | G160: 133.10 | H160: 128.90 | I160: 143.30 | J160: 147.50 | K160: 150.50 | L160: 144.5 | M160: 137.3 | N160: 45990000 | O160: 2.16%
A161: 151 | B161: Power | C161: NTPC | D161: 168.40 | E161: 168.02 | F161: 167.18 | G161: 165.97 | H161: 165.13 | I161: 169.23 | J161: 170.07 | K161: 171.28 | L161: 168.85 | M161: 166.8 | N161: 25640000 | O161: 0.44%
A162: 152 | B162: Technology | C162: OFSS | D162: 4189.90 | E162: 4162.28 | F162: 4119.62 | G162: 4049.33 | H162: 4006.67 | I162: 4232.57 | J162: 4275.23 | K162: 4345.52 | L162: 4204.95 | M162: 4092 | N162: 128850 | O162: -3.16%
A163: 153 | B163: Oil_Gas | C163: OIL | D163: 351.50 | E163: 353.23 | F163: 349.27 | G163: 347.03 | H163: 343.07 | I163: 355.47 | J163: 359.43 | K163: 361.67 | L163: 357.2 | M163: 351 | N163: 2780382 | O163: 0.00%
A164: 154 | B164: Oil_Gas | C164: ONGC | D164: 202.20 | E164: 202.05 | F164: 198.85 | G164: 195.50 | H164: 192.30 | I164: 205.40 | J164: 208.60 | K164: 211.95 | L164: 205.25 | M164: 198.7 | N164: 43601250 | O164: 9.81%
A165: 155 | B165: Banking | C165: ORIENTBANK | D165: 115.60 | E165: 115.07 | F165: 113.33 | G165: 111.07 | H165: 109.33 | I165: 117.33 | J165: 119.07 | K165: 121.33 | L165: 116.8 | M165: 112.8 | N165: 18624000 | O165: -0.86%
A166: 156 | B166: Textile | C166: PAGEIND | D166: 21599.70 | E166: 21604.73 | F166: 21310.47 | G166: 21021.23 | H166: 20726.97 | I166: 21893.97 | J166: 22188.23 | K166: 22477.47 | L166: 21899 | M166: 21315.5 | N166: 40650 | O166: 3.30%
A167: 157 | B167: Others | C167: PCJEWELLER | D167: 488.55 | E167: 496.08 | F167: 472.17 | G167: 455.78 | H167: 431.87 | I167: 512.47 | J167: 536.38 | K167: 552.77 | L167: 520 | M167: 479.7 | N167: 17880000 | O167: 7.19%
A168: 158 | B168: Pharma | C168: PEL | D168: 2744.10 | E168: 2747.00 | F168: 2703.00 | G168: 2661.90 | H168: 2617.90 | I168: 2788.10 | J168: 2832.10 | K168: 2873.20 | L168: 2791 | M168: 2705.9 | N168: 1494598 | O168: -2.28%
A169: 159 | B169: Oil_Gas | C169: PETRONET | D169: 252.75 | E169: 253.12 | F169: 248.23 | G169: 243.72 | H169: 238.83 | I169: 257.63 | J169: 262.52 | K169: 267.03 | L169: 258 | M169: 248.6 | N169: 16053000 | O169: -3.01%
A170: 160 | B170: Finance | C170: PFC | D170: 116.20 | E170: 116.30 | F170: 114.30 | G170: 112.40 | H170: 110.40 | I170: 118.20 | J170: 120.20 | K170: 122.10 | L170: 118.3 | M170: 114.4 | N170: 64374000 | O170: -0.43%
A171: 161 | B171: FMCG | C171: PIDILITIND | D171: 897.80 | E171: 895.33 | F171: 889.47 | G171: 881.13 | H171: 875.27 | I171: 903.67 | J171: 909.53 | K171: 917.87 | L171: 901.2 | M171: 887 | N171: 1470000 | O171: -5.47%
A172: 162 | B172: Banking | C172: PNB | D172: 172.20 | E172: 172.48 | F172: 168.97 | G172: 165.73 | H172: 162.22 | I172: 175.72 | J172: 179.23 | K172: 182.47 | L172: 176 | M172: 169.25 | N172: 41844000 | O172: 3.90%
A173: 163 | B173: Power | C173: POWERGRID | D173: 193.10 | E173: 193.03 | F173: 191.62 | G173: 190.13 | H173: 188.72 | I173: 194.52 | J173: 195.93 | K173: 197.42 | L173: 194.45 | M173: 191.55 | N173: 26568000 | O173: -2.97%
A174: 164 | B174: Power | C174: PTC | D174: 105.80 | E174: 106.12 | F174: 104.38 | G174: 102.97 | H174: 101.23 | I174: 107.53 | J174: 109.27 | K174: 110.68 | L174: 107.85 | M174: 104.7 | N174: 21464000 | O174: 0.30%
A175: 165 | B175: Others | C175: PVR | D175: 1467.90 | E175: 1455.12 | F175: 1427.93 | G175: 1387.97 | H175: 1360.78 | I175: 1495.08 | J175: 1522.27 | K175: 1562.23 | L175: 1482.3 | M175: 1415.15 | N175: 495200 | O175: 4.03%
A176: 166 | B176: Cement | C176: RAMCOCEM | D176: 763.40 | E176: 765.93 | F176: 754.62 | G176: 745.83 | H176: 734.52 | I176: 774.72 | J176: 786.03 | K176: 794.82 | L176: 777.25 | M176: 757.15 | N176: 397600 | O176: -2.55%
A177: 167 | B177: Others | C177: RAYMOND | D177: 1056.30 | E177: 1062.43 | F177: 1041.07 | G177: 1025.83 | H177: 1004.47 | I177: 1077.67 | J177: 1099.03 | K177: 1114.27 | L177: 1083.8 | M177: 1047.2 | N177: 5165600 | O177: 4.03%
A178: 168 | B178: Banking | C178: RBLBANK | D178: 506.10 | E178: 504.73 | F178: 502.12 | G178: 498.13 | H178: 495.52 | I178: 508.72 | J178: 511.33 | K178: 515.32 | L178: 507.35 | M178: 500.75 | N178: 6119000 | O178: -1.34%
A179: 169 | B179: Telecom | C179: RCOM | D179: 29.65 | E179: 29.92 | F179: 28.73 | G179: 27.82 | H179: 26.63 | I179: 30.83 | J179: 32.02 | K179: 32.93 | L179: 31.1 | M179: 29 | N179: 92764000 | O179: 0.21%
A180: 170 | B180: Capital_Goods | C180: RNAVAL | D180: 46.30 | E180: 46.88 | F180: 44.87 | G180: 43.43 | H180: 41.42 | I180: 48.32 | J180: 50.33 | K180: 51.77 | L180: 48.9 | M180: 45.45 | N180: 36513000 | O180: 3.36%
A181: 171 | B181: Power | C181: RECLTD | D181: 149.65 | E181: 149.85 | F181: 147.10 | G181: 144.55 | H181: 141.80 | I181: 152.40 | J181: 155.15 | K181: 157.70 | L181: 152.6 | M181: 147.3 | N181: 45102000 | O181: 2.40%
A182: 172 | B182: Finance | C182: RELCAPITAL | D182: 490.70 | E182: 496.13 | F182: 478.87 | G182: 467.03 | H182: 449.77 | I182: 507.97 | J182: 525.23 | K182: 537.07 | L182: 513.4 | M182: 484.3 | N182: 13646250 | O182: 0.90%
A183: 173 | B183: Oil_Gas | C183: RELIANCE | D183: 966.40 | E183: 960.15 | F183: 951.50 | G183: 936.60 | H183: 927.95 | I183: 975.05 | J183: 983.70 | K183: 998.60 | L183: 968.8 | M183: 945.25 | N183: 41773000 | O183: -2.31%
A184: 174 | B184: Power | C184: RELINFRA | D184: 499.20 | E184: 502.60 | F184: 490.25 | G184: 481.30 | H184: 468.95 | I184: 511.55 | J184: 523.90 | K184: 532.85 | L184: 514.95 | M184: 493.65 | N184: 12162800 | O184: -1.88%
A185: 175 | B185: Others | C185: REPCOHOME | D185: 627.50 | E185: 630.93 | F185: 621.67 | G185: 615.83 | H185: 606.57 | I185: 636.77 | J185: 646.03 | K185: 651.87 | L185: 640.2 | M185: 625.1 | N185: 884700 | O185: 1.98%
A186: 176 | B186: Power | C186: RPOWER | D186: 46.00 | E186: 46.42 | F186: 44.88 | G186: 43.77 | H186: 42.23 | I186: 47.53 | J186: 49.07 | K186: 50.18 | L186: 47.95 | M186: 45.3 | N186: 66898000 | O186: 5.24%
A187: 177 | B187: Metals | C187: SAIL | D187: 89.35 | E187: 89.68 | F187: 87.67 | G187: 85.98 | H187: 83.97 | I187: 91.37 | J187: 93.38 | K187: 95.07 | L187: 91.7 | M187: 88 | N187: 72972000 | O187: 4.27%
A188: 178 | B188: Banking | C188: SBIN | D188: 314.10 | E188: 313.52 | F188: 309.38 | G188: 304.67 | H188: 300.53 | I188: 318.23 | J188: 322.37 | K188: 327.08 | L188: 317.65 | M188: 308.8 | N188: 63039000 | O188: -3.43%
A189: 179 | B189: Cement | C189: SHREECEM | D189: 17304.35 | E189: 17369.02 | F189: 17140.03 | G189: 16975.72 | H189: 16746.73 | I189: 17533.33 | J189: 17762.32 | K189: 17926.63 | L189: 17598 | M189: 17204.7 | N189: 67650 | O189: 3.13%
A190: 180 | B190: Capital_Goods | C190: SIEMENS | D190: 1302.40 | E190: 1305.73 | F190: 1276.67 | G190: 1250.93 | H190: 1221.87 | I190: 1331.47 | J190: 1360.53 | K190: 1386.27 | L190: 1334.8 | M190: 1280 | N190: 793000 | O190: 0.76%
A191: 181 | B191: Banking | C191: SOUTHBANK | D191: 30.30 | E191: 30.35 | F191: 29.95 | G191: 29.60 | H191: 29.20 | I191: 30.70 | J191: 31.10 | K191: 31.45 | L191: 30.75 | M191: 30 | N191: 181612680 | O191: 1.71%
A192: 182 | B192: Others | C192: SREINFRA | D192: 96.00 | E192: 96.22 | F192: 94.73 | G192: 93.47 | H192: 91.98 | I192: 97.48 | J192: 98.97 | K192: 100.23 | L192: 97.7 | M192: 94.95 | N192: 19835000 | O192: -0.28%
A193: 183 | B193: Textile | C193: SRF | D193: 1790.25 | E193: 1798.13 | F193: 1767.42 | G193: 1744.58 | H193: 1713.87 | I193: 1820.97 | J193: 1851.68 | K193: 1874.52 | L193: 1828.85 | M193: 1775.3 | N193: 676000 | O193: -1.31%
A194: 184 | B194: Finance | C194: SRTRANSFIN | D194: 1383.95 | E194: 1383.98 | F194: 1359.97 | G194: 1335.98 | H194: 1311.97 | I194: 1407.97 | J194: 1431.98 | K194: 1455.97 | L194: 1408 | M194: 1360 | N194: 1961400 | O194: -0.91%
A195: 185 | B195: Pharma | C195: STAR | D195: 767.65 | E195: 772.12 | F195: 756.53 | G195: 745.42 | H195: 729.83 | I195: 783.23 | J195: 798.82 | K195: 809.93 | L195: 787.7 | M195: 761 | N195: 4773000 | O195: 2.80%
A196: 186 | B196: Pharma | C196: SUNPHARMA | D196: 581.05 | E196: 584.85 | F196: 572.80 | G196: 564.55 | H196: 552.50 | I196: 593.10 | J196: 605.15 | K196: 613.40 | L196: 596.9 | M196: 576.6 | N196: 52143300 | O196: 0.21%
A197: 187 | B197: Media | C197: SUNTV | D197: 1022.60 | E197: 1024.57 | F197: 1016.13 | G197: 1009.67 | H197: 1001.23 | I197: 1031.03 | J197: 1039.47 | K197: 1045.93 | L197: 1033 | M197: 1018.1 | N197: 4398000 | O197: -1.24%
A198: 188 | B198: Power | C198: SUZLON | D198: 14.70 | E198: 14.72 | F198: 14.58 | G198: 14.47 | H198: 14.33 | I198: 14.83 | J198: 14.97 | K198: 15.08 | L198: 14.85 | M198: 14.6 | N198: 411705000 | O198: 0.27%
A199: 189 | B199: Banking | C199: SYNDIBANK | D199: 72.80 | E199: 72.92 | F199: 71.93 | G199: 71.07 | H199: 70.08 | I199: 73.78 | J199: 74.77 | K199: 75.63 | L199: 73.9 | M199: 72.05 | N199: 30105000 | O199: -0.48%
A200: 190 | B200: Fertilisers | C200: TATACHEM | D200: 721.70 | E200: 718.58 | F200: 712.32 | G200: 702.93 | H200: 696.67 | I200: 727.97 | J200: 734.23 | K200: 743.62 | L200: 724.85 | M200: 709.2 | N200: 8584500 | O200: -1.68%
A201: 191 | B201: Telecom | C201: TATACOMM | D201: 619.20 | E201: 620.77 | F201: 613.88 | G201: 608.57 | H201: 601.68 | I201: 626.08 | J201: 632.97 | K201: 638.28 | L201: 627.65 | M201: 615.45 | N201: 8607200 | O201: 1.63%
A202: 192 | B202: Technology | C202: TATAELXSI | D202: 1064.60 | E202: 1069.73 | F202: 1046.47 | G202: 1028.33 | H202: 1005.07 | I202: 1087.87 | J202: 1111.13 | K202: 1129.27 | L202: 1093 | M202: 1051.6 | N202: 1793600 | O202: -0.62%
A203: 193 | B203: FMCG | C203: TATAGLOBAL | D203: 292.30 | E203: 294.75 | F203: 284.20 | G203: 276.10 | H203: 265.55 | I203: 302.85 | J203: 313.40 | K203: 321.50 | L203: 305.3 | M203: 286.65 | N203: 30901500 | O203: 1.25%
A204: 194 | B204: Automobile | C204: TATAMOTORS | D204: 400.55 | E204: 400.03 | F204: 397.77 | G204: 394.98 | H204: 392.72 | I204: 402.82 | J204: 405.08 | K204: 407.87 | L204: 402.3 | M204: 397.25 | N204: 59091000 | O204: -0.62%
A205: 195 | B205: Automobile | C205: TATAMTRDVR | D205: 225.55 | E205: 225.45 | F205: 224.00 | G205: 222.45 | H205: 221.00 | I205: 227.00 | J205: 228.45 | K205: 230.00 | L205: 226.9 | M205: 223.9 | N205: 27332500 | O205: 0.41%
A206: 196 | B206: Power | C206: TATAPOWER | D206: 89.55 | E206: 90.03 | F206: 88.67 | G206: 87.78 | H206: 86.42 | I206: 90.92 | J206: 92.28 | K206: 93.17 | L206: 91.4 | M206: 89.15 | N206: 70263000 | O206: 1.26%
... 37 more rows

Sheet Cash Intra
M5: Back to Main Page
A6: FOR INTRA DAY TRADING | K6: =Main!B10 -> 2018-02-01
A8: Sr.no | B8: Scrip | C8: CLOSE RATE | D8: Pivot Point | E8: Supports | H8: Resistances
C9: Point | E9: S1 | F9: S2 | G9: S3 | H9: R1 | I9: R2 | J9: R3 | K9: HIGH | L9: LOW | M9: Total Trade Quanity in Lakhs
A10: 1 | B10: Nifty 50 | C10: 11027.7 | D10: 11021.83 | E10: 10985.17 | F10: 10942.63 | G10: 10905.97 | H10: 11064.37 | I10: 11101.03 | J10: 11143.57 | K10: 11058.5 | L10: 10979.3
A11: 2 | B11: Nifty Bank | C11: 27379.45 | D11: 27317.38 | E11: 27179.02 | F11: 26978.58 | G11: 26840.22 | H11: 27517.82 | I11: 27656.18 | J11: 27856.62 | K11: 27455.75 | L11: 27116.95
A12: 3 | B12: Nifty CPSE | C12: 2760.35 | D12: 2758.93 | E12: 2740.32 | F12: 2720.28 | G12: 2701.67 | H12: 2778.97 | I12: 2797.58 | J12: 2817.62 | K12: 2777.55 | L12: 2738.9
A13: 4 | B13: Nifty Infra | C13: 3619.5 | D13: 3625.17 | E13: 3599.58 | F13: 3579.67 | G13: 3554.08 | H13: 3645.08 | I13: 3670.67 | J13: 3690.58 | K13: 3650.75 | L13: 3605.25
A14: 5 | B14: Nifty IT | C14: 12986.4 | D14: 13024.20 | E14: 12905.55 | F14: 12824.70 | G14: 12706.05 | H14: 13105.05 | I14: 13223.70 | J14: 13304.55 | K14: 13142.85 | L14: 12943.35
A15: 6 | B15: Nifty PSE | C15: 4288.75 | D15: 4286.90 | E15: 4260.40 | F15: 4232.05 | G15: 4205.55 | H15: 4315.25 | I15: 4341.75 | J15: 4370.10 | K15: 4313.4 | L15: 4258.55
A16: 7 | B16: Nifty Midcap 50 | C16: 5353.95 | D16: 5361.63 | E16: 5303.02 | F16: 5252.08 | G16: 5193.47 | H16: 5412.57 | I16: 5471.18 | J16: 5522.12 | K16: 5420.25 | L16: 5310.7
A17: 8 | B17: ABB | C17: 1653.2 | D17: 1634.58 | E17: 1604.17 | F17: 1555.13 | G17: 1524.72 | H17: 1683.62 | I17: 1714.03 | J17: 1763.07 | K17: 1665 | L17: 1585.55 | M17: 1.25376
A18: 9 | B18: ABFRL | C18: 163.05 | D18: 161.82 | E18: 159.63 | F18: 156.22 | G18: 154.03 | H18: 165.23 | I18: 167.42 | J18: 170.83 | K18: 164 | L18: 158.4 | M18: 6.36498
A19: 10 | B19: ACC | C19: 1715.25 | D19: 1717.73 | E19: 1697.57 | F19: 1679.88 | G19: 1659.72 | H19: 1735.42 | I19: 1755.58 | J19: 1773.27 | K19: 1737.9 | L19: 1700.05 | M19: 3.35683
A20: 11 | B20: ADANIENT | C20: 213.2 | D20: 213.70 | E20: 208.65 | F20: 204.10 | G20: 199.05 | H20: 218.25 | I20: 223.30 | J20: 227.85 | K20: 218.75 | L20: 209.15 | M20: 77.32419
A21: 12 | B21: ADANIPORTS | C21: 428.85 | D21: 429.62 | E21: 423.73 | F21: 418.62 | G21: 412.73 | H21: 434.73 | I21: 440.62 | J21: 445.73 | K21: 435.5 | L21: 424.5 | M21: 27.34628
A22: 13 | B22: ADANIPOWER | C22: 36.65 | D22: 37.00 | E22: 35.75 | F22: 34.85 | G22: 33.60 | H22: 37.90 | I22: 39.15 | J22: 40.05 | K22: 38.25 | L22: 36.1 | M22: 109.59615
A23: 14 | B23: AIAENG | C23: 1535.85 | D23: 1543.62 | E23: 1517.23 | F23: 1498.62 | G23: 1472.23 | H23: 1562.23 | I23: 1588.62 | J23: 1607.23 | K23: 1570 | L23: 1525 | M23: 0.27039
A24: 15 | B24: AJANTPHARM | C24: 1451.55 | D24: 1445.82 | E24: 1430.83 | F24: 1410.12 | G24: 1395.13 | H24: 1466.53 | I24: 1481.52 | J24: 1502.23 | K24: 1460.8 | L24: 1425.1 | M24: 1.82964
A25: 16 | B25: ALKEM | C25: 2198.75 | D25: 2205.57 | E25: 2181.18 | F25: 2163.62 | G25: 2139.23 | H25: 2223.13 | I25: 2247.52 | J25: 2265.08 | K25: 2229.95 | L25: 2188 | M25: 0.18474
A26: 17 | B26: AMARAJABAT | C26: 810.1 | D26: 810.73 | E26: 801.47 | F26: 792.83 | G26: 783.57 | H26: 819.37 | I26: 828.63 | J26: 837.27 | K26: 820 | L26: 802.1 | M26: 2.97406
A27: 18 | B27: AMBUJACEM | C27: 261.8 | D27: 260.75 | E27: 258.20 | F27: 254.60 | G27: 252.05 | H27: 264.35 | I27: 266.90 | J27: 270.50 | K27: 263.3 | L27: 257.15 | M27: 27.08846
A28: 19 | B28: APLLTD | C28: 567.1 | D28: 562.50 | E28: 548.10 | F28: 529.10 | G28: 514.70 | H28: 581.50 | I28: 595.90 | J28: 614.90 | K28: 576.9 | L28: 543.5 | M28: 4.88735
A29: 20 | B29: APOLLOHOSP | C29: 1162.8 | D29: 1157.22 | E29: 1140.58 | F29: 1118.37 | G29: 1101.73 | H29: 1179.43 | I29: 1196.07 | J29: 1218.28 | K29: 1173.85 | L29: 1135 | M29: 4.95268
A30: 21 | B30: APOLLOTYRE | C30: 254.85 | D30: 257.38 | E30: 251.02 | F30: 247.18 | G30: 240.82 | H30: 261.22 | I30: 267.58 | J30: 271.42 | K30: 263.75 | L30: 253.55 | M30: 35.31429
A31: 22 | B31: ARVIND | C31: 413.35 | D31: 416.27 | E31: 402.68 | F31: 392.02 | G31: 378.43 | H31: 426.93 | I31: 440.52 | J31: 451.18 | K31: 429.85 | L31: 405.6 | M31: 30.1918
A32: 23 | B32: ASHOKLEY | C32: 126.1 | D32: 125.68 | E32: 124.82 | F32: 123.53 | G32: 122.67 | H32: 126.97 | I32: 127.83 | J32: 129.12 | K32: 126.55 | L32: 124.4 | M32: 100.40333
A33: 24 | B33: ASIANPAINT | C33: 1128.3 | D33: 1130.70 | E33: 1121.60 | F33: 1114.90 | G33: 1105.80 | H33: 1137.40 | I33: 1146.50 | J33: 1153.20 | K33: 1139.8 | L33: 1124 | M33: 9.61596
A34: 25 | B34: AUROPHARMA | C34: 629.55 | D34: 629.42 | E34: 623.33 | F34: 617.12 | G34: 611.03 | H34: 635.63 | I34: 641.72 | J34: 647.93 | K34: 635.5 | L34: 623.2 | M34: 18.77445
A35: 26 | B35: AXISBANK | C35: 593.6 | D35: 592.25 | E35: 588.50 | F35: 583.40 | G35: 579.65 | H35: 597.35 | I35: 601.10 | J35: 606.20 | K35: 596 | L35: 587.15 | M35: 71.0806
A36: 27 | B36: BAJAJ-AUTO | C36: 3337.15 | D36: 3326.37 | E36: 3266.93 | F36: 3196.72 | G36: 3137.28 | H36: 3396.58 | I36: 3456.02 | J36: 3526.23 | K36: 3385.8 | L36: 3256.15 | M36: 2.75934
A37: 28 | B37: BAJAJFINSV | C37: 4812.35 | D37: 4804.08 | E37: 4744.72 | F37: 4677.08 | G37: 4617.72 | H37: 4871.72 | I37: 4931.08 | J37: 4998.72 | K37: 4863.45 | L37: 4736.45 | M37: 2.20161
A38: 29 | B38: BAJFINANCE | C38: 1677.85 | D38: 1670.95 | E38: 1651.90 | F38: 1625.95 | G38: 1606.90 | H38: 1696.90 | I38: 1715.95 | J38: 1741.90 | K38: 1690 | L38: 1645 | M38: 13.32225
A39: 30 | B39: BANKBARODA | C39: 156.8 | D39: 158.03 | E39: 154.27 | F39: 151.73 | G39: 147.97 | H39: 160.57 | I39: 164.33 | J39: 166.87 | K39: 161.8 | L39: 155.5 | M39: 134.2076
A40: 31 | B40: BANKINDIA | C40: 157.2 | D40: 158.47 | E40: 154.23 | F40: 151.27 | G40: 147.03 | H40: 161.43 | I40: 165.67 | J40: 168.63 | K40: 162.7 | L40: 155.5 | M40: 45.10152
A41: 32 | B41: BATAINDIA | C41: 705.95 | D41: 707.75 | E41: 698.30 | F41: 690.65 | G41: 681.20 | H41: 715.40 | I41: 724.85 | J41: 732.50 | K41: 717.2 | L41: 700.1 | M41: 2.91368
A42: 33 | B42: BEL | C42: 169.35 | D42: 169.62 | E42: 167.23 | F42: 165.12 | G42: 162.73 | H42: 171.73 | I42: 174.12 | J42: 176.23 | K42: 172 | L42: 167.5 | M42: 144.11761
A43: 34 | B43: BERGEPAINT | C43: 250.35 | D43: 249.47 | E43: 245.88 | F43: 241.42 | G43: 237.83 | H43: 253.93 | I43: 257.52 | J43: 261.98 | K43: 253.05 | L43: 245 | M43: 4.78844
A44: 35 | B44: BHARATFIN | C44: 1051.65 | D44: 1041.42 | E44: 1024.23 | F44: 996.82 | G44: 979.63 | H44: 1068.83 | I44: 1086.02 | J44: 1113.43 | K44: 1058.6 | L44: 1014 | M44: 14.58271
A45: 36 | B45: BHARATFORG | C45: 717.1 | D45: 717.45 | E45: 710.00 | F45: 702.90 | G45: 695.45 | H45: 724.55 | I45: 732.00 | J45: 739.10 | K45: 724.9 | L45: 710.35 | M45: 8.69666
A46: 37 | B46: BHARTIARTL | C46: 439.85 | D46: 440.75 | E46: 435.50 | F46: 431.15 | G46: 425.90 | H46: 445.10 | I46: 450.35 | J46: 454.70 | K46: 446 | L46: 436.4 | M46: 63.7132
A47: 38 | B47: BHEL | C47: 100.2 | D47: 100.97 | E47: 98.33 | F47: 96.47 | G47: 93.83 | H47: 102.83 | I47: 105.47 | J47: 107.33 | K47: 103.6 | L47: 99.1 | M47: 125.59349
A48: 39 | B48: BIOCON | C48: 614.9 | D48: 618.32 | E48: 605.63 | F48: 596.37 | G48: 583.68 | H48: 627.58 | I48: 640.27 | J48: 649.53 | K48: 631 | L48: 609.05 | M48: 26.22093
A49: 40 | B49: BOSCHLTD | C49: 19400.25 | D49: 19452.10 | E49: 19239.25 | F49: 19078.25 | G49: 18865.40 | H49: 19613.10 | I49: 19825.95 | J49: 19986.95 | K49: 19664.95 | L49: 19291.1 | M49: 0.3459
A50: 41 | B50: BPCL | C50: 492.3 | D50: 489.75 | E50: 485.90 | F50: 479.50 | G50: 475.65 | H50: 496.15 | I50: 500.00 | J50: 506.40 | K50: 493.6 | L50: 483.35 | M50: 61.11327
A51: 42 | B51: BRITANNIA | C51: 4684.15 | D51: 4681.25 | E51: 4650.10 | F51: 4616.05 | G51: 4584.90 | H51: 4715.30 | I51: 4746.45 | J51: 4780.50 | K51: 4712.4 | L51: 4647.2 | M51: 0.71887
A52: 43 | B52: CADILAHC | C52: 425.8 | D52: 425.50 | E52: 420.60 | F52: 415.40 | G52: 410.50 | H52: 430.70 | I52: 435.60 | J52: 440.80 | K52: 430.4 | L52: 420.3 | M52: 12.40632
A53: 44 | B53: CANBK | C53: 341.35 | D53: 344.07 | E53: 336.13 | F53: 330.92 | G53: 322.98 | H53: 349.28 | I53: 357.22 | J53: 362.43 | K53: 352 | L53: 338.85 | M53: 25.26706
A54: 45 | B54: CASTROLIND | C54: 185.4 | D54: 184.85 | E54: 182.55 | F54: 179.70 | G54: 177.40 | H54: 187.70 | I54: 190.00 | J54: 192.85 | K54: 187.15 | L54: 182 | M54: 29.4977
A55: 46 | B55: CENTRALBK | C55: 73.05 | D55: 73.10 | E55: 72.45 | F55: 71.85 | G55: 71.20 | H55: 73.70 | I55: 74.35 | J55: 74.95 | K55: 73.75 | L55: 72.5 | M55: 1.97162
A56: 47 | B56: CENTURYTEX | C56: 1388.25 | D56: 1390.02 | E56: 1374.83 | F56: 1361.42 | G56: 1346.23 | H56: 1403.43 | I56: 1418.62 | J56: 1432.03 | K56: 1405.2 | L56: 1376.6 | M56: 4.2805
A57: 48 | B57: CESC | C57: 1054.75 | D57: 1059.70 | E57: 1045.05 | F57: 1035.35 | G57: 1020.70 | H57: 1069.40 | I57: 1084.05 | J57: 1093.75 | K57: 1074.35 | L57: 1050 | M57: 2.60836
A58: 49 | B58: CHOLAFIN | C58: 1286.05 | D58: 1295.67 | E58: 1266.43 | F58: 1246.82 | G58: 1217.58 | H58: 1315.28 | I58: 1344.52 | J58: 1364.13 | K58: 1324.9 | L58: 1276.05 | M58: 4.03468
A59: 50 | B59: CIPLA | C59: 592.15 | D59: 596.88 | E59: 585.27 | F59: 578.38 | G59: 566.77 | H59: 603.77 | I59: 615.38 | J59: 622.27 | K59: 608.5 | L59: 590 | M59: 12.64055
A60: 51 | B60: COALINDIA | C60: 299.55 | D60: 300.70 | E60: 296.85 | F60: 294.15 | G60: 290.30 | H60: 303.40 | I60: 307.25 | J60: 309.95 | K60: 304.55 | L60: 298 | M60: 51.98298
A61: 52 | B61: COLPAL | C61: 1121.35 | D61: 1126.67 | E61: 1111.33 | F61: 1101.32 | G61: 1085.98 | H61: 1136.68 | I61: 1152.02 | J61: 1162.03 | K61: 1142 | L61: 1116.65 | M61: 0.8692
A62: 53 | B62: CONCOR | C62: 1390.3 | D62: 1382.78 | E62: 1370.57 | F62: 1350.83 | G62: 1338.62 | H62: 1402.52 | I62: 1414.73 | J62: 1434.47 | K62: 1395 | L62: 1363.05 | M62: 3.12099
A63: 54 | B63: COROMANDEL | C63: 554.6 | D63: 545.98 | E63: 530.97 | F63: 507.33 | G63: 492.32 | H63: 569.62 | I63: 584.63 | J63: 608.27 | K63: 561 | L63: 522.35 | M63: 2.91288
A64: 55 | B64: CRISIL | C64: 1938.55 | D64: 1936.92 | E64: 1924.38 | F64: 1910.22 | G64: 1897.68 | H64: 1951.08 | I64: 1963.62 | J64: 1977.78 | K64: 1949.45 | L64: 1922.75 | M64: 0.07538
A65: 56 | B65: CROMPTON | C65: 249.15 | D65: 244.48 | E65: 236.97 | F65: 224.78 | G65: 217.27 | H65: 256.67 | I65: 264.18 | J65: 276.37 | K65: 252 | L65: 232.3 | M65: 13.63969
A66: 57 | B66: CUMMINSIND | C66: 903.9 | D66: 909.45 | E66: 894.50 | F66: 885.10 | G66: 870.15 | H66: 918.85 | I66: 933.80 | J66: 943.20 | K66: 924.4 | L66: 900.05 | M66: 2.12326
A67: 58 | B67: DABUR | C67: 355.6 | D67: 354.35 | E67: 347.90 | F67: 340.20 | G67: 333.75 | H67: 362.05 | I67: 368.50 | J67: 376.20 | K67: 360.8 | L67: 346.65 | M67: 43.61853
A68: 59 | B68: DALMIABHA | C68: 2935.25 | D68: 2937.10 | E68: 2912.15 | F68: 2889.05 | G68: 2864.10 | H68: 2960.20 | I68: 2985.15 | J68: 3008.25 | K68: 2962.05 | L68: 2914 | M68: 1.73458
A69: 60 | B69: DHFL | C69: 582.2 | D69: 584.77 | E69: 575.53 | F69: 568.87 | G69: 559.63 | H69: 591.43 | I69: 600.67 | J69: 607.33 | K69: 594 | L69: 578.1 | M69: 20.34304
A70: 61 | B70: DISHTV | C70: 75.2 | D70: 75.25 | E70: 74.60 | F70: 74.00 | G70: 73.35 | H70: 75.85 | I70: 76.50 | J70: 77.10 | K70: 75.9 | L70: 74.65 | M70: 33.97963
A71: 62 | B71: DIVISLAB | C71: 1039.4 | D71: 1042.77 | E71: 1005.63 | F71: 971.87 | G71: 934.73 | H71: 1076.53 | I71: 1113.67 | J71: 1147.43 | K71: 1079.9 | L71: 1009 | M71: 9.60918
A72: 63 | B72: DLF | C72: 250.1 | D72: 251.75 | E72: 245.90 | F72: 241.70 | G72: 235.85 | H72: 255.95 | I72: 261.80 | J72: 266.00 | K72: 257.6 | L72: 247.55 | M72: 63.09912
A73: 64 | B73: DRREDDY | C73: 2225.35 | D73: 2245.02 | E73: 2183.88 | F73: 2142.42 | G73: 2081.28 | H73: 2286.48 | I73: 2347.62 | J73: 2389.08 | K73: 2306.15 | L73: 2203.55 | M73: 11.43907
A74: 65 | B74: EDELWEISS | C74: 280.7 | D74: 283.23 | E74: 276.47 | F74: 272.23 | G74: 265.47 | H74: 287.47 | I74: 294.23 | J74: 298.47 | K74: 290 | L74: 279 | M74: 36.71514
A75: 66 | B75: EICHERMOT | C75: 26923.6 | D75: 26945.25 | E75: 26503.50 | F75: 26083.40 | G75: 25641.65 | H75: 27365.35 | I75: 27807.10 | J75: 28227.20 | K75: 27387 | L75: 26525.15 | M75: 1.37766
A76: 67 | B76: EMAMILTD | C76: 1124.75 | D76: 1125.32 | E76: 1105.73 | F76: 1086.72 | G76: 1067.13 | H76: 1144.33 | I76: 1163.92 | J76: 1182.93 | K76: 1144.9 | L76: 1106.3 | M76: 5.5766
A77: 68 | B77: ENDURANCE | C77: 1194.85 | D77: 1184.60 | E77: 1161.30 | F77: 1127.75 | G77: 1104.45 | H77: 1218.15 | I77: 1241.45 | J77: 1275.00 | K77: 1207.9 | L77: 1151.05 | M77: 1.22159
A78: 69 | B78: ENGINERSIN | C78: 177.5 | D78: 176.13 | E78: 173.27 | F78: 169.03 | G78: 166.17 | H78: 180.37 | I78: 183.23 | J78: 187.47 | K78: 179 | L78: 171.9 | M78: 41.22602
A79: 70 | B79: EXIDEIND | C79: 223.35 | D79: 223.87 | E79: 219.68 | F79: 216.02 | G79: 211.83 | H79: 227.53 | I79: 231.72 | J79: 235.38 | K79: 228.05 | L79: 220.2 | M79: 20.45295
A80: 71 | B80: FEDERALBNK | C80: 100.45 | D80: 100.42 | E80: 98.93 | F80: 97.42 | G80: 95.93 | H80: 101.93 | I80: 103.42 | J80: 104.93 | K80: 101.9 | L80: 98.9 | M80: 103.62003
A81: 72 | B81: FORTIS | C81: 139.05 | D81: 140.57 | E81: 133.63 | F81: 128.22 | G81: 121.28 | H81: 145.98 | I81: 152.92 | J81: 158.33 | K81: 147.5 | L81: 135.15 | M81: 189.45343
A82: 73 | B82: GAIL | C82: 478.6 | D82: 477.93 | E82: 472.17 | F82: 465.73 | G82: 459.97 | H82: 484.37 | I82: 490.13 | J82: 496.57 | K82: 483.7 | L82: 471.5 | M82: 24.7012
A83: 74 | B83: GLAXO | C83: 2460.6 | D83: 2455.38 | E83: 2442.22 | F83: 2423.83 | G83: 2410.67 | H83: 2473.77 | I83: 2486.93 | J83: 2505.32 | K83: 2468.55 | L83: 2437 | M83: 0.10599
A84: 75 | B84: GLENMARK | C84: 606.2 | D84: 607.40 | E84: 600.05 | F84: 593.90 | G84: 586.55 | H84: 613.55 | I84: 620.90 | J84: 627.05 | K84: 614.75 | L84: 601.25 | M84: 6.67577
A85: 76 | B85: GMRINFRA | C85: 21.75 | D85: 21.93 | E85: 21.37 | F85: 20.98 | G85: 20.42 | H85: 22.32 | I85: 22.88 | J85: 23.27 | K85: 22.5 | L85: 21.55 | M85: 406.44926
A86: 77 | B86: GODREJCP | C86: 1053.4 | D86: 1056.15 | E86: 1040.35 | F86: 1027.30 | G86: 1011.50 | H86: 1069.20 | I86: 1085.00 | J86: 1098.05 | K86: 1071.95 | L86: 1043.1 | M86: 23.53345
A87: 78 | B87: GODREJIND | C87: 607.5 | D87: 605.65 | E87: 598.30 | F87: 589.10 | G87: 581.75 | H87: 614.85 | I87: 622.20 | J87: 631.40 | K87: 613 | L87: 596.45 | M87: 5.92098
A88: 79 | B88: GPPL | C88: 144.1 | D88: 143.40 | E88: 141.00 | F88: 137.90 | G88: 135.50 | H88: 146.50 | I88: 148.90 | J88: 152.00 | K88: 145.8 | L88: 140.3 | M88: 2.35724
A89: 80 | B89: GRASIM | C89: 1160.05 | D89: 1156.92 | E89: 1145.88 | F89: 1131.72 | G89: 1120.68 | H89: 1171.08 | I89: 1182.12 | J89: 1196.28 | K89: 1167.95 | L89: 1142.75 | M89: 4.82212
A90: 81 | B90: GRUH | C90: 584.85 | D90: 581.33 | E90: 569.47 | F90: 554.08 | G90: 542.22 | H90: 596.72 | I90: 608.58 | J90: 623.97 | K90: 593.2 | L90: 565.95 | M90: 6.41058
A91: 82 | B91: GSKCONS | C91: 6642.65 | D91: 6686.22 | E91: 6432.43 | F91: 6222.22 | G91: 5968.43 | H91: 6896.43 | I91: 7150.22 | J91: 7360.43 | K91: 6940 | L91: 6476 | M91: 0.19756
A92: 83 | B92: GSPL | C92: 202.85 | D92: 202.93 | E92: 201.02 | F92: 199.18 | G92: 197.27 | H92: 204.77 | I92: 206.68 | J92: 208.52 | K92: 204.85 | L92: 201.1 | M92: 3.28545
A93: 84 | B93: HAVELLS | C93: 522.35 | D93: 526.82 | E93: 513.63 | F93: 504.92 | G93: 491.73 | H93: 535.53 | I93: 548.72 | J93: 557.43 | K93: 540 | L93: 518.1 | M93: 72.90911
A94: 85 | B94: HCLTECH | C94: 986.55 | D94: 995.38 | E94: 972.87 | F94: 959.18 | G94: 936.67 | H94: 1009.07 | I94: 1031.58 | J94: 1045.27 | K94: 1017.9 | L94: 981.7 | M94: 16.10572
A95: 86 | B95: HDFC | C95: 1956.3 | D95: 1945.78 | E95: 1928.52 | F95: 1900.73 | G95: 1883.47 | H95: 1973.57 | I95: 1990.83 | J95: 2018.62 | K95: 1963.05 | L95: 1918 | M95: 36.65385
A96: 87 | B96: HDFCBANK | C96: 2005.7 | D96: 2002.07 | E96: 1990.63 | F96: 1975.57 | G96: 1964.13 | H96: 2017.13 | I96: 2028.57 | J96: 2043.63 | K96: 2013.5 | L96: 1987 | M96: 17.35837
A97: 88 | B97: HEROMOTOCO | C97: 3691.45 | D97: 3707.12 | E97: 3666.33 | F97: 3641.22 | G97: 3600.43 | H97: 3732.23 | I97: 3773.02 | J97: 3798.13 | K97: 3747.9 | L97: 3682 | M97: 5.58327
A98: 89 | B98: HEXAWARE | C98: 381.4 | D98: 380.68 | E98: 375.37 | F98: 369.33 | G98: 364.02 | H98: 386.72 | I98: 392.03 | J98: 398.07 | K98: 386 | L98: 374.65 | M98: 11.89566
A99: 90 | B99: HINDALCO | C99: 256.15 | D99: 257.12 | E99: 251.03 | F99: 245.92 | G99: 239.83 | H99: 262.23 | I99: 268.32 | J99: 273.43 | K99: 263.2 | L99: 252 | M99: 175.14495
A100: 91 | B100: HINDPETRO | C100: 397.7 | D100: 395.52 | E100: 390.38 | F100: 383.07 | G100: 377.93 | H100: 402.83 | I100: 407.97 | J100: 415.28 | K100: 400.65 | L100: 388.2 | M100: 69.75667
A101: 92 | B101: HINDUNILVR | C101: 1369.35 | D101: 1377.32 | E101: 1354.63 | F101: 1339.92 | G101: 1317.23 | H101: 1392.03 | I101: 1414.72 | J101: 1429.43 | K101: 1400 | L101: 1362.6 | M101: 14.91912
A102: 93 | B102: HINDZINC | C102: 310.25 | D102: 309.98 | E102: 303.82 | F102: 297.38 | G102: 291.22 | H102: 316.42 | I102: 322.58 | J102: 329.02 | K102: 316.15 | L102: 303.55 | M102: 37.17227
A103: 94 | B103: IBULHSGFIN | C103: 1390.95 | D103: 1392.83 | E103: 1370.12 | F103: 1349.28 | G103: 1326.57 | H103: 1413.67 | I103: 1436.38 | J103: 1457.22 | K103: 1415.55 | L103: 1372 | M103: 13.37755
A104: 95 | B104: ICICIBANK | C104: 352.95 | D104: 350.17 | E104: 346.38 | F104: 339.82 | G104: 336.03 | H104: 356.73 | I104: 360.52 | J104: 367.08 | K104: 353.95 | L104: 343.6 | M104: 226.38319
A105: 96 | B105: ICICIPRULI | C105: 406.7 | D105: 408.52 | E105: 402.18 | F105: 397.67 | G105: 391.33 | H105: 413.03 | I105: 419.37 | J105: 423.88 | K105: 414.85 | L105: 404 | M105: 14.3905
A106: 97 | B106: IDBI | C106: 60.45 | D106: 60.83 | E106: 59.57 | F106: 58.68 | G106: 57.42 | H106: 61.72 | I106: 62.98 | J106: 63.87 | K106: 62.1 | L106: 59.95 | M106: 54.51521
A107: 98 | B107: IDEA | C107: 93.1 | D107: 93.73 | E107: 91.37 | F107: 89.63 | G107: 87.27 | H107: 95.47 | I107: 97.83 | J107: 99.57 | K107: 96.1 | L107: 92 | M107: 152.4112
A108: 99 | B108: IDFC | C108: 56.35 | D108: 56.42 | E108: 55.63 | F108: 54.92 | G108: 54.13 | H108: 57.13 | I108: 57.92 | J108: 58.63 | K108: 57.2 | L108: 55.7 | M108: 60.53179
A109: 100 | B109: IDFCBANK | C109: 56.8 | D109: 56.97 | E109: 56.33 | F109: 55.87 | G109: 55.23 | H109: 57.43 | I109: 58.07 | J109: 58.53 | K109: 57.6 | L109: 56.5 | M109: 70.85491
A110: 101 | B110: IGL | C110: 304.65 | D110: 305.38 | E110: 300.77 | F110: 296.88 | G110: 292.27 | H110: 309.27 | I110: 313.88 | J110: 317.77 | K110: 310 | L110: 301.5 | M110: 26.56208
A111: 102 | B111: INDHOTEL | C111: 138.2 | D111: 140.32 | E111: 135.03 | F111: 131.87 | G111: 126.58 | H111: 143.48 | I111: 148.77 | J111: 151.93 | K111: 145.6 | L111: 137.15 | M111: 9.10191
A112: 103 | B112: INDIANB | C112: 362.6 | D112: 364.28 | E112: 355.67 | F112: 348.73 | G112: 340.12 | H112: 371.22 | I112: 379.83 | J112: 386.77 | K112: 372.9 | L112: 357.35 | M112: 8.0229
A113: 104 | B113: INDIGO | C113: 1214.95 | D113: 1214.40 | E113: 1203.80 | F113: 1192.65 | G113: 1182.05 | H113: 1225.55 | I113: 1236.15 | J113: 1247.30 | K113: 1225 | L113: 1203.25 | M113: 3.93839
A114: 105 | B114: INDUSINDBK | C114: 1753.1 | D114: 1746.40 | E114: 1731.80 | F114: 1710.50 | G114: 1695.90 | H114: 1767.70 | I114: 1782.30 | J114: 1803.60 | K114: 1761 | L114: 1725.1 | M114: 12.37098
A115: 106 | B115: INFRATEL | C115: 351.55 | D115: 349.57 | E115: 345.18 | F115: 338.82 | G115: 334.43 | H115: 355.93 | I115: 360.32 | J115: 366.68 | K115: 353.95 | L115: 343.2 | M115: 39.97015
A116: 107 | B116: INFY | C116: 1150.25 | D116: 1153.00 | E116: 1139.40 | F116: 1128.55 | G116: 1114.95 | H116: 1163.85 | I116: 1177.45 | J116: 1188.30 | K116: 1166.6 | L116: 1142.15 | M116: 46.06849
A117: 108 | B117: IOC | C117: 417.6 | D117: 419.83 | E117: 412.27 | F117: 406.93 | G117: 399.37 | H117: 425.17 | I117: 432.73 | J117: 438.07 | K117: 427.4 | L117: 414.5 | M117: 135.03235
A118: 109 | B118: IPCALAB | C118: 574.5 | D118: 574.50 | E118: 560.00 | F118: 545.50 | G118: 531.00 | H118: 589.00 | I118: 603.50 | J118: 618.00 | K118: 589 | L118: 560 | M118: 1.72027
A119: 110 | B119: IRB | C119: 241.2 | D119: 239.43 | E119: 233.47 | F119: 225.73 | G119: 219.77 | H119: 247.17 | I119: 253.13 | J119: 260.87 | K119: 245.4 | L119: 231.7 | M119: 20.9751
A120: 111 | B120: ITC | C120: 271.4 | D120: 272.42 | E120: 268.83 | F120: 266.27 | G120: 262.68 | H120: 274.98 | I120: 278.57 | J120: 281.13 | K120: 276 | L120: 269.85 | M120: 189.45945
A121: 112 | B121: JINDALSTEL | C121: 266.45 | D121: 268.23 | E121: 262.47 | F121: 258.48 | G121: 252.72 | H121: 272.22 | I121: 277.98 | J121: 281.97 | K121: 274 | L121: 264.25 | M121: 110.86304
A122: 113 | B122: JSWENERGY | C122: 87.6 | D122: 87.58 | E122: 86.42 | F122: 85.23 | G122: 84.07 | H122: 88.77 | I122: 89.93 | J122: 91.12 | K122: 88.75 | L122: 86.4 | M122: 59.8805
A123: 114 | B123: JSWSTEEL | C123: 289.95 | D123: 288.35 | E123: 282.70 | F123: 275.45 | G123: 269.80 | H123: 295.60 | I123: 301.25 | J123: 308.50 | K123: 294 | L123: 281.1 | M123: 66.04621
A124: 115 | B124: JUBILANT | C124: 913.35 | D124: 926.05 | E124: 889.30 | F124: 865.25 | G124: 828.50 | H124: 950.10 | I124: 986.85 | J124: 1010.90 | K124: 962.8 | L124: 902 | M124: 11.90586
A125: 116 | B125: JUBLFOOD | C125: 2043.2 | D125: 2072.53 | E125: 1996.67 | F125: 1950.13 | G125: 1874.27 | H125: 2119.07 | I125: 2194.93 | J125: 2241.47 | K125: 2148.4 | L125: 2026 | M125: 11.80069
A126: 117 | B126: KARURVYSYA | C126: 110.9 | D126: 109.57 | E126: 107.33 | F126: 103.77 | G126: 101.53 | H126: 113.13 | I126: 115.37 | J126: 118.93 | K126: 111.8 | L126: 106 | M126: 52.19596
A127: 118 | B127: KOTAKBANK | C127: 1108.95 | D127: 1101.77 | E127: 1090.33 | F127: 1071.72 | G127: 1060.28 | H127: 1120.38 | I127: 1131.82 | J127: 1150.43 | K127: 1113.2 | L127: 1083.15 | M127: 31.43011
A128: 119 | B128: L&TFH | C128: 172.6 | D128: 173.58 | E128: 169.52 | F128: 166.43 | G128: 162.37 | H128: 176.67 | I128: 180.73 | J128: 183.82 | K128: 177.65 | L128: 170.5 | M128: 52.45741
A129: 120 | B129: LALPATHLAB | C129: 903.7 | D129: 901.90 | E129: 884.80 | F129: 865.90 | G129: 848.80 | H129: 920.80 | I129: 937.90 | J129: 956.80 | K129: 919 | L129: 883 | M129: 4.59008
A130: 121 | B130: LICHSGFIN | C130: 534.95 | D130: 534.75 | E130: 529.40 | F130: 523.85 | G130: 518.50 | H130: 540.30 | I130: 545.65 | J130: 551.20 | K130: 540.1 | L130: 529.2 | M130: 29.92832
A131: 122 | B131: LT | C131: 1416.5 | D131: 1422.73 | E131: 1405.77 | F131: 1395.03 | G131: 1378.07 | H131: 1433.47 | I131: 1450.43 | J131: 1461.17 | K131: 1439.7 | L131: 1412 | M131: 26.14515
A132: 123 | B132: LTTS | C132: 1209.4 | D132: 1233.13 | E132: 1177.27 | F132: 1145.13 | G132: 1089.27 | H132: 1265.27 | I132: 1321.13 | J132: 1353.27 | K132: 1289 | L132: 1201 | M132: 0.7796
A133: 124 | B133: LUPIN | C133: 883.75 | D133: 887.15 | E133: 872.60 | F133: 861.45 | G133: 846.90 | H133: 898.30 | I133: 912.85 | J133: 924.00 | K133: 901.7 | L133: 876 | M133: 15.90192
A134: 125 | B134: M&M | C134: 763.05 | D134: 763.62 | E134: 756.08 | F134: 749.12 | G134: 741.58 | H134: 770.58 | I134: 778.12 | J134: 785.08 | K134: 771.15 | L134: 756.65 | M134: 22.42045
A135: 126 | B135: M&MFIN | C135: 463.5 | D135: 462.25 | E135: 449.50 | F135: 435.50 | G135: 422.75 | H135: 476.25 | I135: 489.00 | J135: 503.00 | K135: 475 | L135: 448.25 | M135: 29.68098
A136: 127 | B136: MANAPPURAM | C136: 110.95 | D136: 111.68 | E136: 108.52 | F136: 106.08 | G136: 102.92 | H136: 114.12 | I136: 117.28 | J136: 119.72 | K136: 114.85 | L136: 109.25 | M136: 48.01845
A137: 128 | B137: MARICO | C137: 309.4 | D137: 310.77 | E137: 306.18 | F137: 302.97 | G137: 298.38 | H137: 313.98 | I137: 318.57 | J137: 321.78 | K137: 315.35 | L137: 307.55 | M137: 7.2188
A138: 129 | B138: MARUTI | C138: 9509.7 | D138: 9517.87 | E138: 9450.73 | F138: 9391.77 | G138: 9324.63 | H138: 9576.83 | I138: 9643.97 | J138: 9702.93 | K138: 9585 | L138: 9458.9 | M138: 4.6265
A139: 130 | B139: MCDOWELL-N | C139: 3285.6 | D139: 3286.77 | E139: 3263.83 | F139: 3242.07 | G139: 3219.13 | H139: 3308.53 | I139: 3331.47 | J139: 3353.23 | K139: 3309.7 | L139: 3265 | M139: 4.34481
A140: 131 | B140: MINDTREE | C140: 770 | D140: 770.57 | E140: 761.98 | F140: 753.97 | G140: 745.38 | H140: 778.58 | I140: 787.17 | J140: 795.18 | K140: 779.15 | L140: 762.55 | M140: 15.90667
A141: 132 | B141: MOTHERSUMI | C141: 365.8 | D141: 364.58 | E141: 361.62 | F141: 357.43 | G141: 354.47 | H141: 368.77 | I141: 371.73 | J141: 375.92 | K141: 367.55 | L141: 360.4 | M141: 19.84871
A142: 133 | B142: MPHASIS | C142: 894.85 | D142: 896.95 | E142: 881.90 | F142: 868.95 | G142: 853.90 | H142: 909.90 | I142: 924.95 | J142: 937.90 | K142: 912 | L142: 884 | M142: 5.26609
A143: 134 | B143: MRF | C143: 68113.35 | D143: 68042.62 | E143: 67286.48 | F143: 66459.62 | G143: 65703.48 | H143: 68869.48 | I143: 69625.62 | J143: 70452.48 | K143: 68798.75 | L143: 67215.75 | M143: 0.08102
A144: 135 | B144: MUTHOOTFIN | C144: 415.25 | D144: 414.95 | E144: 407.90 | F144: 400.55 | G144: 393.50 | H144: 422.30 | I144: 429.35 | J144: 436.70 | K144: 422 | L144: 407.6 | M144: 4.71658
A145: 136 | B145: NATCOPHARM | C145: 946.9 | D145: 943.75 | E145: 931.15 | F145: 915.40 | G145: 902.80 | H145: 959.50 | I145: 972.10 | J145: 987.85 | K145: 956.35 | L145: 928 | M145: 2.81124
A146: 137 | B146: NATIONALUM | C146: 75.3 | D146: 75.72 | E146: 73.68 | F146: 72.07 | G146: 70.03 | H146: 77.33 | I146: 79.37 | J146: 80.98 | K146: 77.75 | L146: 74.1 | M146: 143.90601
A147: 138 | B147: NAUKRI | C147: 1351.55 | D147: 1360.95 | E147: 1326.90 | F147: 1302.25 | G147: 1268.20 | H147: 1385.60 | I147: 1419.65 | J147: 1444.30 | K147: 1395 | L147: 1336.3 | M147: 2.60048
A148: 139 | B148: NBCC | C148: 225.95 | D148: 225.88 | E148: 222.17 | F148: 218.38 | G148: 214.67 | H148: 229.67 | I148: 233.38 | J148: 237.17 | K148: 229.6 | L148: 222.1 | M148: 31.28355
A149: 140 | B149: NHPC | C149: 29.45 | D149: 29.60 | E149: 29.20 | F149: 28.95 | G149: 28.55 | H149: 29.85 | I149: 30.25 | J149: 30.50 | K149: 30 | L149: 29.35 | M149: 54.3382
A150: 141 | B150: NMDC | C150: 140.3 | D150: 141.17 | E150: 137.73 | F150: 135.17 | G150: 131.73 | H150: 143.73 | I150: 147.17 | J150: 149.73 | K150: 144.6 | L150: 138.6 | M150: 52.65833
A151: 142 | B151: NTPC | C151: 170.25 | D151: 169.98 | E151: 169.02 | F151: 167.78 | G151: 166.82 | H151: 171.22 | I151: 172.18 | J151: 173.42 | K151: 170.95 | L151: 168.75 | M151: 65.17115
A152: 143 | B152: OBEROIRLTY | C152: 528.8 | D152: 530.80 | E152: 520.65 | F152: 512.50 | G152: 502.35 | H152: 538.95 | I152: 549.10 | J152: 557.25 | K152: 540.95 | L152: 522.65 | M152: 8.34203
A153: 144 | B153: OFSS | C153: 4182.65 | D153: 4154.45 | E153: 4108.90 | F153: 4035.15 | G153: 3989.60 | H153: 4228.20 | I153: 4273.75 | J153: 4347.50 | K153: 4200 | L153: 4080.7 | M153: 0.35226
A154: 145 | B154: OIL | C154: 358.95 | D154: 360.45 | E154: 355.95 | F154: 352.95 | G154: 348.45 | H154: 363.45 | I154: 367.95 | J154: 370.95 | K154: 364.95 | L154: 357.45 | M154: 3.99404
A155: 146 | B155: ONGC | C155: 203.45 | D155: 202.28 | E155: 199.97 | F155: 196.48 | G155: 194.17 | H155: 205.77 | I155: 208.08 | J155: 211.57 | K155: 204.6 | L155: 198.8 | M155: 119.90243
A156: 147 | B156: PAGEIND | C156: 21459.75 | D156: 21519.78 | E156: 21200.97 | F156: 20942.18 | G156: 20623.37 | H156: 21778.57 | I156: 22097.38 | J156: 22356.17 | K156: 21838.6 | L156: 21261 | M156: 0.10914
A157: 148 | B157: PCJEWELLER | C157: 485.35 | D157: 492.60 | E157: 469.20 | F157: 453.05 | G157: 429.65 | H157: 508.75 | I157: 532.15 | J157: 548.30 | K157: 516 | L157: 476.45 | M157: 99.28536
A158: 149 | B158: PEL | C158: 2743 | D158: 2744.68 | E158: 2703.47 | F158: 2663.93 | G158: 2622.72 | H158: 2784.22 | I158: 2825.43 | J158: 2864.97 | K158: 2785.9 | L158: 2705.15 | M158: 2.33914
A159: 150 | B159: PETRONET | C159: 254.75 | D159: 254.78 | E159: 250.12 | F159: 245.48 | G159: 240.82 | H159: 259.42 | I159: 264.08 | J159: 268.72 | K159: 259.45 | L159: 250.15 | M159: 72.15527
A160: 151 | B160: PFC | C160: 116.8 | D160: 116.77 | E160: 115.03 | F160: 113.27 | G160: 111.53 | H160: 118.53 | I160: 120.27 | J160: 122.03 | K160: 118.5 | L160: 115 | M160: 55.22906
A161: 152 | B161: PGHH | C161: 9271.7 | D161: 9287.17 | E161: 9209.58 | F161: 9147.47 | G161: 9069.88 | H161: 9349.28 | I161: 9426.87 | J161: 9488.98 | K161: 9364.75 | L161: 9225.05 | M161: 0.03676
A162: 153 | B162: PIDILITIND | C162: 896.3 | D162: 892.02 | E162: 885.53 | F162: 874.77 | G162: 868.28 | H162: 902.78 | I162: 909.27 | J162: 920.03 | K162: 898.5 | L162: 881.25 | M162: 7.09011
A163: 154 | B163: PIIND | C163: 890.85 | D163: 897.22 | E163: 879.63 | F163: 868.42 | G163: 850.83 | H163: 908.43 | I163: 926.02 | J163: 937.23 | K163: 914.8 | L163: 886 | M163: 0.52854
A164: 155 | B164: PNB | C164: 171.35 | D164: 171.78 | E164: 168.37 | F164: 165.38 | G164: 161.97 | H164: 174.77 | I164: 178.18 | J164: 181.17 | K164: 175.2 | L164: 168.8 | M164: 153.13331
A165: 156 | B165: POWERGRID | C165: 193.8 | D165: 193.70 | E165: 192.10 | F165: 190.40 | G165: 188.80 | H165: 195.40 | I165: 197.00 | J165: 198.70 | K165: 195.3 | L165: 192 | M165: 80.84501
A166: 157 | B166: PRESTIGE | C166: 322.8 | D166: 320.87 | E166: 316.73 | F166: 310.67 | G166: 306.53 | H166: 326.93 | I166: 331.07 | J166: 337.13 | K166: 325 | L166: 314.8 | M166: 15.51929
A167: 158 | B167: QUESS | C167: 984.25 | D167: 983.33 | E167: 948.77 | F167: 913.28 | G167: 878.72 | H167: 1018.82 | I167: 1053.38 | J167: 1088.87 | K167: 1017.9 | L167: 947.85 | M167: 68.90064
A168: 159 | B168: RAJESHEXPO | C168: 821.45 | D168: 824.03 | E168: 814.42 | F168: 807.38 | G168: 797.77 | H168: 831.07 | I168: 840.68 | J168: 847.72 | K168: 833.65 | L168: 817 | M168: 5.02494
A169: 160 | B169: RAMCOCEM | C169: 758.25 | D169: 762.23 | E169: 751.17 | F169: 744.08 | G169: 733.02 | H169: 769.32 | I169: 780.38 | J169: 787.47 | K169: 773.3 | L169: 755.15 | M169: 1.38456
A170: 161 | B170: RBLBANK | C170: 503.5 | D170: 502.65 | E170: 500.00 | F170: 496.50 | G170: 493.85 | H170: 506.15 | I170: 508.80 | J170: 512.30 | K170: 505.3 | L170: 499.15 | M170: 7.13984
A171: 162 | B171: RCOM | C171: 29.45 | D171: 29.80 | E171: 28.55 | F171: 27.65 | G171: 26.40 | H171: 30.70 | I171: 31.95 | J171: 32.85 | K171: 31.05 | L171: 28.9 | M171: 1171.49717
A172: 163 | B172: RECLTD | C172: 155.5 | D172: 155.38 | E172: 153.22 | F172: 150.93 | G172: 148.77 | H172: 157.67 | I172: 159.83 | J172: 162.12 | K172: 157.55 | L172: 153.1 | M172: 32.9464
A173: 164 | B173: RELCAPITAL | C173: 491.1 | D173: 495.50 | E173: 480.60 | F173: 470.10 | G173: 455.20 | H173: 506.00 | I173: 520.90 | J173: 531.40 | K173: 510.4 | L173: 485 | M173: 47.01616
A174: 165 | B174: RELIANCE | C174: 961.3 | D174: 955.78 | E174: 947.07 | F174: 932.83 | G174: 924.12 | H174: 970.02 | I174: 978.73 | J174: 992.97 | K174: 964.5 | L174: 941.55 | M174: 57.38209
A175: 166 | B175: RELINFRA | C175: 496.35 | D175: 500.38 | E175: 488.02 | F175: 479.68 | G175: 467.32 | H175: 508.72 | I175: 521.08 | J175: 529.42 | K175: 512.75 | L175: 492.05 | M175: 26.47818
A176: 167 | B176: RPOWER | C176: 45.75 | D176: 46.18 | E176: 44.67 | F176: 43.58 | G176: 42.07 | H176: 47.27 | I176: 48.78 | J176: 49.87 | K176: 47.7 | L176: 45.1 | M176: 126.83291
A177: 168 | B177: SAIL | C177: 88.9 | D177: 89.28 | E177: 87.22 | F177: 85.53 | G177: 83.47 | H177: 90.97 | I177: 93.03 | J177: 94.72 | K177: 91.35 | L177: 87.6 | M177: 136.43595
A178: 169 | B178: SBIN | C178: 313.25 | D178: 312.57 | E178: 308.53 | F178: 303.82 | G178: 299.78 | H178: 317.28 | I178: 321.32 | J178: 326.03 | K178: 316.6 | L178: 307.85 | M178: 164.09938
A179: 170 | B179: SHREECEM | C179: 17206.3 | D179: 17292.82 | E179: 17063.48 | F179: 16920.67 | G179: 16691.33 | H179: 17435.63 | I179: 17664.97 | J179: 17807.78 | K179: 17522.15 | L179: 17150 | M179: 0.17037
A180: 171 | B180: SIEMENS | C180: 1301.85 | D180: 1303.73 | E180: 1276.17 | F180: 1250.48 | G180: 1222.92 | H180: 1329.42 | I180: 1356.98 | J180: 1382.67 | K180: 1331.3 | L180: 1278.05 | M180: 5.18457
A181: 172 | B181: SPARC | C181: 453.3 | D181: 459.58 | E181: 443.92 | F181: 434.53 | G181: 418.87 | H181: 468.97 | I181: 484.63 | J181: 494.02 | K181: 475.25 | L181: 450.2 | M181: 1.70013
A182: 173 | B182: SRF | C182: 1783.45 | D182: 1794.20 | E182: 1760.45 | F182: 1737.45 | G182: 1703.70 | H182: 1817.20 | I182: 1850.95 | J182: 1873.95 | K182: 1827.95 | L182: 1771.2 | M182: 1.88183
A183: 174 | B183: SRTRANSFIN | C183: 1379.75 | D183: 1378.60 | E183: 1352.20 | F183: 1324.65 | G183: 1298.25 | H183: 1406.15 | I183: 1432.55 | J183: 1460.10 | K183: 1405 | L183: 1351.05 | M183: 7.5572
A184: 175 | B184: STAR | C184: 763 | D184: 768.50 | E184: 752.00 | F184: 741.00 | G184: 724.50 | H184: 779.50 | I184: 796.00 | J184: 807.00 | K184: 785 | L184: 757.5 | M184: 4.73863
A185: 176 | B185: SUNPHARMA | C185: 579.9 | D185: 583.28 | E185: 571.67 | F185: 563.43 | G185: 551.82 | H185: 591.52 | I185: 603.13 | J185: 611.37 | K185: 594.9 | L185: 575.05 | M185: 47.81423
A186: 177 | B186: SUNTV | C186: 1024.4 | D186: 1023.33 | E186: 1016.67 | F186: 1008.93 | G186: 1002.27 | H186: 1031.07 | I186: 1037.73 | J186: 1045.47 | K186: 1030 | L186: 1015.6 | M186: 4.916
A187: 178 | B187: SUZLON | C187: 14.6 | D187: 14.65 | E187: 14.50 | F187: 14.40 | G187: 14.25 | H187: 14.75 | I187: 14.90 | J187: 15.00 | K187: 14.8 | L187: 14.55 | M187: 210.12681
A188: 179 | B188: SYNDIBANK | C188: 72.55 | D188: 72.68 | E188: 71.72 | F188: 70.88 | G188: 69.92 | H188: 73.52 | I188: 74.48 | J188: 75.32 | K188: 73.65 | L188: 71.85 | M188: 41.92635
A189: 180 | B189: SYNGENE | C189: 599.7 | D189: 605.65 | E189: 586.30 | F189: 572.90 | G189: 553.55 | H189: 619.05 | I189: 638.40 | J189: 651.80 | K189: 625 | L189: 592.25 | M189: 1.14182
A190: 181 | B190: TATACHEM | C190: 719 | D190: 716.55 | E190: 711.10 | F190: 703.20 | G190: 697.75 | H190: 724.45 | I190: 729.90 | J190: 737.80 | K190: 722 | L190: 708.65 | M190: 9.26013
A191: 182 | B191: TATACOMM | C191: 615.35 | D191: 617.43 | E191: 609.87 | F191: 604.38 | G191: 596.82 | H191: 622.92 | I191: 630.48 | J191: 635.97 | K191: 625 | L191: 611.95 | M191: 6.02219
A192: 183 | B192: TATAGLOBAL | C192: 290.65 | D192: 293.48 | E192: 283.27 | F192: 275.88 | G192: 265.67 | H192: 300.87 | I192: 311.08 | J192: 318.47 | K192: 303.7 | L192: 286.1 | M192: 53.97599
A193: 184 | B193: TATAMOTORS | C193: 399.5 | D193: 398.57 | E193: 396.18 | F193: 392.87 | G193: 390.48 | H193: 401.88 | I193: 404.27 | J193: 407.58 | K193: 400.95 | L193: 395.25 | M193: 51.11454
A194: 185 | B194: TATAMTRDVR | C194: 224.55 | D194: 224.62 | E194: 223.28 | F194: 222.02 | G194: 220.68 | H194: 225.88 | I194: 227.22 | J194: 228.48 | K194: 225.95 | L194: 223.35 | M194: 23.5963
A195: 186 | B195: TATAPOWER | C195: 89 | D195: 89.58 | E195: 87.97 | F195: 86.93 | G195: 85.32 | H195: 90.62 | I195: 92.23 | J195: 93.27 | K195: 91.2 | L195: 88.55 | M195: 58.62598
A196: 187 | B196: TATASTEEL | C196: 705.05 | D196: 718.22 | E196: 688.53 | F196: 672.02 | G196: 642.33 | H196: 734.73 | I196: 764.42 | J196: 780.93 | K196: 747.9 | L196: 701.7 | M196: 129.58902
A197: 188 | B197: TCS | C197: 3112.35 | D197: 3120.32 | E197: 3090.63 | F197: 3068.92 | G197: 3039.23 | H197: 3142.03 | I197: 3171.72 | J197: 3193.43 | K197: 3150 | L197: 3098.6 | M197: 15.21607
A198: 189 | B198: TECHM | C198: 612.65 | D198: 611.95 | E198: 597.70 | F198: 582.75 | G198: 568.50 | H198: 626.90 | I198: 641.15 | J198: 656.10 | K198: 626.2 | L198: 597 | M198: 72.44068
A199: 190 | B199: THERMAX | C199: 1238.5 | D199: 1226.63 | E199: 1193.27 | F199: 1148.03 | G199: 1114.67 | H199: 1271.87 | I199: 1305.23 | J199: 1350.47 | K199: 1260 | L199: 1181.4 | M199: 0.28218
A200: 191 | B200: TITAN | C200: 869.55 | D200: 871.30 | E200: 857.65 | F200: 845.75 | G200: 832.10 | H200: 883.20 | I200: 896.85 | J200: 908.75 | K200: 884.95 | L200: 859.4 | M200: 14.3167
A201: 192 | B201: TORNTPHARM | C201: 1362.4 | D201: 1357.45 | E201: 1344.95 | F201: 1327.50 | G201: 1315.00 | H201: 1374.90 | I201: 1387.40 | J201: 1404.85 | K201: 1369.95 | L201: 1340 | M201: 1.15158
A202: 193 | B202: TORNTPOWER | C202: 285.45 | D202: 283.82 | E202: 276.88 | F202: 268.32 | G202: 261.38 | H202: 292.38 | I202: 299.32 | J202: 307.88 | K202: 290.75 | L202: 275.25 | M202: 14.16923
A203: 194 | B203: TV18BRDCST | C203: 61.85 | D203: 61.35 | E203: 59.35 | F203: 56.85 | G203: 54.85 | H203: 63.85 | I203: 65.85 | J203: 68.35 | K203: 63.35 | L203: 58.85 | M203: 183.76216
A204: 195 | B204: TVSMOTOR | C204: 696.8 | D204: 697.43 | E204: 682.87 | F204: 668.93 | G204: 654.37 | H204: 711.37 | I204: 725.93 | J204: 739.87 | K204: 712 | L204: 683.5 | M204: 23.95174
A205: 196 | B205: UBL | C205: 1146.55 | D205: 1144.35 | E205: 1133.20 | F205: 1119.85 | G205: 1108.70 | H205: 1157.70 | I205: 1168.85 | J205: 1182.20 | K205: 1155.5 | L205: 1131 | M205: 1.8178
... 29 more rows

Sheet MidCap Intra
L5: Back To Main Page
A6: FOR INTRA DAY TRADING | K6: =Main!B10 -> 2018-02-01
A9: Sr.no | B9: Scrip | C9: CLOSE RATE | D9: Pivot Point | E9: Supports | H9: Resistances
C10: Point | E10: S1 | F10: S2 | G10: S3 | H10: R1 | I10: R2 | J10: R3 | K10: HIGH | L10: LOW | M10: Total Trade Quanity in Lakhs
A11: 1 | B11: 3MINDIA | C11: 18796.15 | D11: 18776.05 | E11: 18677.10 | F11: 18558.05 | G11: 18459.10 | H11: 18895.10 | I11: 18994.05 | J11: 19113.10 | K11: 18875 | L11: 18657 | M11: 0.08501
A12: 2 | B12: 8KMILES | C12: 736.85 | D12: 733.28 | E12: 713.57 | F12: 690.28 | G12: 670.57 | H12: 756.57 | I12: 776.28 | J12: 799.57 | K12: 753 | L12: 710 | M12: 1.85666
A13: 3 | B13: AARTIIND | C13: 1056.75 | D13: 1044.48 | E13: 1027.17 | F13: 997.58 | G13: 980.27 | H13: 1074.07 | I13: 1091.38 | J13: 1120.97 | K13: 1061.8 | L13: 1014.9 | M13: 0.40022
A14: 4 | B14: ABAN | C14: 211 | D14: 211.65 | E14: 207.70 | F14: 204.40 | G14: 200.45 | H14: 214.95 | I14: 218.90 | J14: 222.20 | K14: 215.6 | L14: 208.35 | M14: 13.63558
A15: 5 | B15: ABB | C15: 1653.2 | D15: 1634.58 | E15: 1604.17 | F15: 1555.13 | G15: 1524.72 | H15: 1683.62 | I15: 1714.03 | J15: 1763.07 | K15: 1665 | L15: 1585.55 | M15: 1.25376
A16: 6 | B16: ABFRL | C16: 163.05 | D16: 161.82 | E16: 159.63 | F16: 156.22 | G16: 154.03 | H16: 165.23 | I16: 167.42 | J16: 170.83 | K16: 164 | L16: 158.4 | M16: 6.36498
A17: 7 | B17: ACC | C17: 1715.25 | D17: 1717.73 | E17: 1697.57 | F17: 1679.88 | G17: 1659.72 | H17: 1735.42 | I17: 1755.58 | J17: 1773.27 | K17: 1737.9 | L17: 1700.05 | M17: 3.35683
A18: 8 | B18: ADANIENT | C18: 213.2 | D18: 213.70 | E18: 208.65 | F18: 204.10 | G18: 199.05 | H18: 218.25 | I18: 223.30 | J18: 227.85 | K18: 218.75 | L18: 209.15 | M18: 77.32419
A19: 9 | B19: ADANIPORTS | C19: 428.85 | D19: 429.62 | E19: 423.73 | F19: 418.62 | G19: 412.73 | H19: 434.73 | I19: 440.62 | J19: 445.73 | K19: 435.5 | L19: 424.5 | M19: 27.34628
A20: 10 | B20: ADANIPOWER | C20: 36.65 | D20: 37.00 | E20: 35.75 | F20: 34.85 | G20: 33.60 | H20: 37.90 | I20: 39.15 | J20: 40.05 | K20: 38.25 | L20: 36.1 | M20: 109.59615
A21: 11 | B21: ADANITRANS | C21: 208.9 | D21: 210.17 | E21: 205.33 | F21: 201.77 | G21: 196.93 | H21: 213.73 | I21: 218.57 | J21: 222.13 | K21: 215 | L21: 206.6 | M21: 8.89978
A22: 12 | B22: ADVENZYMES | C22: 264.1 | D22: 265.37 | E22: 261.73 | F22: 259.37 | G22: 255.73 | H22: 267.73 | I22: 271.37 | J22: 273.73 | K22: 269 | L22: 263 | M22: 1.26011
A23: 13 | B23: AEGISCHEM | C23: 249 | D23: 248.08 | E23: 245.42 | F23: 241.83 | G23: 239.17 | H23: 251.67 | I23: 254.33 | J23: 257.92 | K23: 250.75 | L23: 244.5 | M23: 3.41415
A24: 14 | B24: AHLUCONT | C24: 350.5 | D24: 352.13 | E24: 346.37 | F24: 342.23 | G24: 336.47 | H24: 356.27 | I24: 362.03 | J24: 366.17 | K24: 357.9 | L24: 348 | M24: 0.9318
A25: 15 | B25: AIAENG | C25: 1535.85 | D25: 1543.62 | E25: 1517.23 | F25: 1498.62 | G25: 1472.23 | H25: 1562.23 | I25: 1588.62 | J25: 1607.23 | K25: 1570 | L25: 1525 | M25: 0.27039
A26: 16 | B26: AJANTPHARM | C26: 1451.55 | D26: 1445.82 | E26: 1430.83 | F26: 1410.12 | G26: 1395.13 | H26: 1466.53 | I26: 1481.52 | J26: 1502.23 | K26: 1460.8 | L26: 1425.1 | M26: 1.82964
A27: 17 | B27: AKZOINDIA | C27: 1841.3 | D27: 1846.80 | E27: 1824.60 | F27: 1807.90 | G27: 1785.70 | H27: 1863.50 | I27: 1885.70 | J27: 1902.40 | K27: 1869 | L27: 1830.1 | M27: 0.1216
A28: 18 | B28: ALBK | C28: 66.8 | D28: 67.18 | E28: 65.97 | F28: 65.13 | G28: 63.92 | H28: 68.02 | I28: 69.23 | J28: 70.07 | K28: 68.4 | L28: 66.35 | M28: 28.29122
A29: 19 | B29: ALKEM | C29: 2198.75 | D29: 2205.57 | E29: 2181.18 | F29: 2163.62 | G29: 2139.23 | H29: 2223.13 | I29: 2247.52 | J29: 2265.08 | K29: 2229.95 | L29: 2188 | M29: 0.18474
A30: 20 | B30: ALLCARGO | C30: 193 | D30: 193.02 | E30: 191.03 | F30: 189.07 | G30: 187.08 | H30: 194.98 | I30: 196.97 | J30: 198.93 | K30: 195 | L30: 191.05 | M30: 2.51948
A31: 21 | B31: AMARAJABAT | C31: 810.1 | D31: 810.73 | E31: 801.47 | F31: 792.83 | G31: 783.57 | H31: 819.37 | I31: 828.63 | J31: 837.27 | K31: 820 | L31: 802.1 | M31: 2.97406
A32: 22 | B32: AMBUJACEM | C32: 261.8 | D32: 260.75 | E32: 258.20 | F32: 254.60 | G32: 252.05 | H32: 264.35 | I32: 266.90 | J32: 270.50 | K32: 263.3 | L32: 257.15 | M32: 27.08846
A33: 23 | B33: ANANTRAJ | C33: 66.7 | D33: 66.82 | E33: 65.48 | F33: 64.27 | G33: 62.93 | H33: 68.03 | I33: 69.37 | J33: 70.58 | K33: 68.15 | L33: 65.6 | M33: 13.24342
A34: 24 | B34: ANDHRABANK | C34: 52.55 | D34: 52.68 | E34: 51.77 | F34: 50.98 | G34: 50.07 | H34: 53.47 | I34: 54.38 | J34: 55.17 | K34: 53.6 | L34: 51.9 | M34: 34.95843
A35: 25 | B35: APARINDS | C35: 736.45 | D35: 743.70 | E35: 718.75 | F35: 701.05 | G35: 676.10 | H35: 761.40 | I35: 786.35 | J35: 804.05 | K35: 768.65 | L35: 726 | M35: 0.90962
A36: 26 | B36: APLAPOLLO | C36: 2143.4 | D36: 2162.78 | E36: 2085.57 | F36: 2027.73 | G36: 1950.52 | H36: 2220.62 | I36: 2297.83 | J36: 2355.67 | K36: 2240 | L36: 2104.95 | M36: 0.89186
A37: 27 | B37: APLLTD | C37: 567.1 | D37: 562.50 | E37: 548.10 | F37: 529.10 | G37: 514.70 | H37: 581.50 | I37: 595.90 | J37: 614.90 | K37: 576.9 | L37: 543.5 | M37: 4.88735
A38: 28 | B38: APOLLOHOSP | C38: 1162.8 | D38: 1157.22 | E38: 1140.58 | F38: 1118.37 | G38: 1101.73 | H38: 1179.43 | I38: 1196.07 | J38: 1218.28 | K38: 1173.85 | L38: 1135 | M38: 4.95268
A39: 29 | B39: APOLLOTYRE | C39: 254.85 | D39: 257.38 | E39: 251.02 | F39: 247.18 | G39: 240.82 | H39: 261.22 | I39: 267.58 | J39: 271.42 | K39: 263.75 | L39: 253.55 | M39: 35.31429
A40: 30 | B40: ARVIND | C40: 413.35 | D40: 416.27 | E40: 402.68 | F40: 392.02 | G40: 378.43 | H40: 426.93 | I40: 440.52 | J40: 451.18 | K40: 429.85 | L40: 405.6 | M40: 30.1918
A41: 31 | B41: ASAHIINDIA | C41: 344.45 | D41: 343.10 | E41: 338.30 | F41: 332.15 | G41: 327.35 | H41: 349.25 | I41: 354.05 | J41: 360.20 | K41: 347.9 | L41: 336.95 | M41: 0.30471
A42: 32 | B42: ASHOKA | C42: 227 | D42: 226.38 | E42: 222.82 | F42: 218.63 | G42: 215.07 | H42: 230.57 | I42: 234.13 | J42: 238.32 | K42: 229.95 | L42: 222.2 | M42: 2.44219
A43: 33 | B43: ASHOKLEY | C43: 126.1 | D43: 125.68 | E43: 124.82 | F43: 123.53 | G43: 122.67 | H43: 126.97 | I43: 127.83 | J43: 129.12 | K43: 126.55 | L43: 124.4 | M43: 100.40333
A44: 34 | B44: ASIANPAINT | C44: 1128.3 | D44: 1130.70 | E44: 1121.60 | F44: 1114.90 | G44: 1105.80 | H44: 1137.40 | I44: 1146.50 | J44: 1153.20 | K44: 1139.8 | L44: 1124 | M44: 9.61596
A45: 35 | B45: ASTRAL | C45: 798.75 | D45: 792.27 | E45: 770.53 | F45: 742.32 | G45: 720.58 | H45: 820.48 | I45: 842.22 | J45: 870.43 | K45: 814 | L45: 764.05 | M45: 0.19686
A46: 36 | B46: ASTRAZEN | C46: 1136.45 | D46: 1132.62 | E46: 1115.33 | F46: 1094.22 | G46: 1076.93 | H46: 1153.73 | I46: 1171.02 | J46: 1192.13 | K46: 1149.9 | L46: 1111.5 | M46: 0.02398
A47: 37 | B47: ATUL | C47: 2712.45 | D47: 2743.33 | E47: 2664.22 | F47: 2615.98 | G47: 2536.87 | H47: 2791.57 | I47: 2870.68 | J47: 2918.92 | K47: 2822.45 | L47: 2695.1 | M47: 0.13807
A48: 38 | B48: AUROPHARMA | C48: 629.55 | D48: 629.42 | E48: 623.33 | F48: 617.12 | G48: 611.03 | H48: 635.63 | I48: 641.72 | J48: 647.93 | K48: 635.5 | L48: 623.2 | M48: 18.77445
A49: 39 | B49: AVANTIFEED | C49: 2217.15 | D49: 2220.98 | E49: 2167.27 | F49: 2117.38 | G49: 2063.67 | H49: 2270.87 | I49: 2324.58 | J49: 2374.47 | K49: 2274.7 | L49: 2171.1 | M49: 0.93603
A50: 40 | B50: AXISBANK | C50: 593.6 | D50: 592.25 | E50: 588.50 | F50: 583.40 | G50: 579.65 | H50: 597.35 | I50: 601.10 | J50: 606.20 | K50: 596 | L50: 587.15 | M50: 71.0806
A51: 41 | B51: BAJAJ-AUTO | C51: 3337.15 | D51: 3326.37 | E51: 3266.93 | F51: 3196.72 | G51: 3137.28 | H51: 3396.58 | I51: 3456.02 | J51: 3526.23 | K51: 3385.8 | L51: 3256.15 | M51: 2.75934
A52: 42 | B52: BAJAJCORP | C52: 492.1 | D52: 495.05 | E52: 485.05 | F52: 478.00 | G52: 468.00 | H52: 502.10 | I52: 512.10 | J52: 519.15 | K52: 505.05 | L52: 488 | M52: 0.24013
A53: 43 | B53: BAJAJELEC | C53: 488.1 | D53: 494.03 | E53: 476.07 | F53: 464.03 | G53: 446.07 | H53: 506.07 | I53: 524.03 | J53: 536.07 | K53: 512 | L53: 482 | M53: 2.11283
A54: 44 | B54: BAJAJFINSV | C54: 4812.35 | D54: 4804.08 | E54: 4744.72 | F54: 4677.08 | G54: 4617.72 | H54: 4871.72 | I54: 4931.08 | J54: 4998.72 | K54: 4863.45 | L54: 4736.45 | M54: 2.20161
A55: 45 | B55: BAJAJHIND | C55: 14.15 | D55: 14.25 | E55: 14.00 | F55: 13.85 | G55: 13.60 | H55: 14.40 | I55: 14.65 | J55: 14.80 | K55: 14.5 | L55: 14.1 | M55: 48.33991
A56: 46 | B56: BAJAJHLDNG | C56: 2808.45 | D56: 2796.88 | E56: 2778.77 | F56: 2749.08 | G56: 2730.97 | H56: 2826.57 | I56: 2844.68 | J56: 2874.37 | K56: 2815 | L56: 2767.2 | M56: 0.33221
A57: 47 | B57: BAJFINANCE | C57: 1677.85 | D57: 1670.95 | E57: 1651.90 | F57: 1625.95 | G57: 1606.90 | H57: 1696.90 | I57: 1715.95 | J57: 1741.90 | K57: 1690 | L57: 1645 | M57: 13.32225
A58: 48 | B58: BALKRISIND | C58: 1141.85 | D58: 1148.78 | E58: 1113.07 | F58: 1084.28 | G58: 1048.57 | H58: 1177.57 | I58: 1213.28 | J58: 1242.07 | K58: 1184.5 | L58: 1120 | M58: 8.05923
A59: 49 | B59: BALLARPUR | C59: 15.7 | D59: 15.63 | E59: 14.97 | F59: 14.23 | G59: 13.57 | H59: 16.37 | I59: 17.03 | J59: 17.77 | K59: 16.3 | L59: 14.9 | M59: 31.17392
A60: 50 | B60: BALMLAWRIE | C60: 239.85 | D60: 242.25 | E60: 236.70 | F60: 233.55 | G60: 228.00 | H60: 245.40 | I60: 250.95 | J60: 254.10 | K60: 247.8 | L60: 239.1 | M60: 1.39979
A61: 51 | B61: BALRAMCHIN | C61: 122.15 | D61: 122.43 | E61: 119.67 | F61: 117.18 | G61: 114.42 | H61: 124.92 | I61: 127.68 | J61: 130.17 | K61: 125.2 | L61: 119.95 | M61: 42.09664
A62: 52 | B62: BANKBARODA | C62: 156.8 | D62: 158.03 | E62: 154.27 | F62: 151.73 | G62: 147.97 | H62: 160.57 | I62: 164.33 | J62: 166.87 | K62: 161.8 | L62: 155.5 | M62: 134.2076
A63: 53 | B63: BANKINDIA | C63: 157.2 | D63: 158.47 | E63: 154.23 | F63: 151.27 | G63: 147.03 | H63: 161.43 | I63: 165.67 | J63: 168.63 | K63: 162.7 | L63: 155.5 | M63: 45.10152
A64: 54 | B64: BASF | C64: 2128.35 | D64: 2133.43 | E64: 2110.92 | F64: 2093.48 | G64: 2070.97 | H64: 2150.87 | I64: 2173.38 | J64: 2190.82 | K64: 2155.95 | L64: 2116 | M64: 0.10798
A65: 55 | B65: BATAINDIA | C65: 705.95 | D65: 707.75 | E65: 698.30 | F65: 690.65 | G65: 681.20 | H65: 715.40 | I65: 724.85 | J65: 732.50 | K65: 717.2 | L65: 700.1 | M65: 2.91368
A66: 56 | B66: BBTC | C66: 1399.95 | D66: 1401.53 | E66: 1379.57 | F66: 1359.18 | G66: 1337.22 | H66: 1421.92 | I66: 1443.88 | J66: 1464.27 | K66: 1423.5 | L66: 1381.15 | M66: 1.21189
A67: 57 | B67: BEL | C67: 169.35 | D67: 169.62 | E67: 167.23 | F67: 165.12 | G67: 162.73 | H67: 171.73 | I67: 174.12 | J67: 176.23 | K67: 172 | L67: 167.5 | M67: 144.11761
A68: 58 | B68: BEML | C68: 1454.6 | D68: 1464.22 | E68: 1438.78 | F68: 1422.97 | G68: 1397.53 | H68: 1480.03 | I68: 1505.47 | J68: 1521.28 | K68: 1489.65 | L68: 1448.4 | M68: 2.39302
A69: 59 | B69: BERGEPAINT | C69: 250.35 | D69: 249.47 | E69: 245.88 | F69: 241.42 | G69: 237.83 | H69: 253.93 | I69: 257.52 | J69: 261.98 | K69: 253.05 | L69: 245 | M69: 4.78844
A70: 60 | B70: BFUTILITIE | C70: 483.85 | D70: 485.25 | E70: 473.70 | F70: 463.55 | G70: 452.00 | H70: 495.40 | I70: 506.95 | J70: 517.10 | K70: 496.8 | L70: 475.1 | M70: 3.76759
A71: 61 | B71: BGRENERGY | C71: 132.8 | D71: 132.97 | E71: 131.33 | F71: 129.87 | G71: 128.23 | H71: 134.43 | I71: 136.07 | J71: 137.53 | K71: 134.6 | L71: 131.5 | M71: 0.61445
A72: 62 | B72: BHARATFIN | C72: 1051.65 | D72: 1041.42 | E72: 1024.23 | F72: 996.82 | G72: 979.63 | H72: 1068.83 | I72: 1086.02 | J72: 1113.43 | K72: 1058.6 | L72: 1014 | M72: 14.58271
A73: 63 | B73: BHARATFORG | C73: 717.1 | D73: 717.45 | E73: 710.00 | F73: 702.90 | G73: 695.45 | H73: 724.55 | I73: 732.00 | J73: 739.10 | K73: 724.9 | L73: 710.35 | M73: 8.69666
A74: 64 | B74: BHARTIARTL | C74: 439.85 | D74: 440.75 | E74: 435.50 | F74: 431.15 | G74: 425.90 | H74: 445.10 | I74: 450.35 | J74: 454.70 | K74: 446 | L74: 436.4 | M74: 63.7132
A75: 65 | B75: BHEL | C75: 100.2 | D75: 100.97 | E75: 98.33 | F75: 96.47 | G75: 93.83 | H75: 102.83 | I75: 105.47 | J75: 107.33 | K75: 103.6 | L75: 99.1 | M75: 125.59349
A76: 66 | B76: BHUSANSTL | C76: 51.15 | D76: 50.85 | E76: 48.10 | F76: 45.05 | G76: 42.30 | H76: 53.90 | I76: 56.65 | J76: 59.70 | K76: 53.6 | L76: 47.8 | M76: 65.14554
A77: 67 | B77: BIOCON | C77: 614.9 | D77: 618.32 | E77: 605.63 | F77: 596.37 | G77: 583.68 | H77: 627.58 | I77: 640.27 | J77: 649.53 | K77: 631 | L77: 609.05 | M77: 26.22093
A78: 68 | B78: BIRLACORPN | C78: 1127.8 | D78: 1125.38 | E78: 1075.77 | F78: 1023.73 | G78: 974.12 | H78: 1177.42 | I78: 1227.03 | J78: 1279.07 | K78: 1175 | L78: 1073.35 | M78: 0.84086
A79: 69 | B79: BLISSGVS | C79: 205.7 | D79: 206.52 | E79: 203.48 | F79: 201.27 | G79: 198.23 | H79: 208.73 | I79: 211.77 | J79: 213.98 | K79: 209.55 | L79: 204.3 | M79: 5.34132
A80: 70 | B80: BLUEDART | C80: 4681.85 | D80: 4675.62 | E80: 4604.23 | F80: 4526.62 | G80: 4455.23 | H80: 4753.23 | I80: 4824.62 | J80: 4902.23 | K80: 4747 | L80: 4598 | M80: 0.15058
A81: 71 | B81: BLUESTARCO | C81: 751.2 | D81: 749.70 | E81: 732.80 | F81: 714.40 | G81: 697.50 | H81: 768.10 | I81: 785.00 | J81: 803.40 | K81: 766.6 | L81: 731.3 | M81: 0.21351
A82: 72 | B82: BOMDYEING | C82: 228.15 | D82: 229.95 | E82: 222.20 | F82: 216.25 | G82: 208.50 | H82: 235.90 | I82: 243.65 | J82: 249.60 | K82: 237.7 | L82: 224 | M82: 19.7949
A83: 73 | B83: BOSCHLTD | C83: 19400.25 | D83: 19452.10 | E83: 19239.25 | F83: 19078.25 | G83: 18865.40 | H83: 19613.10 | I83: 19825.95 | J83: 19986.95 | K83: 19664.95 | L83: 19291.1 | M83: 0.3459
A84: 74 | B84: BPCL | C84: 492.3 | D84: 489.75 | E84: 485.90 | F84: 479.50 | G84: 475.65 | H84: 496.15 | I84: 500.00 | J84: 506.40 | K84: 493.6 | L84: 483.35 | M84: 61.11327
A85: 75 | B85: BRITANNIA | C85: 4684.15 | D85: 4681.25 | E85: 4650.10 | F85: 4616.05 | G85: 4584.90 | H85: 4715.30 | I85: 4746.45 | J85: 4780.50 | K85: 4712.4 | L85: 4647.2 | M85: 0.71887
A86: 76 | B86: CADILAHC | C86: 425.8 | D86: 425.50 | E86: 420.60 | F86: 415.40 | G86: 410.50 | H86: 430.70 | I86: 435.60 | J86: 440.80 | K86: 430.4 | L86: 420.3 | M86: 12.40632
A87: 77 | B87: CANBK | C87: 341.35 | D87: 344.07 | E87: 336.13 | F87: 330.92 | G87: 322.98 | H87: 349.28 | I87: 357.22 | J87: 362.43 | K87: 352 | L87: 338.85 | M87: 25.26706
A88: 78 | B88: CANFINHOME | C88: 449.15 | D88: 448.62 | E88: 444.63 | F88: 440.12 | G88: 436.13 | H88: 453.13 | I88: 457.12 | J88: 461.63 | K88: 452.6 | L88: 444.1 | M88: 5.89263
A89: 79 | B89: CAPF | C89: 738.1 | D89: 739.78 | E89: 731.37 | F89: 724.63 | G89: 716.22 | H89: 746.52 | I89: 754.93 | J89: 761.67 | K89: 748.2 | L89: 733.05 | M89: 6.78722
A90: 80 | B90: CAPLIPOINT | C90: 589.85 | D90: 600.95 | E90: 572.90 | F90: 555.95 | G90: 527.90 | H90: 617.90 | I90: 645.95 | J90: 662.90 | K90: 629 | L90: 584 | M90: 0.78567
A91: 81 | B91: CARBORUNIV | C91: 370.35 | D91: 373.17 | E91: 364.33 | F91: 358.32 | G91: 349.48 | H91: 379.18 | I91: 388.02 | J91: 394.03 | K91: 382 | L91: 367.15 | M91: 1.02917
A92: 82 | B92: CARERATING | C92: 1361.15 | D92: 1360.68 | E92: 1346.47 | F92: 1331.78 | G92: 1317.57 | H92: 1375.37 | I92: 1389.58 | J92: 1404.27 | K92: 1374.9 | L92: 1346 | M92: 0.79059
A93: 83 | B93: CASTROLIND | C93: 185.4 | D93: 184.85 | E93: 182.55 | F93: 179.70 | G93: 177.40 | H93: 187.70 | I93: 190.00 | J93: 192.85 | K93: 187.15 | L93: 182 | M93: 29.4977
A94: 84 | B94: CCL | C94: 294.85 | D94: 293.18 | E94: 288.67 | F94: 282.48 | G94: 277.97 | H94: 299.37 | I94: 303.88 | J94: 310.07 | K94: 297.7 | L94: 287 | M94: 1.18233
A95: 85 | B95: CEATLTD | C95: 1820.85 | D95: 1830.95 | E95: 1797.90 | F95: 1774.95 | G95: 1741.90 | H95: 1853.90 | I95: 1886.95 | J95: 1909.90 | K95: 1864 | L95: 1808 | M95: 3.51894
A96: 86 | B96: CENTRALBK | C96: 73.05 | D96: 73.10 | E96: 72.45 | F96: 71.85 | G96: 71.20 | H96: 73.70 | I96: 74.35 | J96: 74.95 | K96: 73.75 | L96: 72.5 | M96: 1.97162
A97: 87 | B97: CENTURYPLY | C97: 321.15 | D97: 321.18 | E97: 313.37 | F97: 305.58 | G97: 297.77 | H97: 328.97 | I97: 336.78 | J97: 344.57 | K97: 329 | L97: 313.4 | M97: 1.9153
A98: 88 | B98: CENTURYTEX | C98: 1388.25 | D98: 1390.02 | E98: 1374.83 | F98: 1361.42 | G98: 1346.23 | H98: 1403.43 | I98: 1418.62 | J98: 1432.03 | K98: 1405.2 | L98: 1376.6 | M98: 4.2805
A99: 89 | B99: CERA | C99: 3472.85 | D99: 3481.98 | E99: 3440.97 | F99: 3409.08 | G99: 3368.07 | H99: 3513.87 | I99: 3554.88 | J99: 3586.77 | K99: 3523 | L99: 3450.1 | M99: 0.24709
A100: 90 | B100: CESC | C100: 1054.75 | D100: 1059.70 | E100: 1045.05 | F100: 1035.35 | G100: 1020.70 | H100: 1069.40 | I100: 1084.05 | J100: 1093.75 | K100: 1074.35 | L100: 1050 | M100: 2.60836
A101: 91 | B101: CGPOWER | C101: 90.9 | D101: 91.07 | E101: 90.13 | F101: 89.37 | G101: 88.43 | H101: 91.83 | I101: 92.77 | J101: 93.53 | K101: 92 | L101: 90.3 | M101: 36.26487
A102: 92 | B102: CHAMBLFERT | C102: 160.35 | D102: 158.65 | E102: 155.30 | F102: 150.25 | G102: 146.90 | H102: 163.70 | I102: 167.05 | J102: 172.10 | K102: 162 | L102: 153.6 | M102: 7.39353
A103: 93 | B103: CHENNPETRO | C103: 413.7 | D103: 416.13 | E103: 408.92 | F103: 404.13 | G103: 396.92 | H103: 420.92 | I103: 428.13 | J103: 432.92 | K103: 423.35 | L103: 411.35 | M103: 3.1017
A104: 94 | B104: CHOLAFIN | C104: 1286.05 | D104: 1295.67 | E104: 1266.43 | F104: 1246.82 | G104: 1217.58 | H104: 1315.28 | I104: 1344.52 | J104: 1364.13 | K104: 1324.9 | L104: 1276.05 | M104: 4.03468
A105: 95 | B105: CIPLA | C105: 592.15 | D105: 596.88 | E105: 585.27 | F105: 578.38 | G105: 566.77 | H105: 603.77 | I105: 615.38 | J105: 622.27 | K105: 608.5 | L105: 590 | M105: 12.64055
A106: 96 | B106: COALINDIA | C106: 299.55 | D106: 300.70 | E106: 296.85 | F106: 294.15 | G106: 290.30 | H106: 303.40 | I106: 307.25 | J106: 309.95 | K106: 304.55 | L106: 298 | M106: 51.98298
A107: 97 | B107: COFFEEDAY | C107: 318.9 | D107: 324.22 | E107: 311.63 | F107: 304.37 | G107: 291.78 | H107: 331.48 | I107: 344.07 | J107: 351.33 | K107: 336.8 | L107: 316.95 | M107: 2.93271
A108: 98 | B108: COLPAL | C108: 1121.35 | D108: 1126.67 | E108: 1111.33 | F108: 1101.32 | G108: 1085.98 | H108: 1136.68 | I108: 1152.02 | J108: 1162.03 | K108: 1142 | L108: 1116.65 | M108: 0.8692
A109: 99 | B109: CONCOR | C109: 1390.3 | D109: 1382.78 | E109: 1370.57 | F109: 1350.83 | G109: 1338.62 | H109: 1402.52 | I109: 1414.73 | J109: 1434.47 | K109: 1395 | L109: 1363.05 | M109: 3.12099
A110: 100 | B110: COROMANDEL | C110: 554.6 | D110: 545.98 | E110: 530.97 | F110: 507.33 | G110: 492.32 | H110: 569.62 | I110: 584.63 | J110: 608.27 | K110: 561 | L110: 522.35 | M110: 2.91288
A111: 101 | B111: CORPBANK | C111: 38.65 | D111: 38.70 | E111: 38.45 | F111: 38.25 | G111: 38.00 | H111: 38.90 | I111: 39.15 | J111: 39.35 | K111: 38.95 | L111: 38.5 | M111: 2.10433
A112: 102 | B112: COX&KINGS | C112: 249.75 | D112: 253.32 | E112: 243.68 | F112: 237.62 | G112: 227.98 | H112: 259.38 | I112: 269.02 | J112: 275.08 | K112: 262.95 | L112: 247.25 | M112: 1.68758
A113: 103 | B113: CRISIL | C113: 1938.55 | D113: 1936.92 | E113: 1924.38 | F113: 1910.22 | G113: 1897.68 | H113: 1951.08 | I113: 1963.62 | J113: 1977.78 | K113: 1949.45 | L113: 1922.75 | M113: 0.07538
A114: 104 | B114: CROMPTON | C114: 249.15 | D114: 244.48 | E114: 236.97 | F114: 224.78 | G114: 217.27 | H114: 256.67 | I114: 264.18 | J114: 276.37 | K114: 252 | L114: 232.3 | M114: 13.63969
A115: 105 | B115: CUB | C115: 158.7 | D115: 160.23 | E115: 156.47 | F115: 154.23 | G115: 150.47 | H115: 162.47 | I115: 166.23 | J115: 168.47 | K115: 164 | L115: 158 | M115: 8.05319
A116: 106 | B116: CUMMINSIND | C116: 903.9 | D116: 909.45 | E116: 894.50 | F116: 885.10 | G116: 870.15 | H116: 918.85 | I116: 933.80 | J116: 943.20 | K116: 924.4 | L116: 900.05 | M116: 2.12326
A117: 107 | B117: CYIENT | C117: 641.85 | D117: 639.08 | E117: 630.17 | F117: 618.48 | G117: 609.57 | H117: 650.77 | I117: 659.68 | J117: 671.37 | K117: 648 | L117: 627.4 | M117: 9.65938
A118: 108 | B118: DABUR | C118: 355.6 | D118: 354.35 | E118: 347.90 | F118: 340.20 | G118: 333.75 | H118: 362.05 | I118: 368.50 | J118: 376.20 | K118: 360.8 | L118: 346.65 | M118: 43.61853
A119: 109 | B119: DALMIABHA | C119: 2935.25 | D119: 2937.10 | E119: 2912.15 | F119: 2889.05 | G119: 2864.10 | H119: 2960.20 | I119: 2985.15 | J119: 3008.25 | K119: 2962.05 | L119: 2914 | M119: 1.73458
A120: 110 | B120: DBCORP | C120: 326.05 | D120: 328.55 | E120: 321.65 | F120: 317.25 | G120: 310.35 | H120: 332.95 | I120: 339.85 | J120: 344.25 | K120: 335.45 | L120: 324.15 | M120: 0.56261
A121: 111 | B121: DBL | C121: 909.75 | D121: 912.58 | E121: 896.17 | F121: 882.58 | G121: 866.17 | H121: 926.17 | I121: 942.58 | J121: 956.17 | K121: 929 | L121: 899 | M121: 2.16017
A122: 112 | B122: DBREALTY | C122: 61.1 | D122: 61.45 | E122: 59.50 | F122: 57.90 | G122: 55.95 | H122: 63.05 | I122: 65.00 | J122: 66.60 | K122: 63.4 | L122: 59.85 | M122: 9.33027
A123: 113 | B123: DCBBANK | C123: 173.45 | D123: 175.82 | E123: 170.18 | F123: 166.92 | G123: 161.28 | H123: 179.08 | I123: 184.72 | J123: 187.98 | K123: 181.45 | L123: 172.55 | M123: 10.62687
A124: 114 | B124: DCMSHRIRAM | C124: 572.8 | D124: 580.58 | E124: 562.22 | F124: 551.63 | G124: 533.27 | H124: 591.17 | I124: 609.53 | J124: 620.12 | K124: 598.95 | L124: 570 | M124: 1.33953
A125: 115 | B125: DEEPAKFERT | C125: 398.55 | D125: 397.08 | E125: 389.47 | F125: 380.38 | G125: 372.77 | H125: 406.17 | I125: 413.78 | J125: 422.87 | K125: 404.7 | L125: 388 | M125: 2.03904
A126: 116 | B126: DELTACORP | C126: 345.8 | D126: 350.27 | E126: 336.53 | F126: 327.27 | G126: 313.53 | H126: 359.53 | I126: 373.27 | J126: 382.53 | K126: 364 | L126: 341 | M126: 25.92157
A127: 117 | B127: DEN | C127: 110.5 | D127: 110.75 | E127: 108.35 | F127: 106.20 | G127: 103.80 | H127: 112.90 | I127: 115.30 | J127: 117.45 | K127: 113.15 | L127: 108.6 | M127: 4.45694
A128: 118 | B128: DENABANK | C128: 25.1 | D128: 25.12 | E128: 24.83 | F128: 24.57 | G128: 24.28 | H128: 25.38 | I128: 25.67 | J128: 25.93 | K128: 25.4 | L128: 24.85 | M128: 16.8809
A129: 119 | B129: DHANUKA | C129: 756.95 | D129: 762.25 | E129: 740.75 | F129: 724.55 | G129: 703.05 | H129: 778.45 | I129: 799.95 | J129: 816.15 | K129: 783.75 | L129: 746.05 | M129: 0.49191
A130: 120 | B130: DHFL | C130: 582.2 | D130: 584.77 | E130: 575.53 | F130: 568.87 | G130: 559.63 | H130: 591.43 | I130: 600.67 | J130: 607.33 | K130: 594 | L130: 578.1 | M130: 20.34304
A131: 121 | B131: DISHTV | C131: 75.2 | D131: 75.25 | E131: 74.60 | F131: 74.00 | G131: 73.35 | H131: 75.85 | I131: 76.50 | J131: 77.10 | K131: 75.9 | L131: 74.65 | M131: 33.97963
A132: 122 | B132: DIVISLAB | C132: 1039.4 | D132: 1042.77 | E132: 1005.63 | F132: 971.87 | G132: 934.73 | H132: 1076.53 | I132: 1113.67 | J132: 1147.43 | K132: 1079.9 | L132: 1009 | M132: 9.60918
A133: 123 | B133: DLF | C133: 250.1 | D133: 251.75 | E133: 245.90 | F133: 241.70 | G133: 235.85 | H133: 255.95 | I133: 261.80 | J133: 266.00 | K133: 257.6 | L133: 247.55 | M133: 63.09912
A134: 124 | B134: DREDGECORP | C134: 764.75 | D134: 746.75 | E134: 703.60 | F134: 642.45 | G134: 599.30 | H134: 807.90 | I134: 851.05 | J134: 912.20 | K134: 789.9 | L134: 685.6 | M134: 24.74569
A135: 125 | B135: DRREDDY | C135: 2225.35 | D135: 2245.02 | E135: 2183.88 | F135: 2142.42 | G135: 2081.28 | H135: 2286.48 | I135: 2347.62 | J135: 2389.08 | K135: 2306.15 | L135: 2203.55 | M135: 11.43907
A136: 126 | B136: ECLERX | C136: 1509.3 | D136: 1506.73 | E136: 1488.92 | F136: 1468.53 | G136: 1450.72 | H136: 1527.12 | I136: 1544.93 | J136: 1565.32 | K136: 1524.55 | L136: 1486.35 | M136: 1.61615
A137: 127 | B137: EDELWEISS | C137: 280.7 | D137: 283.23 | E137: 276.47 | F137: 272.23 | G137: 265.47 | H137: 287.47 | I137: 294.23 | J137: 298.47 | K137: 290 | L137: 279 | M137: 36.71514
A138: 128 | B138: EICHERMOT | C138: 26923.6 | D138: 26945.25 | E138: 26503.50 | F138: 26083.40 | G138: 25641.65 | H138: 27365.35 | I138: 27807.10 | J138: 28227.20 | K138: 27387 | L138: 26525.15 | M138: 1.37766
A139: 129 | B139: EIDPARRY | C139: 328.45 | D139: 328.83 | E139: 320.17 | F139: 311.88 | G139: 303.22 | H139: 337.12 | I139: 345.78 | J139: 354.07 | K139: 337.5 | L139: 320.55 | M139: 2.28555
A140: 130 | B140: EIHOTEL | C140: 191.3 | D140: 192.67 | E140: 186.13 | F140: 180.97 | G140: 174.43 | H140: 197.83 | I140: 204.37 | J140: 209.53 | K140: 199.2 | L140: 187.5 | M140: 2.69869
A141: 131 | B141: EMAMILTD | C141: 1124.75 | D141: 1125.32 | E141: 1105.73 | F141: 1086.72 | G141: 1067.13 | H141: 1144.33 | I141: 1163.92 | J141: 1182.93 | K141: 1144.9 | L141: 1106.3 | M141: 5.5766
A142: 132 | B142: ENDURANCE | C142: 1194.85 | D142: 1184.60 | E142: 1161.30 | F142: 1127.75 | G142: 1104.45 | H142: 1218.15 | I142: 1241.45 | J142: 1275.00 | K142: 1207.9 | L142: 1151.05 | M142: 1.22159
A143: 133 | B143: ENGINERSIN | C143: 177.5 | D143: 176.13 | E143: 173.27 | F143: 169.03 | G143: 166.17 | H143: 180.37 | I143: 183.23 | J143: 187.47 | K143: 179 | L143: 171.9 | M143: 41.22602
A144: 134 | B144: EQUITAS | C144: 148.35 | D144: 148.70 | E144: 146.05 | F144: 143.75 | G144: 141.10 | H144: 151.00 | I144: 153.65 | J144: 155.95 | K144: 151.35 | L144: 146.4 | M144: 23.66328
A145: 135 | B145: EROSMEDIA | C145: 202.2 | D145: 203.18 | E145: 199.07 | F145: 195.93 | G145: 191.82 | H145: 206.32 | I145: 210.43 | J145: 213.57 | K145: 207.3 | L145: 200.05 | M145: 4.90068
A146: 136 | B146: ESCORTS | C146: 811.75 | D146: 816.92 | E146: 791.83 | F146: 771.92 | G146: 746.83 | H146: 836.83 | I146: 861.92 | J146: 881.83 | K146: 842 | L146: 797 | M146: 29.53781
A147: 137 | B147: ESSELPACK | C147: 284.75 | D147: 286.35 | E147: 280.70 | F147: 276.65 | G147: 271.00 | H147: 290.40 | I147: 296.05 | J147: 300.10 | K147: 292 | L147: 282.3 | M147: 1.86229
A148: 138 | B148: EVEREADY | C148: 413.45 | D148: 411.17 | E148: 401.33 | F148: 389.22 | G148: 379.38 | H148: 423.28 | I148: 433.12 | J148: 445.23 | K148: 421 | L148: 399.05 | M148: 0.83797
A149: 139 | B149: EXIDEIND | C149: 223.35 | D149: 223.87 | E149: 219.68 | F149: 216.02 | G149: 211.83 | H149: 227.53 | I149: 231.72 | J149: 235.38 | K149: 228.05 | L149: 220.2 | M149: 20.45295
A150: 140 | B150: FCONSUMER | C150: 63.2 | D150: 63.77 | E150: 62.03 | F150: 60.87 | G150: 59.13 | H150: 64.93 | I150: 66.67 | J150: 67.83 | K150: 65.5 | L150: 62.6 | M150: 39.65934
A151: 141 | B151: FDC | C151: 230.7 | D151: 231.50 | E151: 226.20 | F151: 221.70 | G151: 216.40 | H151: 236.00 | I151: 241.30 | J151: 245.80 | K151: 236.8 | L151: 227 | M151: 0.58126
A152: 142 | B152: FEDERALBNK | C152: 100.45 | D152: 100.42 | E152: 98.93 | F152: 97.42 | G152: 95.93 | H152: 101.93 | I152: 103.42 | J152: 104.93 | K152: 101.9 | L152: 98.9 | M152: 103.62003
A153: 143 | B153: FINCABLES | C153: 735.05 | D153: 733.03 | E153: 722.07 | F153: 709.08 | G153: 698.12 | H153: 746.02 | I153: 756.98 | J153: 769.97 | K153: 744 | L153: 720.05 | M153: 0.63825
A154: 144 | B154: FINPIPE | C154: 646.6 | D154: 643.55 | E154: 637.25 | F154: 627.90 | G154: 621.60 | H154: 652.90 | I154: 659.20 | J154: 668.55 | K154: 649.85 | L154: 634.2 | M154: 0.28777
A155: 145 | B155: FMGOETZE | C155: 534.35 | D155: 540.43 | E155: 526.92 | F155: 519.48 | G155: 505.97 | H155: 547.87 | I155: 561.38 | J155: 568.82 | K155: 553.95 | L155: 533 | M155: 0.07084
A156: 146 | B156: FORTIS | C156: 139.05 | D156: 140.57 | E156: 133.63 | F156: 128.22 | G156: 121.28 | H156: 145.98 | I156: 152.92 | J156: 158.33 | K156: 147.5 | L156: 135.15 | M156: 189.45343
A157: 147 | B157: FSL | C157: 41 | D157: 41.35 | E157: 40.35 | F157: 39.70 | G157: 38.70 | H157: 42.00 | I157: 43.00 | J157: 43.65 | K157: 42.35 | L157: 40.7 | M157: 23.9955
A158: 148 | B158: GAIL | C158: 478.6 | D158: 477.93 | E158: 472.17 | F158: 465.73 | G158: 459.97 | H158: 484.37 | I158: 490.13 | J158: 496.57 | K158: 483.7 | L158: 471.5 | M158: 24.7012
A159: 149 | B159: GATI | C159: 130.3 | D159: 130.73 | E159: 128.02 | F159: 125.73 | G159: 123.02 | H159: 133.02 | I159: 135.73 | J159: 138.02 | K159: 133.45 | L159: 128.45 | M159: 13.21671
A160: 150 | B160: GAYAPROJ
A161: 151 | B161: GDL | C161: 229.15 | D161: 230.17 | E161: 227.08 | F161: 225.02 | G161: 221.93 | H161: 232.23 | I161: 235.32 | J161: 237.38 | K161: 233.25 | L161: 228.1 | M161: 2.78148
A162: 152 | B162: GEPIL | C162: 939.7 | D162: 935.18 | E162: 925.52 | F162: 911.33 | G162: 901.67 | H162: 949.37 | I162: 959.03 | J162: 973.22 | K162: 944.85 | L162: 921 | M162: 0.14125
A163: 153 | B163: GESHIP | C163: 401.25 | D163: 403.18 | E163: 397.67 | F163: 394.08 | G163: 388.57 | H163: 406.77 | I163: 412.28 | J163: 415.87 | K163: 408.7 | L163: 399.6 | M163: 0.35892
A164: 154 | B164: GET&D | C164: 431.6 | D164: 423.60 | E164: 411.05 | F164: 390.50 | G164: 377.95 | H164: 444.15 | I164: 456.70 | J164: 477.25 | K164: 436.15 | L164: 403.05 | M164: 1.19617
A165: 155 | B165: GHCL | C165: 308.65 | D165: 312.55 | E165: 300.10 | F165: 291.55 | G165: 279.10 | H165: 321.10 | I165: 333.55 | J165: 342.10 | K165: 325 | L165: 304 | M165: 7.92269
A166: 156 | B166: GILLETTE | C166: 6554.75 | D166: 6595.53 | E166: 6492.27 | F166: 6429.78 | G166: 6326.52 | H166: 6658.02 | I166: 6761.28 | J166: 6823.77 | K166: 6698.8 | L166: 6533.05 | M166: 0.10575
A167: 157 | B167: GLAXO | C167: 2460.6 | D167: 2455.38 | E167: 2442.22 | F167: 2423.83 | G167: 2410.67 | H167: 2473.77 | I167: 2486.93 | J167: 2505.32 | K167: 2468.55 | L167: 2437 | M167: 0.10599
A168: 158 | B168: GLENMARK | C168: 606.2 | D168: 607.40 | E168: 600.05 | F168: 593.90 | G168: 586.55 | H168: 613.55 | I168: 620.90 | J168: 627.05 | K168: 614.75 | L168: 601.25 | M168: 6.67577
A169: 159 | B169: GMDCLTD | C169: 146.9 | D169: 147.27 | E169: 144.73 | F169: 142.57 | G169: 140.03 | H169: 149.43 | I169: 151.97 | J169: 154.13 | K169: 149.8 | L169: 145.1 | M169: 1.57892
A170: 160 | B170: GMRINFRA | C170: 21.75 | D170: 21.93 | E170: 21.37 | F170: 20.98 | G170: 20.42 | H170: 22.32 | I170: 22.88 | J170: 23.27 | K170: 22.5 | L170: 21.55 | M170: 406.44926
A171: 161 | B171: GNFC | C171: 480.15 | D171: 477.65 | E171: 469.30 | F171: 458.45 | G171: 450.10 | H171: 488.50 | I171: 496.85 | J171: 507.70 | K171: 486 | L171: 466.8 | M171: 11.63542
A172: 162 | B172: GODFRYPHLP | C172: 922.7 | D172: 931.12 | E172: 908.58 | F172: 894.47 | G172: 871.93 | H172: 945.23 | I172: 967.77 | J172: 981.88 | K172: 953.65 | L172: 917 | M172: 0.99428
A173: 163 | B173: GODREJCP | C173: 1053.4 | D173: 1056.15 | E173: 1040.35 | F173: 1027.30 | G173: 1011.50 | H173: 1069.20 | I173: 1085.00 | J173: 1098.05 | K173: 1071.95 | L173: 1043.1 | M173: 23.53345
A174: 164 | B174: GODREJIND | C174: 607.5 | D174: 605.65 | E174: 598.30 | F174: 589.10 | G174: 581.75 | H174: 614.85 | I174: 622.20 | J174: 631.40 | K174: 613 | L174: 596.45 | M174: 5.92098
A175: 165 | B175: GODREJPROP | C175: 799.6 | D175: 800.87 | E175: 791.83 | F175: 784.07 | G175: 775.03 | H175: 808.63 | I175: 817.67 | J175: 825.43 | K175: 809.9 | L175: 793.1 | M175: 1.63075
A176: 166 | B176: GPPL | C176: 144.1 | D176: 143.40 | E176: 141.00 | F176: 137.90 | G176: 135.50 | H176: 146.50 | I176: 148.90 | J176: 152.00 | K176: 145.8 | L176: 140.3 | M176: 2.35724
A177: 167 | B177: GRANULES | C177: 132.25 | D177: 132.33 | E177: 130.77 | F177: 129.28 | G177: 127.72 | H177: 133.82 | I177: 135.38 | J177: 136.87 | K177: 133.9 | L177: 130.85 | M177: 15.69827
A178: 168 | B178: GRASIM | C178: 1160.05 | D178: 1156.92 | E178: 1145.88 | F178: 1131.72 | G178: 1120.68 | H178: 1171.08 | I178: 1182.12 | J178: 1196.28 | K178: 1167.95 | L178: 1142.75 | M178: 4.82212
A179: 169 | B179: GREAVESCOT | C179: 138.5 | D179: 138.85 | E179: 137.15 | F179: 135.80 | G179: 134.10 | H179: 140.20 | I179: 141.90 | J179: 143.25 | K179: 140.55 | L179: 137.5 | M179: 4.23351
A180: 170 | B180: GREENPLY | C180: 344.3 | D180: 349.62 | E180: 336.68 | F180: 329.07 | G180: 316.13 | H180: 357.23 | I180: 370.17 | J180: 377.78 | K180: 362.55 | L180: 342 | M180: 0.50791
A181: 171 | B181: GRINDWELL | C181: 516.65 | D181: 521.72 | E181: 505.93 | F181: 495.22 | G181: 479.43 | H181: 532.43 | I181: 548.22 | J181: 558.93 | K181: 537.5 | L181: 511 | M181: 0.28694
A182: 172 | B182: GRUH | C182: 584.85 | D182: 581.33 | E182: 569.47 | F182: 554.08 | G182: 542.22 | H182: 596.72 | I182: 608.58 | J182: 623.97 | K182: 593.2 | L182: 565.95 | M182: 6.41058
A183: 173 | B183: GSFC | C183: 144.7 | D183: 144.50 | E183: 142.50 | F183: 140.30 | G183: 138.30 | H183: 146.70 | I183: 148.70 | J183: 150.90 | K183: 146.5 | L183: 142.3 | M183: 14.67465
A184: 174 | B184: GSKCONS | C184: 6642.65 | D184: 6686.22 | E184: 6432.43 | F184: 6222.22 | G184: 5968.43 | H184: 6896.43 | I184: 7150.22 | J184: 7360.43 | K184: 6940 | L184: 6476 | M184: 0.19756
A185: 175 | B185: GSPL | C185: 202.85 | D185: 202.93 | E185: 201.02 | F185: 199.18 | G185: 197.27 | H185: 204.77 | I185: 206.68 | J185: 208.52 | K185: 204.85 | L185: 201.1 | M185: 3.28545
A186: 176 | B186: GUJALKALI | C186: 752.2 | D186: 759.07 | E186: 742.33 | F186: 732.47 | G186: 715.73 | H186: 768.93 | I186: 785.67 | J186: 795.53 | K186: 775.8 | L186: 749.2 | M186: 0.75604
A187: 177 | B187: GUJFLUORO | C187: 833.2 | D187: 836.08 | E187: 822.17 | F187: 811.13 | G187: 797.22 | H187: 847.12 | I187: 861.03 | J187: 872.07 | K187: 850 | L187: 825.05 | M187: 0.53317
A188: 178 | B188: GUJGASLTD | C188: 835.75 | D188: 841.80 | E188: 818.60 | F188: 801.45 | G188: 778.25 | H188: 858.95 | I188: 882.15 | J188: 899.30 | K188: 865 | L188: 824.65 | M188: 0.3017
A189: 179 | B189: GULFOILLUB | C189: 900.6 | D189: 903.52 | E189: 889.13 | F189: 877.67 | G189: 863.28 | H189: 914.98 | I189: 929.37 | J189: 940.83 | K189: 917.9 | L189: 892.05 | M189: 0.13025
A190: 180 | B190: HATHWAY | C190: 40.25 | D190: 40.48 | E190: 39.37 | F190: 38.48 | G190: 37.37 | H190: 41.37 | I190: 42.48 | J190: 43.37 | K190: 41.6 | L190: 39.6 | M190: 8.26208
A191: 181 | B191: HAVELLS | C191: 522.35 | D191: 526.82 | E191: 513.63 | F191: 504.92 | G191: 491.73 | H191: 535.53 | I191: 548.72 | J191: 557.43 | K191: 540 | L191: 518.1 | M191: 72.90911
A192: 182 | B192: HCC | C192: 39.3 | D192: 39.38 | E192: 38.67 | F192: 38.03 | G192: 37.32 | H192: 40.02 | I192: 40.73 | J192: 41.37 | K192: 40.1 | L192: 38.75 | M192: 91.50088
A193: 183 | B193: HCL-INSYS | C193: 53.7 | D193: 53.95 | E193: 53.00 | F193: 52.30 | G193: 51.35 | H193: 54.65 | I193: 55.60 | J193: 56.30 | K193: 54.9 | L193: 53.25 | M193: 19.14382
A194: 184 | B194: HCLTECH | C194: 986.55 | D194: 995.38 | E194: 972.87 | F194: 959.18 | G194: 936.67 | H194: 1009.07 | I194: 1031.58 | J194: 1045.27 | K194: 1017.9 | L194: 981.7 | M194: 16.10572
A195: 185 | B195: HDFC | C195: 1956.3 | D195: 1945.78 | E195: 1928.52 | F195: 1900.73 | G195: 1883.47 | H195: 1973.57 | I195: 1990.83 | J195: 2018.62 | K195: 1963.05 | L195: 1918 | M195: 36.65385
A196: 186 | B196: HDFCBANK | C196: 2005.7 | D196: 2002.07 | E196: 1990.63 | F196: 1975.57 | G196: 1964.13 | H196: 2017.13 | I196: 2028.57 | J196: 2043.63 | K196: 2013.5 | L196: 1987 | M196: 17.35837
A197: 187 | B197: HDIL | C197: 57.85 | D197: 58.22 | E197: 56.98 | F197: 56.12 | G197: 54.88 | H197: 59.08 | I197: 60.32 | J197: 61.18 | K197: 59.45 | L197: 57.35 | M197: 104.31969
A198: 188 | B198: HEIDELBERG | C198: 155.9 | D198: 155.72 | E198: 153.68 | F198: 151.47 | G198: 149.43 | H198: 157.93 | I198: 159.97 | J198: 162.18 | K198: 157.75 | L198: 153.5 | M198: 1.13921
A199: 189 | B199: HEROMOTOCO | C199: 3691.45 | D199: 3707.12 | E199: 3666.33 | F199: 3641.22 | G199: 3600.43 | H199: 3732.23 | I199: 3773.02 | J199: 3798.13 | K199: 3747.9 | L199: 3682 | M199: 5.58327
A200: 190 | B200: HEXAWARE | C200: 381.4 | D200: 380.68 | E200: 375.37 | F200: 369.33 | G200: 364.02 | H200: 386.72 | I200: 392.03 | J200: 398.07 | K200: 386 | L200: 374.65 | M200: 11.89566
A201: 191 | B201: HFCL | C201: 29.2 | D201: 29.27 | E201: 28.53 | F201: 27.87 | G201: 27.13 | H201: 29.93 | I201: 30.67 | J201: 31.33 | K201: 30 | L201: 28.6 | M201: 59.83811
A202: 192 | B202: HIMATSEIDE | C202: 350.9 | D202: 353.58 | E202: 342.52 | F202: 334.13 | G202: 323.07 | H202: 361.97 | I202: 373.03 | J202: 381.42 | K202: 364.65 | L202: 345.2 | M202: 2.48871
A203: 193 | B203: HINDALCO | C203: 256.15 | D203: 257.12 | E203: 251.03 | F203: 245.92 | G203: 239.83 | H203: 262.23 | I203: 268.32 | J203: 273.43 | K203: 263.2 | L203: 252 | M203: 175.14495
A204: 194 | B204: HINDCOPPER | C204: 85 | D204: 84.92 | E204: 83.08 | F204: 81.17 | G204: 79.33 | H204: 86.83 | I204: 88.67 | J204: 90.58 | K204: 86.75 | L204: 83 | M204: 30.85286
A205: 195 | B205: HINDPETRO | C205: 397.7 | D205: 395.52 | E205: 390.38 | F205: 383.07 | G205: 377.93 | H205: 402.83 | I205: 407.97 | J205: 415.28 | K205: 400.65 | L205: 388.2 | M205: 69.75667
A206: 196 | B206: HINDUNILVR | C206: 1369.35 | D206: 1377.32 | E206: 1354.63 | F206: 1339.92 | G206: 1317.23 | H206: 1392.03 | I206: 1414.72 | J206: 1429.43 | K206: 1400 | L206: 1362.6 | M206: 14.91912
... 294 more rows

Sheet Bulk Deals
E6: Back To Main Page
A7: Subject : | B7: BULK DEAL | D7: =Main!B10 -> 2018-02-01
A9: Date | B9: Scrip code | C9: Scrip Name | D9: Client Name | E9: Buy / Sell | F9: Quantity Traded | G9: Trade Price / Wt.Avg.trade price | H9: Exchange
A10: 2018-01-31 | B10: 538465 | C10: AMARSEC | D10: ORIOU CAPITAL LLP | E10: BUY | F10: 25,100 | G10: 40.72 | H10: BSE
A11: 2018-01-31 | B11: 538465 | C11: AMARSEC | D11: OMKAR PRAVIN HERLEKAR | E11: SELL | F11: 25,000 | G11: 40.72 | H11: BSE
A12: 2018-01-31 | B12: 540697 | C12: AMFL | D12: SHAH RAKSHIT MAHENDRABHAI (HUF) | E12: SELL | F12: 200,000 | G12: 21.4 | H12: BSE
A13: 2018-01-31 | B13: 540697 | C13: AMFL | D13: RAKSHIT MAHENDRA SHAH | E13: SELL | F13: 128,000 | G13: 21.16 | H13: BSE
A14: 2018-01-31 | B14: 540697 | C14: AMFL | D14: PINALBEN R. SHAH | E14: SELL | F14: 304,000 | G14: 21.38 | H14: BSE
A15: 2018-01-31 | B15: 540697 | C15: AMFL | D15: VIVIDOFFSET PRINTERS PRIVATELIMITED | E15: BUY | F15: 72,000 | G15: 20.22 | H15: BSE
A16: 2018-01-31 | B16: 540697 | C16: AMFL | D16: MANOJ CHHAGANLAL RATHOD HUF | E16: BUY | F16: 680,000 | G16: 21.4 | H16: BSE
A17: 2018-01-31 | B17: 538716 | C17: ARYACAPM | D17: SUSHIL KUMAR SHARMA | E17: BUY | F17: 80,000 | G17: 25 | H17: BSE
A18: 2018-01-31 | B18: 538716 | C18: ARYACAPM | D18: KANODIA GROUP | E18: SELL | F18: 120,000 | G18: 25 | H18: BSE
A19: 2018-01-31 | B19: 540006 | C19: BULL | D19: BABUBHAI PURUSHOTTAMDAS STOCK BROKERS PVT LTD | E19: SELL | F19: 36,000 | G19: 40.54 | H19: BSE
A20: 2018-01-31 | B20: 540006 | C20: BULL | D20: BHARTI MUKESH SAMPAT | E20: BUY | F20: 20,000 | G20: 40.18 | H20: BSE
A21: 2018-01-31 | B21: 540903 | C21: CRPRISK | D21: ELITE ACCFIN SOLUTIONS PRIVATE LIMITED | E21: SELL | F21: 412,000 | G21: 55.76 | H21: BSE
A22: 2018-01-31 | B22: 540903 | C22: CRPRISK | D22: ELITE ACCFIN SOLUTIONS PRIVATE LIMITED | E22: BUY | F22: 494,000 | G22: 54.84 | H22: BSE
A23: 2018-01-31 | B23: 540903 | C23: CRPRISK | D23: SANJAY KUMAR SINGHAL | E23: BUY | F23: 220,000 | G23: 55.42 | H23: BSE
A24: 2018-01-31 | B24: 540903 | C24: CRPRISK | D24: MAYUR MAHESHKUMAR PANCHAL | E24: BUY | F24: 176,000 | G24: 56.25 | H24: BSE
A25: 2018-01-31 | B25: 540903 | C25: CRPRISK | D25: JAY KAMLESHBHAI BHAVSAR | E25: BUY | F25: 178,000 | G25: 55.09 | H25: BSE
A26: 2018-01-31 | B26: 540903 | C26: CRPRISK | D26: HITESHBHAI MISTRI | E26: BUY | F26: 178,000 | G26: 56.07 | H26: BSE
A27: 2018-01-31 | B27: 540903 | C27: CRPRISK | D27: HANS METALS LIMITED | E27: SELL | F27: 444,000 | G27: 53.43 | H27: BSE
A28: 2018-01-31 | B28: 540903 | C28: CRPRISK | D28: HANS METALS LIMITED | E28: BUY | F28: 444,000 | G28: 52.5 | H28: BSE
A29: 2018-01-31 | B29: 540903 | C29: CRPRISK | D29: AMRUTLAL VANMALIDAS SHAH | E29: BUY | F29: 270,000 | G29: 54.4 | H29: BSE
A30: 2018-01-31 | B30: 540903 | C30: CRPRISK | D30: SHETH BROTHER | E30: SELL | F30: 108,000 | G30: 53.19 | H30: BSE
A31: 2018-01-31 | B31: 540903 | C31: CRPRISK | D31: SHETH BROTHER | E31: BUY | F31: 108,000 | G31: 52.7 | H31: BSE
A32: 2018-01-31 | B32: 540361 | C32: DANUBE | D32: S N SHAH (HUF) | E32: BUY | F32: 142,861 | G32: 4.16 | H32: BSE
A33: 2018-01-31 | B33: 539770 | C33: DARJEELING | D33: SHASHIKANT CHINUBHAI KAPADIA | E33: BUY | F33: 51,600 | G33: 15.3 | H33: BSE
A34: 2018-01-31 | B34: 539770 | C34: DARJEELING | D34: AVNI MERCHANTS PRIVATE LIMITED | E34: SELL | F34: 40,000 | G34: 15.3 | H34: BSE
A35: 2018-01-31 | B35: 539884 | C35: DARSHANORNA | D35: MANOJ CHHAGANLAL RATHOD HUF | E35: BUY | F35: 26,000 | G35: 197 | H35: BSE
A36: 2018-01-31 | B36: 590031 | C36: DENORA | D36: AASHYA FINCOM | E36: SELL | F36: 33,813 | G36: 370.28 | H36: BSE
A37: 2018-01-31 | B37: 590031 | C37: DENORA | D37: AASHYA FINCOM | E37: BUY | F37: 33,813 | G37: 375.63 | H37: BSE
A38: 2018-01-31 | B38: 590031 | C38: DENORA | D38: ESSAR TRADING COMPANY | E38: SELL | F38: 37,152 | G38: 375.63 | H38: BSE
A39: 2018-01-31 | B39: 590031 | C39: DENORA | D39: ESSAR TRADING COMPANY | E39: BUY | F39: 37,152 | G39: 378.27 | H39: BSE
A40: 2018-01-31 | B40: 538653 | C40: EML | D40: BHAVISHYA ECOMMERCE PRIVATE LIMITED . | E40: SELL | F40: 227,000 | G40: 71.8 | H40: BSE
A41: 2018-01-31 | B41: 538653 | C41: EML | D41: BHAVISHYA ECOMMERCE PRIVATE LIMITED . | E41: BUY | F41: 2,000 | G41: 71.85 | H41: BSE
A42: 2018-01-31 | B42: 538653 | C42: EML | D42: JAY KAMLESHBHAI BHAVSAR | E42: SELL | F42: 361,613 | G42: 71.85 | H42: BSE
A43: 2018-01-31 | B43: 538653 | C43: EML | D43: JAY KAMLESHBHAI BHAVSAR | E43: BUY | F43: 333,045 | G43: 71.8 | H43: BSE
A44: 2018-01-31 | B44: 538653 | C44: EML | D44: MALAY SHAILESHBHAI PATEL | E44: SELL | F44: 75,000 | G44: 71.8 | H44: BSE
A45: 2018-01-31 | B45: 500136 | C45: ESTER | D45: GARNET INTERNATIONAL LIMITED | E45: SELL | F45: 651,000 | G45: 74 | H45: BSE
A46: 2018-01-31 | B46: 539169 | C46: FUNNY | D46: NINJA HEALTHCARE LIMITED | E46: SELL | F46: 330,000 | G46: 9.21 | H46: BSE
A47: 2018-01-31 | B47: 539169 | C47: FUNNY | D47: DJ YATAYAT PRIVATE LIMITED | E47: SELL | F47: 171,856 | G47: 9.21 | H47: BSE
A48: 2018-01-31 | B48: 539169 | C48: FUNNY | D48: SAMUDHITA SALES PRIVATE LIMITED | E48: SELL | F48: 184,564 | G48: 9.21 | H48: BSE
A49: 2018-01-31 | B49: 539169 | C49: FUNNY | D49: GOLDENSIGHT VINIMAY PRIVATE LIMITED | E49: SELL | F49: 117,705 | G49: 9.21 | H49: BSE
A50: 2018-01-31 | B50: 539169 | C50: FUNNY | D50: ARTVIEW VINTRADE PRIVATE LIMITED | E50: SELL | F50: 178,733 | G50: 9.21 | H50: BSE
A51: 2018-01-31 | B51: 539169 | C51: FUNNY | D51: DHANLAXMI BUILDERS AND DEVELOPERS PRIVATE LIMITED | E51: SELL | F51: 156,612 | G51: 9.21 | H51: BSE
A52: 2018-01-31 | B52: 539169 | C52: FUNNY | D52: DHANLAXMI BUILDERS AND DEVELOPERS PRIVATE LIMITED | E52: BUY | F52: 174,048 | G52: 9.2 | H52: BSE
A53: 2018-01-31 | B53: 517354 | C53: HAVELLS | D53: SURJIT KUMAR GUPTA | E53: SELL | F53: 4,000,000 | G53: 517.58 | H53: BSE
A54: 2018-01-31 | B54: 517354 | C54: HAVELLS | D54: VINOD GUPTA | E54: SELL | F54: 8,500,000 | G54: 518.07 | H54: BSE
A55: 2018-01-31 | B55: 517354 | C55: HAVELLS | D55: SBI MUTUAL FUND | E55: BUY | F55: 4,520,000 | G55: 517 | H55: BSE
A56: 2018-01-31 | B56: 514043 | C56: HIMATSEIDE | D56: ANURADHA HIMATSINGKA | E56: SELL | F56: 746,000 | G56: 355 | H56: BSE
A57: 2018-01-31 | B57: 514043 | C57: HIMATSEIDE | D57: VIKRAM HIMATSINGKA | E57: BUY | F57: 746,000 | G57: 355 | H57: BSE
A58: 2018-01-31 | B58: 531968 | C58: IITLPROJ | D58: TANVI FINCAP PRIVATE LIMITED | E58: BUY | F58: 125,000 | G58: 21 | H58: BSE
A59: 2018-01-31 | B59: 531968 | C59: IITLPROJ | D59: RAKSHIT BUILDCON PRIVATE LIMITED | E59: SELL | F59: 90,032 | G59: 21 | H59: BSE
A60: 2018-01-31 | B60: 531968 | C60: IITLPROJ | D60: HANSABEN DIPAKBHAI PUJARA | E60: SELL | F60: 34,968 | G60: 21 | H60: BSE
A61: 2018-01-31 | B61: 540394 | C61: JDML | D61: DOSHI HETAL S | E61: BUY | F61: 33,000 | G61: 41.51 | H61: BSE
A62: 2018-01-31 | B62: 540394 | C62: JDML | D62: HIMA HIREN SHAH | E62: SELL | F62: 33,000 | G62: 41.51 | H62: BSE
A63: 2018-01-31 | B63: 539679 | C63: KAPILRAJ | D63: AKRAM DUSHANI | E63: SELL | F63: 31,563 | G63: 42.28 | H63: BSE
A64: 2018-01-31 | B64: 539679 | C64: KAPILRAJ | D64: AKRAM DUSHANI | E64: BUY | F64: 31,563 | G64: 41.78 | H64: BSE
A65: 2018-01-31 | B65: 539679 | C65: KAPILRAJ | D65: DEEPAK PARSHARAM SALVI | E65: SELL | F65: 78,730 | G65: 42.3 | H65: BSE
A66: 2018-01-31 | B66: 539679 | C66: KAPILRAJ | D66: BINDU DINESH SHAH | E66: SELL | F66: 35,000 | G66: 42.2 | H66: BSE
A67: 2018-01-31 | B67: 539679 | C67: KAPILRAJ | D67: CHIRAG BHARAT HUF | E67: SELL | F67: 29,649 | G67: 41.47 | H67: BSE
A68: 2018-01-31 | B68: 539679 | C68: KAPILRAJ | D68: CHIRAG BHARAT HUF | E68: BUY | F68: 29,649 | G68: 42.24 | H68: BSE
A69: 2018-01-31 | B69: 539679 | C69: KAPILRAJ | D69: AJAY DHIRAJLAL NATHWANI | E69: SELL | F69: 120,327 | G69: 42.23 | H69: BSE
A70: 2018-01-31 | B70: 539679 | C70: KAPILRAJ | D70: AJAY DHIRAJLAL NATHWANI | E70: BUY | F70: 145,359 | G70: 41.94 | H70: BSE
A71: 2018-01-31 | B71: 539679 | C71: KAPILRAJ | D71: KHIMJIBHAI MONABHAI SUTARIYA | E71: SELL | F71: 35,000 | G71: 42.3 | H71: BSE
A72: 2018-01-31 | B72: 539679 | C72: KAPILRAJ | D72: RAMESHBHAI PRAGAJIBHAI LIMBASIYA | E72: BUY | F72: 33,000 | G72: 42.2 | H72: BSE
A73: 2018-01-31 | B73: 539679 | C73: KAPILRAJ | D73: BP FINTRADE PRIVATE LIMITED | E73: SELL | F73: 49,676 | G73: 42.09 | H73: BSE
A74: 2018-01-31 | B74: 539679 | C74: KAPILRAJ | D74: BP FINTRADE PRIVATE LIMITED | E74: BUY | F74: 57,176 | G74: 42.3 | H74: BSE
A75: 2018-01-31 | B75: 535136 | C75: KFL | D75: GANESH RAMESH NIBE | E75: BUY | F75: 135,000 | G75: 7.34 | H75: BSE
A76: 2018-01-31 | B76: 535136 | C76: KFL | D76: SUDHA HARISH CHANDAK | E76: SELL | F76: 136,000 | G76: 7.34 | H76: BSE
A77: 2018-01-31 | B77: 535730 | C77: KHOOBSURAT | D77: KATHAKALI VINCOM PVT LTD | E77: SELL | F77: 800,000 | G77: 0.5 | H77: BSE
A78: 2018-01-31 | B78: 500264 | C78: MAFATIND | D78: MINAL BHARAT PATEL | E78: SELL | F78: 109,774 | G78: 324 | H78: BSE
A79: 2018-01-31 | B79: 505850 | C79: MANCREDIT | D79: DHAKAD PROPERTIES AND FINANCIAL SERVICE PRIVATE LIMITED | E79: BUY | F79: 1000000 | G79: 4.01 | H79: BSE
A80: 2018-01-31 | B80: 532621 | C80: MORARJEE | D80: RUCHIT BHARAT PATEL | E80: BUY | F80: 1456779 | G80: 56.5 | H80: BSE
A81: 2018-01-31 | B81: 532621 | C81: MORARJEE | D81: MINAL BHARAT PATEL | E81: SELL | F81: 1453322 | G81: 56.5 | H81: BSE
A82: 2018-01-31 | B82: 540698 | C82: NEL | D82: SUNIYOJIT MERCHANTS PRIVATE LIMITED | E82: SELL | F82: 120000 | G82: 9.25 | H82: BSE
A83: 2018-01-31 | B83: 540698 | C83: NEL | D83: AMIT AGARWAL HUF | E83: BUY | F83: 48000 | G83: 9.25 | H83: BSE
A84: 2018-01-31 | B84: 540698 | C84: NEL | D84: AMIT RAJENDRA PRASAD AGARWAL | E84: BUY | F84: 72000 | G84: 9.25 | H84: BSE
A85: 2018-01-31 | B85: 538547 | C85: OASIS | D85: OPG SECURITIES P LTD | E85: SELL | F85: 60000 | G85: 75.22 | H85: BSE
A86: 2018-01-31 | B86: 506852 | C86: PACL | D86: IDBI BANK LIMITED | E86: SELL | F86: 223946 | G86: 22.25 | H86: BSE
A87: 2018-01-31 | B87: 540796 | C87: RATNABHUMI | D87: ARYAMAN BROKING LIMITED | E87: SELL | F87: 80000 | G87: 32.5 | H87: BSE
A88: 2018-01-31 | B88: 540715 | C88: SAGAR | D88: MERIT CREDIT CORPORATION LIMITED | E88: BUY | F88: 240000 | G88: 41.49 | H88: BSE
A89: 2018-01-31 | B89: 540715 | C89: SAGAR | D89: SHERWOOD SECURITIES PVT LTD | E89: SELL | F89: 141000 | G89: 41.48 | H89: BSE
A90: 2018-01-31 | B90: 540715 | C90: SAGAR | D90: SHERWOOD SECURITIES PVT LTD | E90: BUY | F90: 3000 | G90: 38.5 | H90: BSE
A91: 2018-01-31 | B91: 540715 | C91: SAGAR | D91: JACKPOT VINTRADE PRIVATE LIMITED | E91: SELL | F91: 99000 | G91: 41.5 | H91: BSE
A92: 2018-01-31 | B92: 539520 | C92: SHAILJA | D92: HITESH KUMAR | E92: BUY | F92: 29650 | G92: 12.1 | H92: BSE
A93: 2018-01-31 | B93: 539520 | C93: SHAILJA | D93: RAJNISH TIWARI | E93: SELL | F93: 29650 | G93: 12.1 | H93: BSE
A94: 2018-01-31 | B94: 590030 | C94: SPIC | D94: MINAL BHARAT PATEL | E94: SELL | F94: 6720378 | G94: 44.05 | H94: BSE
A95: 2018-01-31 | B95: 590030 | C95: SPIC | D95: HARDIK BHARAT PATEL | E95: BUY | F95: 6720378 | G95: 44.05 | H95: BSE
A96: 2018-01-31 | B96: 535141 | C96: SRDL | D96: JAY KAMLESHBHAI BHAVSAR | E96: SELL | F96: 446753 | G96: 13.93 | H96: BSE
A97: 2018-01-31 | B97: 535141 | C97: SRDL | D97: JAY KAMLESHBHAI BHAVSAR | E97: BUY | F97: 1843811 | G97: 14.69 | H97: BSE
A98: 2018-01-31 | B98: 533569 | C98: SRSLTD | D98: PARAMI INVESTMENTS PVT. LTD. | E98: SELL | F98: 1500000 | G98: 1.36 | H98: BSE
A99: 2018-01-31 | B99: 540108 | C99: TAHL | D99: MAMTA S SHANBHAG | E99: SELL | F99: 16039 | G99: 18.02 | H99: BSE
A100: 2018-01-31 | B100: 540108 | C100: TAHL | D100: MAMTA S SHANBHAG | E100: BUY | F100: 510 | G100: 17.75 | H100: BSE
A101: 2018-01-31 | B101: 531574 | C101: VASINFRA | D101: SUNDEEP RAJPAL CHHABRA | E101: BUY | F101: 337000 | G101: 13.57 | H101: BSE
A102: 2018-01-31 | B102: 531574 | C102: VASINFRA | D102: SIVANANADAN NANU | E102: SELL | F102: 330000 | G102: 13.57 | H102: BSE
A103: 2018-01-31 | B103: APOLLO | C103: Apollo Micro Systems Ltd | D103: BOI AXA MUTUAL FUND - MIDCAP EQUITY AND DEBT FUND | E103: BUY | F103: 151000 | G103: 331.06 | H103: NSE
A104: 2018-01-31 | B104: DENORA | C104: De Nora India Limited | D104: AASHYA FINCOM | E104: BUY | F104: 27463 | G104: 369.04 | H104: NSE
A105: 2018-01-31 | B105: DENORA | C105: De Nora India Limited | D105: ESSAR TRADING COMPANY | E105: BUY | F105: 32560 | G105: 374.94 | H105: NSE
A106: 2018-01-31 | B106: DENORA | C106: De Nora India Limited | D106: RAVINDER SINDHU (HUF) | E106: BUY | F106: 28849 | G106: 377.24 | H106: NSE
A107: 2018-01-31 | B107: EMAMIINFRA | C107: Emami Infrastructure Ltd | D107: FINETHICAL TRADING PVT LTD | E107: BUY | F107: 150000 | G107: 324.17 | H107: NSE
A108: 2018-01-31 | B108: ESTER | C108: Ester Industries Ltd | D108: KIFS ENTERPRISE | E108: BUY | F108: 500000 | G108: 73.35 | H108: NSE
A109: 2018-01-31 | B109: INNOVATIVE | C109: Innovative Tyres & Tubes | D109: GOLDMINE STOCKS PRIVATE LIMITED | E109: BUY | F109: 6000 | G109: 56.6 | H109: NSE
A110: 2018-01-31 | B110: INNOVATIVE | C110: Innovative Tyres & Tubes | D110: PURITY TRADEMAX LLP | E110: BUY | F110: 165000 | G110: 57.81 | H110: NSE
A111: 2018-01-31 | B111: JALAN | C111: Jalan Transolu. India Ltd | D111: ALOK KUMAR | E111: BUY | F111: 210000 | G111: 50 | H111: NSE
A112: 2018-01-31 | B112: JALAN | C112: Jalan Transolu. India Ltd | D112: SHIKHAR GUPTA | E112: BUY | F112: 255000 | G112: 50.07 | H112: NSE
A113: 2018-01-31 | B113: JUSTDIAL | C113: Justdial Ltd. | D113: SHAASTRA SECURITIES TRADING PRIVATE LIMITED | E113: BUY | F113: 378437 | G113: 516.79 | H113: NSE
A114: 2018-01-31 | B114: PODDARMENT | C114: Poddar Pigments Limited | D114: GKS LOGISTICS PRIVATE LIMITED | E114: BUY | F114: 165000 | G114: 300 | H114: NSE
A115: 2018-01-31 | B115: QUESS | C115: Quess Corp Limited | D115: SUNDARAM MUTUAL FUND SUNDARAM SELECT MIDCAP | E115: BUY | F115: 1535381 | G115: 950 | H115: NSE
A116: 2018-01-31 | B116: RCOM | C116: Reliance Comm. Ltd. | D116: SHAASTRA SECURITIES TRADING PRIVATE LIMITED | E116: BUY | F116: 15269634 | G116: 29.8 | H116: NSE
A117: 2018-01-31 | B117: SABTN | C117: Sri Adhikari Brothers Tel | D117: BP FINTRADE PRIVATE LIMITED | E117: BUY | F117: 249358 | G117: 22.01 | H117: NSE
A118: 2018-01-31 | B118: SANCO | C118: Sanco Industries Ltd. | D118: REAVA BEACH HOUSE | E118: BUY | F118: 52000 | G118: 44.03 | H118: NSE
A119: 2018-01-31 | B119: SANCO | C119: Sanco Industries Ltd. | D119: SAURIN RAJESH SHAH HUF | E119: BUY | F119: 65500 | G119: 43.85 | H119: NSE
A120: 2018-01-31 | B120: SPIC | C120: Southern Petro Ind Corp | D120: Hardik Bharat Patel | E120: BUY | F120: 2078790 | G120: 43.72 | H120: NSE
A121: 2018-01-31 | B121: SUPREMETEX | C121: Supreme Tex Mart Limited | D121: MADHU NEELESH KUMAR LAHOTI | E121: BUY | F121: 610000 | G121: 2.55 | H121: NSE
A122: 2018-01-31 | B122: TCIFINANCE | C122: TCI Finance Limited | D122: PRIYA CHANDRAKANT JALGAONKAR | E122: BUY | F122: 55000 | G122: 35.65 | H122: NSE
A123: 2018-01-31 | B123: TCIFINANCE | C123: TCI Finance Limited | D123: RONAK BANSAL | E123: BUY | F123: 352566 | G123: 35.45 | H123: NSE
A124: 2018-01-31 | B124: DENORA | C124: De Nora India Limited | D124: AASHYA FINCOM | E124: SELL | F124: 27463 | G124: 375.05 | H124: NSE
A125: 2018-01-31 | B125: DENORA | C125: De Nora India Limited | D125: ESSAR TRADING COMPANY | E125: SELL | F125: 32560 | G125: 378.18 | H125: NSE
A126: 2018-01-31 | B126: DENORA | C126: De Nora India Limited | D126: RAVINDER SINDHU (HUF) | E126: SELL | F126: 28849 | G126: 377.37 | H126: NSE
A127: 2018-01-31 | B127: EMAMIINFRA | C127: Emami Infrastructure Ltd | D127: EAST INDIA SECURITIES LTD. | E127: SELL | F127: 150000 | G127: 324.17 | H127: NSE
A128: 2018-01-31 | B128: ESTER | C128: Ester Industries Ltd | D128: GARNET INTERNATIONAL LTD | E128: SELL | F128: 430000 | G128: 73.26 | H128: NSE
A129: 2018-01-31 | B129: INNOVATIVE | C129: Innovative Tyres & Tubes | D129: GOLDMINE STOCKS PRIVATE LIMITED | E129: SELL | F129: 105000 | G129: 57.94 | H129: NSE
A130: 2018-01-31 | B130: INNOVATIVE | C130: Innovative Tyres & Tubes | D130: PURITY TRADEMAX LLP | E130: SELL | F130: 165000 | G130: 57.84 | H130: NSE
A131: 2018-01-31 | B131: JALAN | C131: Jalan Transolu. India Ltd | D131: EDELCAP SECURITIES LIMITED | E131: SELL | F131: 501000 | G131: 50.02 | H131: NSE
A132: 2018-01-31 | B132: JUSTDIAL | C132: Justdial Ltd. | D132: SHAASTRA SECURITIES TRADING PRIVATE LIMITED | E132: SELL | F132: 378437 | G132: 517.63 | H132: NSE
A133: 2018-01-31 | B133: PODDARMENT | C133: Poddar Pigments Limited | D133: MAYUKA INVESTMENT LIMITED | E133: SELL | F133: 168870 | G133: 300 | H133: NSE
A134: 2018-01-31 | B134: QUESS | C134: Quess Corp Limited | D134: RAMDAS MADHAVA PAI | E134: SELL | F134: 1863008 | G134: 950.05 | H134: NSE
A135: 2018-01-31 | B135: QUESS | C135: Quess Corp Limited | D135: VASANTHI RAMDAS PAI | E135: SELL | F135: 3158504 | G135: 950.44 | H135: NSE
A136: 2018-01-31 | B136: RCOM | C136: Reliance Comm. Ltd. | D136: SHAASTRA SECURITIES TRADING PRIVATE LIMITED | E136: SELL | F136: 15269634 | G136: 29.82 | H136: NSE
A137: 2018-01-31 | B137: RPPINFRA | C137: R.P.P. Infra Projects Ltd | D137: SURENDRA NAVNITLAL SANGHAVI | E137: SELL | F137: 133000 | G137: 298.69 | H137: NSE
A138: 2018-01-31 | B138: SABTN | C138: Sri Adhikari Brothers Tel | D138: BP FINTRADE PRIVATE LIMITED | E138: SELL | F138: 24358 | G138: 24.3 | H138: NSE
A139: 2018-01-31 | B139: SANCO | C139: Sanco Industries Ltd. | D139: BHAVNABEN VIRENDRAKUMAR PATEL | E139: SELL | F139: 59500 | G139: 43.95 | H139: NSE
A140: 2018-01-31 | B140: SANCO | C140: Sanco Industries Ltd. | D140: SAURIN RAJESH SHAH HUF | E140: SELL | F140: 65500 | G140: 44.72 | H140: NSE
A141: 2018-01-31 | B141: SPIC | C141: Southern Petro Ind Corp | D141: RUCHIT B. PATEL | E141: SELL | F141: 2073979 | G141: 43.72 | H141: NSE
A142: 2018-01-31 | B142: TCIFINANCE | C142: TCI Finance Limited | D142: PRIYA CHANDRAKANT JALGAONKAR | E142: SELL | F142: 96018 | G142: 33.92 | H142: NSE
A143: 2018-01-31 | B143: TCIFINANCE | C143: TCI Finance Limited | D143: RONAK BANSAL | E143: SELL | F143: 352566 | G143: 35.4 | H143: NSE

Sheet Call Tracker (Equity & F&O)
N5: Back To Main Page
A6: Retail Research Technical Calls & Fundamental Performance Report for the month of January -2018
N7: =Main!B10 -> 2018-02-01
B8: Positional Call
A9: Sr.no | B9: Date | D9: Company | E9: Rec | F9: Rec Price | G9: Stop Loss*** | H9: Call Closed At | I9: Target | J9: Remark | L9: Profit / Loss per Share | M9: Gain / Loss % | N9: Status | O9: Closed Date | P9: NSE Closed Price
A10: 1 | B10: 2017-12-07 | D10: ITC | E10: Buy$ | F10: 260 | G10: 232 | H10: 276.75 | I10: 300 | J10: Profit of Rs.16.75/- | L10: =H10-F10 -> 16.75 | M10: =L10/F10 -> 6.44% | N10: Successful | O10: 2018-01-24 | S10: H
A11: 2 | B11: 2017-10-31 | D11: SBIN | E11: Sell | F11: 306.5 | G11: 336 | H11: 296 | I11: 240 | J11: Profit of Rs.10.50/- | L11: =F11-H11 -> 10.50 | M11: =L11/F11 -> 3.43% | N11: Successful | O11: 2018-01-16 | S11: P
A12: 3 | B12: 2017-11-03 | D12: AXISBANK | E12: Sell | F12: 545 | G12: 595 | H12: 607.5 | I12: 445 | J12: Loss of Rs.62.5/- | L12: =F12-H12 -> -62.50 | M12: =L12/F12 -> -11.47% | N12: Unsuccessful | O12: 2018-01-22 | S12: P
A13: 4 | B13: 2017-11-06 | D13: KOTAKBANK | E13: Buy | F13: 1010 | G13: 968 | H13: =(1024+1041)/2 -> 1032.5 | I13: 1080-1100 | J13: Profit of Rs.22.5/- | L13: =H13-F13 -> 22.50 | M13: =L13/F13 -> 2.23% | N13: Successful | O13: 2018-01-12 | S13: H
A14: 5 | B14: 2017-11-15 | D14: IDFCBANK | E14: Buy | F14: 54.7 | G14: 50 | H14: 57.1 | I14: 62.7 | J14: Profit of Rs.2.40/- | L14: 2.40 | M14: 4.39% | N14: Successful | O14: 2017-01-05 | S14: P
A15: 6 | B15: 2017-12-07 | D15: BANKBARODA | E15: Buy | F15: 167.5 | G15: 159 | H15: =(173+158.5)/2 -> 165.75 | I15: 185-190 | J15: Loss of Rs.1.75/- | L15: =H15-F15 -> -1.75 | M15: =L15/F15 -> -1.04% | N15: Unsuccessful | O15: 2018-01-03 | S15: H
A16: 7 | B16: 2017-12-14 | D16: MGL | E16: Buy | F16: 1110 | G16: 1060 | H16: 1056 | I16: 1200-1220 | J16: Loss of Rs.54/- | L16: =H16-F16 -> -54.00 | M16: =L16/F16 -> -4.86% | N16: Unsuccessful | O16: 2018-01-18 | S16: H
A17: 8 | B17: 2017-12-19 | D17: DCBBANK | E17: Buy | F17: 195.5 | G17: 188 | H17: 202 | I17: 210 | J17: Profit of Rs.6.50/- | L17: =H17-F17 -> 6.50 | M17: =L17/F17 -> 3.32% | N17: Successful | O17: 2017-01-01 | S17: H
A18: 9 | B18: 2017-12-21 | D18: BAJAJ-AUTO | E18: Sell | F18: 3301 | G18: 3401 | H18: 3205 | I18: 3101 | J18: Profit of Rs.96.00/- | L18: =F18-H18 -> 96.00 | M18: =L18/F18 -> 2.91% | N18: Successful | O18: 2018-01-10 | S18: P
A19: 10 | B19: 2017-12-21 | D19: MARUTI | E19: Sell | F19: 9680 | G19: 9880 | H19: =(9530+9477)/2 -> 9503.5 | I19: 9220 | J19: Profit of Rs.176.50/- | L19: =F19-H19 -> 176.50 | M19: 1.82% | N19: Successful | O19: 2018-01-03 | S19: P
A20: 11 | B20: 2017-12-21 | D20: M&M | E20: Sell | F20: 750 | G20: 825 | I20: 600 | J20: Open | P20: =VLOOKUP(D20,Sheet2!$A$1:M2036,6,0) -> 763.05 | S20: P
A21: 12 | B21: 2017-12-21 | D21: HEROMOTOCO | E21: Sell | F21: 3800 | G21: 3900 | H21: 3657.5 | I21: 3600 | J21: Profit of Rs.142.50/- | L21: =F21-H21 -> 142.50 | M21: =L21/F21 -> 3.75% | N21: Successful | O21: 2018-01-03 | S21: P
A22: 13 | B22: 2017-12-21 | D22: LT | E22: Sell | F22: 1260 | G22: 1310 | H22: 1325 | I22: 1180-1150 | J22: Loss of Rs.65/- | L22: =F22-H22 -> -65.00 | M22: =L22/F22 -> -5.16% | N22: Unsuccessful | O22: 2018-01-08 | S22: H
A23: 14 | B23: 2017-12-26 | D23: HINDALCO | E23: Sell | F23: 267.5 | G23: 280 | H23: =(259.75+256.5)/2 -> 258.125 | I23: 240 | J23: Profit of Rs.9.38/- | L23: =F23-H23 -> 9.38 | M23: =L23/F23 -> 3.50% | N23: Successful | O23: 2018-01-17 | S23: R
A24: 15 | B24: 2017-12-27 | D24: AUROPHARMA | E24: Buy | F24: 690.5 | G24: 663 | H24: 660 | I24: 750 | J24: Loss of Rs.30.5/- | L24: =H24-F24 -> -30.50 | M24: =L24/F24 -> -4.42% | N24: Unsuccessful | O24: 2018-01-15 | S24: H
A25: 16 | B25: 2017-12-27 | D25: ACC | E25: Sell | F25: 1744 | G25: 1794 | H25: 1801 | I25: 1644 | J25: Loss of Rs.57/- | L25: =F25-H25 -> -57.00 | M25: =L25/F25 -> -3.27% | N25: Unsuccessful | O25: 2018-01-04 | S25: P
A26: 17 | B26: 2017-12-27 | D26: AMBUJACEM | E26: Sell | F26: 273 | G26: 300 | H26: 260.5 | I26: 225 | J26: Profit of Rs.12.5/- | L26: =F26-H26 -> 12.50 | M26: =L26/F26 -> 4.58% | N26: Successful | O26: 2018-01-24 | S26: P
A27: 18 | B27: 2017-12-27 | D27: ULTRACEMCO | E27: Sell | F27: 4307 | G27: 4407 | H27: 4470 | I27: 4107 | J27: Loss of Rs.163/- | L27: =F27-H27 -> -163.00 | M27: =L27/F27 -> -3.78% | N27: Unsuccessful | O27: 2018-01-09 | S27: P
A28: 19 | B28: 2017-12-27 | D28: TATASTEEL | E28: Sell | F28: 725 | G28: 775 | H28: 784.5 | I28: 625 | J28: Loss of Rs.59.5/- | L28: =F28-H28 -> -59.50 | M28: =L28/F28 -> -8.21% | N28: Unsuccessful | O28: 2018-01-15 | S28: P
A29: 20 | B29: 2017-12-27 | D29: TECHM | E29: Buy | F29: 501.5 | G29: 478 | H29: =(519.8+524.5)/2 -> 522.15 | I29: 545 | J29: Profit of Rs.20.65/- | L29: =H29-F29 -> 20.65 | M29: =L29/F29 -> 4.12% | N29: Successful | O29: 2017-01-03 | S29: A
A30: 21 | B30: 2017-12-28 | D30: JSWSTEEL | E30: Sell | F30: 268 | G30: 277 | H30: 279 | I30: 250 | J30: Loss of Rs.11/- | L30: =F30-H30 -> -11.00 | M30: =L30/F30 -> -4.10% | N30: Unsuccessful | O30: 2018-01-04 | S30: H
A31: 22 | B31: 2017-12-29 | D31: EQUITAS | E31: Buy | F31: 148.5 | G31: 140 | H31: =(155.5+158)/2 -> 156.75 | I31: 170 | J31: Profit of Rs.8.25/- | L31: =H31-F31 -> 8.25 | M31: =L31/F31 -> 5.56% | N31: Successful | O31: 2017-01-05 | S31: A
A32: 23 | B32: 2017-12-29 | D32: DLF | E32: Sell | F32: 259 | G32: 272 | H32: =(252+250.5)/2 -> 251.25 | I32: 240-235 | J32: Profit of Rs.7.75/- | L32: =F32-H32 -> 7.75 | M32: =L32/F32 -> 2.99% | N32: Successful | O32: 2018-01-17 | S32: H
A33: 24 | B33: 2018-01-02 | D33: RECLTD | E33: Buy | F33: 158 | G33: 153 | H33: 163.5 | I33: 170-175 | J33: Profit of Rs.5.5/- | L33: =H33-F33 -> 5.50 | M33: =L33/F33 -> 3.48% | N33: Successful | O33: 2018-01-12 | S33: H
A34: 25 | B34: 2018-01-03 | D34: PIDILITIND | E34: Buy | F34: 892.5 | G34: 860 | H34: 918.25 | I34: 950 | J34: Profit of Rs.25.75/- | L34: =H34-F34 -> 25.75 | M34: =L34/F34 -> 2.89% | N34: Successful | O34: 2018-01-09 | S34: R
A35: 26 | B35: 2018-01-03 | D35: LUPIN | E35: Buy | F35: 882 | G35: 855 | H35: 910 | I35: 935 | J35: Profit of Rs.28/- | L35: 28.00 | M35: 3.17% | N35: Successful | O35: 2018-01-08 | S35: R
A36: 27 | B36: 2018-01-04 | D36: L&TFH | E36: Buy | F36: 171 | G36: 162 | H36: 177.25 | I36: 188-192 | J36: Profit of Rs.6.25/- | L36: =H36-F36 -> 6.25 | M36: =L36/F36 -> 3.65% | N36: Successful | O36: 2018-01-08 | S36: H
A37: 28 | B37: 2018-01-04 | D37: SYNDIBANK | E37: Buy | F37: 80.2 | G37: 76 | H37: 76 | I37: 88 | J37: Loss of Rs.4.20/- | L37: -4.20 | M37: -5.24% | N37: Unsuccessful | O37: 2018-01-16 | S37: R
A38: 29 | B38: 2018-01-05 | D38: INDIANB | E38: Buy | F38: 380.5 | G38: 367 | H38: 394.5 | I38: 410 | J38: Profit of Rs.14/- | L38: =H38-F38 -> 14.00 | M38: =L38/F38 -> 3.68% | N38: Successful | O38: 2018-01-18 | S38: H
A39: 30 | B39: 2018-01-05 | D39: VEDL | E39: Sell | F39: 340 | G39: 355 | H39: =(329+324.5)/2 -> 326.75 | I39: 310 | J39: Profit of Rs.13.25/- | L39: =F39-H39 -> 13.25 | M39: =L39/F39 -> 3.90% | N39: Successful | O39: 2018-01-17 | S39: R
A40: 31 | B40: 2018-01-05 | D40: UJJIVAN | E40: Buy | F40: 405.5 | G40: 385 | H40: 420 | I40: 445 | J40: Profit of Rs.14.50/- | L40: =H40-F40 -> 14.50 | M40: =L40/F40 -> 3.58% | N40: Successful | O40: 2018-01-12 | S40: A
A41: 32 | B41: 2018-01-08 | D41: IDEA | E41: Buy | F41: 108 | G41: 101 | H41: =(111.5+95)/2 -> 103.25 | I41: 118 | J41: Loss of Rs.4.75/- | L41: -4.75 | M41: -4.40% | N41: Unsuccessful | O41: 2018-01-24 | S41: R
A42: 33 | B42: 2018-01-09 | D42: TCS | E42: Buy | F42: 2696 | G42: 2560 | H42: 2804 | I42: 2965 | J42: Profit of Rs.108/- | L42: =H42-F42 -> 108.00 | M42: =L42/F42 -> 4.01% | N42: Successful | O42: 2018-01-11 | S42: p
A43: 34 | B43: 2018-01-09 | D43: INFY | E43: Buy | F43: 1038 | G43: 985 | H43: 1074 | I43: 1140 | J43: Profit of Rs.36/- | L43: =H43-F43 -> 36.00 | M43: =L43/F43 -> 3.47% | N43: Successful | O43: 2018-01-11 | S43: p
A44: 35 | B44: 2018-01-09 | D44: WIPRO | E44: Buy | F44: 313 | G44: 297 | H44: 326.5 | I44: 345 | J44: Profit of Rs.13.50/- | L44: =H44-F44 -> 13.50 | M44: =L44/F44 -> 4.31% | N44: Successful | O44: 2018-01-11 | S44: p
A45: 36 | B45: 2018-01-09 | D45: HCLTECH | E45: Buy | F45: 892.5 | G45: 847 | H45: 923 | I45: 980 | J45: Profit of Rs.30.50/- | L45: 30.50 | M45: 3.42% | N45: Successful | O45: 2018-01-11 | S45: p
A46: 37 | B46: 2018-01-09 | D46: TECHM | E46: Buy | F46: 534 | G46: 505 | H46: 550 | I46: 590 | J46: Profit of Rs.16.00/- | L46: =H46-F46 -> 16.00 | M46: =L46/F46 -> 3.00% | N46: Successful | O46: 2018-01-11 | S46: p
A47: 38 | B47: 2018-01-10 | D47: BHEL | E47: Buy | F47: 102 | G47: 95 | H47: 105.15 | I47: 112-115 | J47: Profit of Rs.3.15/- | L47: 3.15 | M47: 3.09% | N47: Successful | O47: 2018-01-24 | S47: R
A48: 39 | B48: 2018-01-10 | D48: PEL | E48: Buy | F48: 2855 | G48: 2770 | H48: 2770 | I48: 3050 | J48: Loss of Rs.85/- | L48: =H48-F48 -> -85.00 | M48: =L48/F48 -> -2.98% | N48: Unsuccessful | O48: 2018-01-18 | S48: R
A49: 40 | B49: 2018-01-11 | D49: GLENMARK | E49: Buy | F49: 621.5 | G49: 590 | H49: 641.5 | I49: 685 | J49: Profit of Rs.20/- | L49: 20.00 | M49: 3.22% | N49: Successful | O49: 2018-01-24 | S49: R
A50: 41 | B50: 2018-01-11 | D50: SUNPHARMA | E50: Buy | F50: 592-595 | G50: 560 | I50: 650 | J50: Open | P50: =VLOOKUP(D50,Sheet2!$A$1:M2068,6,0) -> 579.9 | S50: R
A51: 42 | B51: 2018-01-11 | D51: CADILAHC | E51: Buy | F51: 447.5 | G51: 423 | H51: 421 | I51: 490 | J51: Loss of Rs.26.50/- | L51: =H51-F51 -> -26.50 | M51: =L51/F51 -> -5.92% | N51: Unsuccessful | O51: 2018-01-25 | S51: R
A52: 43 | B52: 2018-01-12 | D52: GRANULES | E52: Buy$ | F52: =(145.5+133.5)/2 -> 139.5 | G52: 131 | I52: 160-162 | J52: Open | P52: =VLOOKUP(D52,Sheet2!$A$1:M2070,6,0) -> 132.25 | S52: H
A53: 44 | B53: 2018-01-16 | D53: PIDILITIND | E53: Buy | F53: 905-908 | G53: 880 | I53: 965 | J53: Open | P53: =VLOOKUP(D53,Sheet2!$A$1:M2071,6,0) -> 896.3 | S53: R
A54: 45 | B54: 2018-01-16 | D54: PCJEWELLER | E54: Sell | F54: 576.5 | G54: 602 | H54: 559.5 | I54: 525 | J54: Profit of Rs.17/- | L54: =F54-H54 -> 17.00 | M54: =L54/F54 -> 2.95% | N54: Successful | O54: 2018-01-24 | S54: R
A55: 46 | B55: 2018-01-17 | D55: SUNTV | E55: Sell | F55: 1052.5 | G55: 1100 | H55: 1021 | I55: 950 | J55: Profit of Rs.31.5/- | L55: =F55-H55 -> 31.50 | M55: =L55/F55 -> 2.99% | N55: Successful | O55: 2018-01-19 | S55: R
A56: 47 | B56: 2018-01-17 | D56: RAYMOND | E56: Sell | F56: 1085 | G56: 1140 | H56: 1051 | I56: 1000-980 | J56: Profit of Rs.34/- | L56: =F56-H56 -> 34.00 | M56: =L56/F56 -> 3.13% | N56: Successful | O56: 2018-01-18 | S56: H
A57: 48 | B57: 2018-01-17 | D57: M&MFIN | E57: Sell | F57: 481 | G57: 504 | H57: 467 | I57: 445-435 | J57: Profit of Rs.12/- | L57: =F57-H57 -> 14.00 | M57: =L57/F57 -> 2.91% | N57: Successful | O57: 2018-01-19 | S57: H
A58: 49 | B58: 2018-01-18 | D58: AUROPHARMA | E58: Buy | F58: 658-663 | G58: 634 | I58: 720-730 | J58: Open | P58: =VLOOKUP(D58,Sheet2!$A$1:M2076,6,0) -> 629.55 | S58: H
A59: 50 | B59: 2018-01-19 | D59: ENGINERSIN | E59: Buy | F59: 179-181 | G59: 170.5 | I59: 195-200 | J59: Open | P59: =VLOOKUP(D59,Sheet2!$A$1:M2077,6,0) -> 177.5 | S59: H
A60: 51 | B60: 2018-01-22 | D60: L&TFH | E60: Buy | F60: 171.5 | G60: 163 | H60: 177.75 | I60: 185-190 | J60: Profit of Rs.6.25/- | L60: =H60-F60 -> 6.25 | M60: =L60/F60 -> 3.64% | N60: Successful | O60: 2018-01-22 | S60: H
A61: 52 | B61: 2018-01-22 | D61: M&MFIN | E61: Sell | F61: 482 | G61: 504 | H61: 504 | I61: 445-435 | J61: Loss of Rs.22/- | L61: =F61-H61 -> -22.00 | M61: =L61/F61 -> -4.56% | N61: Unsuccessful | O61: 2018-01-23 | S61: H
A62: 53 | B62: 2018-01-22 | D62: LT | E62: Sell | F62: 1378-1385 | G62: 1444 | I62: 1250 | J62: Open | P62: =VLOOKUP(D62,Sheet2!$A$1:M2080,6,0) -> 1416.5 | S62: R
A63: 54 | B63: 2018-01-23 | D63: ADANIPORTS | E63: Sell | F63: 434-436 | G63: 455 | I63: 390 | J63: Open | P63: =VLOOKUP(D63,Sheet2!$A$1:M2081,6,0) -> 428.85 | S63: R
A64: 55 | B64: 2018-01-30 | D64: CESC | E64: Buy | F64: 1062-1072 | G64: 1020 | I64: 1140 | J64: Open | P64: =VLOOKUP(D64,Sheet2!$A$1:M2082,6,0) -> 1054.75 | S64: R
A65: 56 | B65: 2018-01-30 | D65: TATAMOTORS | E65: Buy | F65: 399-402 | G65: 385 | I65: 430-440 | J65: Open | P65: =VLOOKUP(D65,Sheet2!$A$1:M2083,6,0) -> 399.5 | S65: H
A68: CLBS = Closing Basis *** | F68: Reinitiated $
A69: Dividend adjusted <> | F69: Revised stoploss #
A71: Master Trade High Risk
A72: Sr.no | B72: Date | D72: Company | E72: Rec | F72: Rec Price | G72: Stop Loss | H72: Call Closed At | I72: Target | J72: Remark | L72: Profit / Loss per share | M72: Gain / Loss per Lot | N72: Lot | O72: Status | P72: Closed Date
A73: 1 | B73: 2017-12-28 | D73: NIFTY JAN FUT | E73: Sell | F73: 10533.5 | G73: 10635 | H73: 10438 | I73: 10335 | J73: Profit of Rs.95.50/- | L73: =F73-H73 -> 95.50 | M73: =L73*N73 -> 7162.5 | N73: 75 | O73: Successful | P73: 2018-01-02 | S73: P
A74: 2 | B74: 2017-12-29 | D74: GAIL JAN Future | E74: Sell | F74: 502 | G74: 515 | H74: 499.2 | I74: 470 | J74: Profit of Rs.2.80/- | L74: =F74-H74 -> 2.80 | M74: 5600 | N74: 2000 | O74: Successful | P74: 2018-01-02 | S74: A
D75: GAIL JAN 500 PE | E75: Sell | F75: 15 | H75: 15 | L75: =H75-F75 -> 0.00 | M75: 0
A76: 3 | B76: 2018-01-04 | D76: NIFTY JAN FUT | E76: Sell | F76: 10512.5 | G76: 10615 | H76: 10615 | I76: 10310 | J76: Loss of Rs.102.50/- | L76: =F76-H76 -> -102.50 | M76: =L76*N76 -> -7687.5 | N76: 75 | O76: Unsuccessful | P76: 2018-01-08 | S76: P
A77: 4 | B77: 2018-01-08 | D77: MCDOWELL-N JAN FUT | E77: Sell | F77: 3933 | G77: 3973 | H77: 3887.5 | I77: 3850 | J77: Profit of Rs.45.50/- | L77: =F77-H77 -> 45.50 | M77: =L77*N77 -> 11375 | N77: 250 | O77: Successful | P77: 2018-01-09 | S77: R
A78: 5 | B78: 2018-01-09 | D78: NIFTY JAN FUT | E78: Sell | F78: 10632.5 | G78: 10730 | H78: 10730 | I78: 10430 | J78: Loss of Rs.97.50/- | L78: =F78-H78 -> -97.50 | M78: =L78*N78 -> -7312.5 | N78: 75 | O78: Unsuccessful | P78: 2018-01-15 | S78: R
A79: 6 | B79: 2018-01-17 | D79: NIFTY JAN FUT | E79: Sell | F79: 10724.5 | G79: 10875 | H79: 10875 | I79: 10422 | J79: Loss of Rs.150.50/- | L79: =F79-H79 -> -150.50 | M79: =L79*N79 -> -11287.5 | N79: 75 | O79: Unsuccessful | P79: 2018-01-19 | S79: P
A80: 7 | B80: 2018-01-24 | D80: NIFTY FEB FUT | E80: Sell | F80: 11085 | G80: 11210 | H80: 11045 | I80: 10800 | J80: Profit of Rs.40/- | L80: =F80-H80 -> 40.00 | M80: =L80*N80 -> 3000 | N80: 75 | O80: Successful | P80: 2018-01-31 | S80: H
A87: Master Trade Medium Risk
A88: Sr.no | B88: Date | D88: Company | E88: Rec | F88: Rec Price | G88: Stop Loss | H88: Call Closed At | I88: Target | J88: Remark | L88: Profit/Loss per lot | M88: Gain / Loss per Lot | N88: Lot | O88: Status | P88: Closed Date
A89: 1 | B89: 2017-12-29 | D89: NIFTY JAN 10200 PE | E89: Buy | F89: 38.5 | H89: 53 | I89: 100 | J89: Profit of Rs.14.5/- | L89: =H89-F89 -> 14.5 | M89: =L89*N89 -> 1087.5 | N89: 75 | O89: Successful | P89: 2018-01-02 | S89: P
A90: 2 | B90: 2018-01-04 | D90: BANKNIFTY 4-JAN 25400 CE | E90: Buy | F90: 23 | H90: 45.5 | I90: 60 | J90: Profit of Rs.22.5/- | L90: =H90-F90 -> 22.5 | M90: 900 | N90: 40 | O90: Successful | P90: 2018-01-04 | S90: A
A91: 3 | B91: 2018-01-04 | D91: NIFTY JAN 10200 PE | E91: Buy | F91: 32.5 | H91: 0 | I91: 100 | J91: Loss of Rs.32.50/- | L91: =H91-F91 -> -32.50 | M91: -2437.5 | N91: 75 | O91: Unsuccessful | P91: 2018-01-25 | S91: P
A92: 4 | B92: 2018-01-09 | D92: BANKNIFTY 11-JAN 25600 PE | E92: Buy | F92: 70 | H92: 91.5 | I92: 150 | J92: Profit of Rs.21.5/- | L92: =H92-F92 -> 21.5 | M92: 860 | N92: 40 | O92: Successful | P92: 2018-01-10 | S92: A
A93: 5 | B93: 2018-01-11 | D93: BANKNIFTY 11-JAN 25600 CE | E93: Buy | F93: 23 | H93: 55 | I93: 60 | J93: Profit of Rs.32/- | L93: =H93-F93 -> 32 | M93: 1280 | N93: 40 | O93: Successful | P93: 2018-01-11 | S93: A
A94: 6 | B94: 2018-01-12 | D94: NIFTY JAN 10600 PE | E94: Buy | F94: 56 | H94: 80 | I94: 120 | J94: Profit of Rs.24/- | L94: =H94-F94 -> 24 | M94: 1800 | N94: 75 | O94: Successful | P94: 2018-01-12 | S94: A
A95: 7 | B95: 2018-01-12 | D95: NIFTY JAN 10600 PE | E95: Buy | F95: 56 | I95: 129 | J95: Loss of Rs.56/- | L95: =H95-F95 -> -56.00 | M95: -4200 | N95: 75 | O95: Unsuccessful | P95: 2018-01-25 | S95: A
A96: 8 | B96: 2018-01-18 | D96: BANKNIFTY 18-JAN 26700 PE | E96: Buy | F96: 23 | H96: 55 | I96: 60 | J96: Profit of Rs.32/- | L96: =H96-F96 -> 32 | M96: 1280 | N96: 40 | O96: Successful | P96: 2018-01-18 | S96: A
A97: 9 | B97: 2018-01-18 | D97: BANKNIFTY 18-JAN 26700 PE | E97: Buy | F97: 18 | H97: 28 | I97: 50 | J97: Profit of Rs.10/- | L97: =H97-F97 -> 10 | M97: 400 | N97: 40 | O97: Successful | P97: 2018-01-18 | S97: A
A98: 10 | B98: 2018-01-19 | D98: LT JAN 1340 PE | E98: Buy | F98: 8.5 | H98: 0 | I98: 20-22 | J98: Loss of Rs.8.50/- | L98: =H98-F98 -> -8.50 | M98: -6375 | N98: 750 | O98: Unsuccessful | P98: 2018-01-25 | S98: H
A99: 11 | B99: 2018-01-23 | D99: NIFTY JAN 11000 PE | E99: Buy | F99: 50 | H99: 0 | I99: 120 | J99: Loss of Rs.50/- | L99: =H99-F99 -> -50.00 | M99: -3750 | N99: 75 | O99: Unsuccessful | P99: 2018-01-25 | S99: H
A100: 12 | B100: 2018-01-25 | D100: BANKNIFTY JAN 27200 PE | E100: Buy | F100: 27.5 | H100: 0 | I100: 60-70 | J100: Loss of Rs.27.50/- | L100: =H100-F100 -> -27.50 | M100: -1100 | N100: 40 | O100: Unsuccessful | P100: 2018-01-25 | S100: A
A101: 13 | B101: 2018-01-31 | D101: BANKNIFTY 1- FEB 27000 PE | E101: Buy | F101: 93 | H101: 85 | I101: 300 | J101: Profit of Rs.42.50/- | L101: =H101-F101 -> -8 | M101: =N101*42.5 -> 1700 | N101: 40 | O101: Successful | P101: 2018-01-31 | S101: A
D102: BANKNIFTY 1- FEB 27800 CE | E102: Buy | F102: 57 | H102: 107.5 | L102: =H102-F102 -> 50.5
A103: 14 | B103: 2018-01-31 | D103: NIFTY FEB 10900 PE | E103: Buy | F103: 105-107 | I103: 350 | J103: Open | S103: A
D104: NIFTY FEB 11300 CE | E104: Buy | F104: 65-67
B111: Smart Delivery Trade
A112: Sr.no | B112: Date | D112: Company | E112: Rec | F112: Rec Price | G112: Stop Loss*** | H112: Call Closed At | I112: Target | J112: Remark | L112: Profit / Loss per Share | M112: Gain / Loss % | N112: Status | O112: Closed Date | P112: NSE Closed Price
A113: 1 | B113: 2017-12-26 | D113: ARVIND | E113: Buy | F113: 448 | G113: 435 | H113: 462 | I113: 470 | J113: Profit of Rs.14/- | L113: =H113-F113 -> 14.00 | M113: =L113/F113 -> 3.13% | N113: Successful | O113: 2018-01-09 | S113: R
A114: 2 | B114: 2017-12-26 | D114: ASIANPAINT | E114: Buy | F114: 1148.5 | G114: 1120 | H114: 1183.5 | I114: 1200-1220 | J114: Profit of Rs.35/- | L114: =H114-F114 -> 35.00 | M114: =L114/F114 -> 3.05% | N114: Successful | O114: 2017-01-05 | S114: R
A115: 3 | B115: 2017-12-26 | D115: EXIDEIND | E115: Buy | F115: 219.5 | G115: 213.5 | H115: 226.5 | I115: 230-235 | J115: Profit of Rs.7/- | L115: =H115-F115 -> 7.00 | M115: =L115/F115 -> 3.19% | N115: Successful | O115: 2017-01-05 | S115: H
A116: 4 | B116: 2017-12-27 | D116: DHFL | E116: Buy | F116: 601.5 | G116: 585 | H116: 619.5 | I116: 640 | J116: Profit of Rs.18/- | L116: 18.00 | M116: 2.99% | N116: Successful | O116: 2018-01-08 | S116: H
A117: 5 | B117: 2017-12-28 | D117: TITAN | E117: Buy | F117: 843 | G117: 818 | H117: 863 | I117: 880-890 | J117: Profit of Rs.20/- | L117: =H117-F117 -> 20.00 | M117: =L117/F117 -> 2.37% | N117: Successful | O117: 2017-01-03 | S117: H
A118: 6 | B118: 2018-01-01 | D118: CANFINHOME | E118: Buy | F118: 480 | G118: 465 | H118: 492 | I118: 500-505 | J118: Profit of Rs.12/- | L118: =H118-F118 -> 12.00 | M118: =L118/F118 -> 2.50% | N118: Successful | O118: 2018-01-11 | S118: R
A119: 7 | B119: 2018-01-01 | D119: BRITANNIA | E119: Buy | F119: 4740-4760 | G119: 4610 | I119: 4980-5000 | J119: Open | P119: =VLOOKUP(D119,Sheet2!$A$1:M2077,6,0) -> 4684.15 | S119: R
A120: 8 | B120: 2018-01-02 | D120: COLPAL | E120: Buy | F120: 1091 | G120: 1064 | H120: 1120 | I120: 1140 | J120: Profit of Rs.29/- | L120: =H120-F120 -> 29.00 | M120: =L120/F120 -> 2.66% | N120: Successful | O120: 2018-01-08 | S120: R
A121: 9 | B121: 2018-01-02 | D121: DALMIABHA | E121: Buy | F121: 3100 | G121: 3000 | H121: 3202.5 | I121: 3250 | J121: Profit of Rs.102.50/- | L121: 102.50 | M121: 3.31% | N121: Successful | O121: 2018-01-09 | S121: R
A122: 10 | B122: 2018-01-03 | D122: BAJAJFINSV | E122: Buy | F122: 5165 | G122: 5029 | H122: 5272.5 | I122: 5400-5420 | J122: Part Profit of Rs.107.50/- | L122: 107.50 | M122: 2.08% | N122: Successful | O122: 2018-01-10 | S122: R
A123: 11 | B123: 2018-01-03 | D123: INDHOTEL | E123: Buy | F123: 121 | G123: 116 | H123: 127.35 | I123: 130-132 | J123: Profit of Rs.6.35/- | L123: =H123-F123 -> 6.35 | M123: =L123/F123 -> 5.25% | N123: Successful | O123: 2017-01-04 | S123: H
A124: 12 | B124: 2018-01-04 | D124: INDUSINDBK | E124: Buy | F124: 1644 | G124: 1600 | H124: 1681 | I124: 1720 | J124: Profit of Rs.37/- | L124: =H124-F124 -> 37.00 | M124: =L124/F124 -> 2.25% | N124: Successful | O124: 2017-01-05 | S124: R
A125: 13 | B125: 2018-01-04 | D125: VGUARD | E125: Buy | F125: 236 | G125: 230 | H125: 241.5 | I125: 247 | J125: Profit of Rs.5.50/- | L125: =H125-F125 -> 5.50 | M125: =L125/F125 -> 2.33% | N125: Successful | O125: 2018-01-09 | S125: R
A126: 14 | B126: 2018-01-10 | D126: INFRATEL | E126: Buy | F126: 370 | G126: 360 | H126: 377.75 | I126: 390 | J126: Profit of Rs.7.75/- | L126: =H126-F126 -> 7.75 | M126: =L126/F126 -> 2.09% | N126: Successful | O126: 2018-01-15 | S126: R
A127: 15 | B127: 2018-01-10 | D127: IBVENTURES | E127: Buy | F127: 275.5 | G127: 265 | H127: 284.5 | I127: 295 | J127: Profit of Rs.9/- | L127: =H127-F127 -> 9.00 | M127: =L127/F127 -> 3.27% | N127: Successful | O127: 2018-01-11 | S127: R
A128: 16 | B128: 2018-01-11 | D128: TORNTPHARM | E128: Buy | F128: 1399 | G128: 1355 | H128: 1447 | I128: 1500 | J128: Profit of Rs.48/- | L128: =H128-F128 -> 48.00 | M128: =L128/F128 -> 3.43% | N128: Successful | O128: 2018-01-18 | S128: R
A129: 17 | B129: 2018-01-15 | D129: CONCOR | E129: Buy | F129: 1425 | G129: 1378 | H129: 1470 | I129: 1490-1510 | J129: Profit of Rs.45/- | L129: =H129-F129 -> 45.00 | M129: =L129/F129 -> 3.16% | N129: Successful | O129: 2018-01-19 | S129: H
A130: 18 | B130: 2018-01-17 | D130: TVSMOTOR | E130: Buy | F130: 722 | G130: 695 | H130: 690 | I130: 760-780 | J130: Loss of Rs.32/- | L130: -32.00 | M130: -4.43% | N130: Unsuccessful | O130: 2018-01-31 | S130: H
A131: 19 | B131: 2018-01-17 | D131: BATAINDIA | E131: Buy | F131: 725-727 | G131: 704 | I131: 770 | J131: Open | P131: =VLOOKUP(D131,Sheet2!$A$1:M2089,6,0) -> 705.95 | S131: R
A132: 20 | B132: 2018-01-19 | D132: GPPL | E132: Buy | F132: 150 | G132: 143 | H132: 153.5 | I132: 160 | J132: Profit of Rs.3.5/- | L132: =H132-F132 -> 3.50 | M132: =L132/F132 -> 2.33% | N132: Successful | O132: 2018-01-23 | S132: R
A133: 21 | B133: 2018-01-19 | D133: IGL | E133: Buy | F133: 306 | G133: 297 | H133: 316.5 | I133: 325 | J133: Profit of Rs.10.50/- | L133: 10.50 | M133: 3.43% | N133: Successful | O133: 2018-01-23 | S133: H
A134: 22 | B134: 2018-01-22 | D134: LTTS | E134: Buy | F134: 993 | G134: 962 | H134: 1031 | I134: 1050-1060 | J134: Profit of Rs.38/- | L134: =H134-F134 -> 38.00 | M134: =L134/F134 -> 3.83% | N134: Successful | O134: 2018-01-22 | S134: H
A135: 23 | B135: 2018-01-22 | D135: ASHOKLEY | E135: Buy | F135: 119.5 | G135: 116 | H135: 123.25 | I135: 126-128 | J135: Profit of Rs.3.75/- | L135: =H135-F135 -> 3.75 | M135: =L135/F135 -> 3.14% | N135: Successful | O135: 2018-01-23 | S135: R
A136: 24 | B136: 2018-01-24 | D136: DRREDDY | E136: Buy | F136: 2570 | G136: 2478 | H136: 2430 | I136: 2700-2750 | J136: Loss of Rs.140/- | L136: -140.00 | M136: -5.45% | N136: Unsuccessful | O136: 2018-01-29 | S136: H
A137: 25 | B137: 2018-01-30 | D137: MCDOWELL-N | E137: Buy | F137: 3295-3310 | G137: 3200 | I137: 3500 | J137: Open | S137: R
A138: 26 | B138: 2018-01-30 | D138: BPCL | E138: Buy | F138: 472.5 | G138: 458 | H138: 483.5 | I138: 495-500 | J138: Profit of Rs.11/- | L138: =H138-F138 -> 11.00 | M138: =L138/F138 -> 2.33% | N138: Successful | O138: 2018-01-30 | S138: H
A143: CLBS = Closing Basis *** | F143: Reinitiated $
A144: Dividend adjusted <> | F144: Revised stoploss #
A147: Techno -Funda (positional)
A148: Sr.no | B148: Date | D148: Company | E148: Rec | F148: Rec Price | G148: Stop Loss*** | H148: Call Closed At | I148: Target | J148: Remark | L148: Profit / Loss per Share | M148: Gain / Loss % | N148: Status | O148: Closed Date | P148: NSE Closed Price
A149: 1 | B149: 2018-01-02 | D149: UPL | E149: Buy | F149: 747 | G149: 695 | H149: 797.25 | I149: 850 | J149: Profit of Rs.50.25/- | L149: =H149-F149 -> 50.25 | M149: =L149/F149 -> 6.73% | N149: Successful | O149: 2018-01-19 | S149: H
A151: CLBS = Closing Basis *** | F151: Reinitiated $
A152: Dividend adjusted <> | F152: Revised stoploss #
B156: Momentum Call
A157: Sr.no | B157: Date | D157: Company | E157: Rec | F157: Rec Price | G157: Stop Loss | H157: Call Closed At | I157: Target | J157: Remark | L157: Profit / Loss per Share/Lot | M157: Gain / Loss % | N157: Gain / Loss per Lot | O157: Lot | P157: Status | Q157: Closed Date | R157: NSE Closed Price
A158: 1 | B158: 2017-01-01 | D158: TVTODAY | E158: Buy | F158: 431.5 | G158: 420 | H158: 442.5 | I158: 450 | J158: Profit of Rs.11/- | L158: =H158-F158 -> 11.00 | M158: =L158/F158 -> 2.55% | P158: Successful | Q158: 2017-01-01 | S158: R
A159: 2 | B159: 2018-01-01 | D159: WELSPUNIND | E159: Buy | F159: 73 | G159: 70 | H159: 75.5 | I159: 79-80 | J159: Profit of Rs.2.50/- | L159: =H159-F159 -> 2.50 | M159: =L159/F159 -> 3.42% | P159: Successful | Q159: 2018-01-10 | S159: R
A160: 3 | B160: 2018-01-02 | D160: COX&KINGS | E160: Buy | F160: 277.5 | G160: 269 | H160: 268 | I160: 290 | J160: Loss of Rs.9.50/- | L160: =H160-F160 -> -9.50 | M160: =L160/F160 -> -3.42% | P160: Unsuccessful | Q160: 2018-01-10 | S160: H
A161: 4 | B161: 2018-01-03 | D161: ENGINERSIN | E161: Buy | F161: 195.5 | G161: 189 | H161: 200.75 | I161: 205 | J161: Profit of Rs.5.25/- | L161: =H161-F161 -> 5.25 | M161: =L161/F161 -> 2.69% | P161: Successful | Q161: 2017-01-03 | S161: H
A162: 5 | B162: 2018-01-04 | D162: BFUTILITIE | E162: Buy | F162: 522 | G162: 505 | H162: 534.5 | I162: 550 | J162: Profit of Rs.12.5/- | L162: =H162-F162 -> 12.50 | M162: =L162/F162 -> 2.39% | P162: Successful | Q162: 2017-01-04 | S162: R
A163: 6 | B163: 2018-01-05 | D163: PVR | E163: Buy | F163: 1402 | G163: 1375 | H163: 1428 | I163: 1455 | J163: Profit of Rs.26/- | L163: =H163-F163 -> 26.00 | M163: =L163/F163 -> 1.85% | P163: Successful | Q163: 2018-01-08 | S163: R
A164: 7 | B164: 2018-01-10 | D164: HEIDELBERG | E164: Buy | F164: 165.5 | G164: 161 | H164: 171.75 | I164: 175 | J164: Profit of Rs.6.25/- | L164: 6.25 | M164: 3.78% | P164: Successful | Q164: 2018-01-10 | S164: R
A165: 8 | B165: 2018-01-15 | D165: ENGINERSIN | E165: Buy | F165: 193 | G165: 188 | H165: 187.5 | I165: 203-206 | J165: Loss of Rs.5.50/- | L165: -5.50 | M165: -2.85% | P165: Unsuccessful | Q165: 2018-01-16 | S165: H
A166: 9 | B166: 2018-01-15 | D166: MCDOWELL-N | E166: Buy | F166: 3845 | G166: 3770 | H166: 3755 | I166: 3950 | J166: Loss of Rs.90/- | L166: =H166-F166 -> -90.00 | M166: =L166/F166 -> -2.34% | P166: Unsuccessful | Q166: 2018-01-16 | S166: R
A167: 10 | B167: 2018-01-16 | D167: KOTAKBANK JAN FUT | E167: Buy | F167: 1032.5 | G167: 1018 | H167: 1035 | I167: 1065-1070 | J167: Profit of Rs. 2.5/- | L167: =H167-F167 -> 2.50 | N167: =O167*L167 -> 2000 | O167: 800 | P167: Successful | Q167: 2018-01-16 | S167: H
A168: 11 | B168: 2018-01-17 | D168: BFUTILITIE | E168: Buy | F168: 529.5 | G168: 516 | H168: 545.5 | I168: 560 | J168: Profit of Rs.16/- | L168: =H168-F168 -> 16.00 | M168: =L168/F168 -> 3.02% | P168: Successful | Q168: 2018-01-17 | S168: R
A169: 12 | B169: 2018-01-17 | D169: PFC | E169: Buy | F169: 121.5 | G169: 118 | H169: 118 | I169: 127-128 | J169: Loss of Rs.3.50/- | L169: -3.50 | M169: -2.88% | P169: Unsuccessful | Q169: 2018-01-30 | S169: H
A170: 13 | B170: 2018-01-19 | D170: RELIANCE | E170: Buy | F170: 929 | G170: 915 | H170: 948 | I170: 960 | J170: Profit of Rs.19/- | L170: =H170-F170 -> 19.00 | M170: =L170/F170 -> 2.05% | P170: Successful | Q170: 2018-01-22 | S170: R
A171: 14 | B171: 2018-01-22 | D171: BOMDYEING | E171: Buy | F171: 258 | G171: 249 | H171: 264.5 | I171: 280 | J171: Profit of Rs.6.5/- | L171: =H171-F171 -> 6.50 | M171: =L171/F171 -> 2.52% | P171: Successful | Q171: 2018-01-22 | S171: R
A172: 15 | B172: 2018-01-22 | D172: RAIN | E172: Buy | F172: 436.5 | G172: 426 | H172: 413.5 | I172: 450 | J172: Loss of Rs.23/- | L172: -23.00 | M172: -5.27% | P172: Unsuccessful | Q172: 2018-01-24 | S172: R
A173: 16 | B173: 2018-01-31 | D173: BOMDYEING | E173: Buy | F173: 232-233 | G173: 225 | I173: 250 | J173: Open | S173: R
A175: CLBS = Closing Basis *** | F175: Reinitiated $
A176: Dividend adjusted <> | F176: Revised stoploss #
B180: Quick Pick Intraday
A181: Sr.no | B181: Date | D181: Company | E181: Rec | F181: Rec Price | G181: Stop Loss*** | H181: Call Closed At | I181: Target | J181: Remark | L181: Profit / Loss per Share | M181: Gain / Loss % | N181: Status | O181: Closed Date
B189: Investment Idea
A190: Sr.no | B190: Date | D190: Company | E190: Rec | F190: Rec Price | G190: Point of Review | H190: Close Rate | I190: Target | J190: Remark | L190: Profit / Loss per Share | M190: Gain / Loss % | N190: Status | O190: Closed Date
A191: 1 | B191: 2013-11-01 | D191: L&T Finance Holding | E191: Accu | F191: 82.00 | G191: - | H191: 100 | I191: 100.00 | J191: Target Achieved | L191: =H191-F191-K191 -> 18.00 | M191: =L191/F191 -> 21.95% | N191: Successful | O191: 2016-10-14
A192: 2 | B192: 2014-06-04 | D192: Finolex Inds | E192: Buy | F192: 257.00 | G192: - | H192: 300 | I192: 300.00 | J192: Target Achieved | L192: 43.00 | M192: 16.73% | N192: Successful | O192: 2014-07-02
A193: =1+A192 -> 3 | B193: 2014-07-08 | D193: JK Cement | E193: Buy | F193: 393.00 | G193: - | H193: 468 | I193: 468.00 | J193: Target Achieved | L193: 75.00 | M193: 19.08% | N193: Successful | O193: 2014-08-12
A194: 4 | B194: 2014-08-06 | D194: Finolex Cables | E194: Buy | F194: 205.00 | G194: - | H194: 275 | I194: 250.00 | J194: Target Achieved | L194: 70.00 | M194: 34.15% | N194: Successful | O194: 2014-11-19
A195: 5 | B195: 2014-09-04 | D195: Exide Inds | E195: Buy | F195: 162.00 | G195: - | H195: 190 | I195: 190.00 | J195: Target Achieved | L195: 28.00 | M195: 17.28% | N195: Successful | O195: 2015-01-02
A196: 6 | B196: 2014-09-04 | D196: Deepak Nitrite | E196: Buy | F196: 75.00 | G196: - | H196: 91.5 | I196: 95-100 | J196: Profit of Rs.16.50/- | L196: 16.50 | M196: 22.00% | N196: Successful | O196: 2014-11-11
A197: 7 | B197: 2014-10-01 | D197: Mercks | E197: Buy | F197: 850.00 | G197: - | H197: 982.5 | I197: 1050.00 | J197: Profit of Rs.132.50/- | L197: 132.50 | M197: 15.59% | N197: Successful | O197: 2015-02-04
A198: 8 | B198: 2014-10-01 | D198: Grindwell Norton | E198: Buy | F198: 475.00 | G198: - | H198: 515 | I198: 600.00 | J198: Profit of Rs.40/- | L198: 40.00 | M198: 8.42% | N198: Successful | O198: 2014-10-27
A199: 9 | B199: 2014-10-01 | D199: Snowman Logistics | E199: Buy | F199: 86.00 | G199: - | H199: 99 | I199: 140.00 | J199: Profit of Rs.13.00/- | L199: 13.00 | M199: 15.12% | N199: Successful | O199: 2014-10-27
A200: 10 | B200: 2014-10-14 | D200: Birla Corp | E200: Buy | F200: 496.60 | G200: - | H200: 621 | I200: 580.00 | J200: Target Achieved | L200: 124.40 | M200: 25.05% | N200: Successful | O200: 2016-08-23
A201: 11 | B201: 2014-10-14 | D201: Ultratech Cem | E201: Buy | F201: 2481.90 | G201: - | H201: 2840 | I201: 2870.00 | J201: Profit of Rs.358.10/- | L201: 358.10 | M201: 14.43% | N201: Successful | O201: 2015-01-13
A202: =1+A199 -> 10 | B202: 2014-10-16 | D202: Sintex Inds | E202: Buy | F202: 84.50 | G202: - | H202: 93 | I202: 110.00 | J202: Profit of Rs.8.50/- | L202: 8.50 | M202: 10.06% | N202: Successful | O202: 2014-10-27
A203: =1+A202 -> 11 | B203: 2014-10-16 | D203: HSIL | E203: Buy | F203: 401.00 | G203: - | H203: 428 | I203: 450.00 | J203: Profit of Rs.27.00/- | L203: 27.00 | M203: 6.73% | N203: Successful | O203: 2015-01-16
A204: 12 | B204: 2014-10-16 | D204: Eveready Inds | E204: Buy | F204: 101.00 | G204: - | H204: 112 | I204: 120.00 | J204: Profit of Rs.11.00/- | L204: 11.00 | M204: 10.89% | N204: Successful | O204: 2014-10-27
A205: 13 | B205: 2014-11-11 | D205: Pennar Inds | E205: Buy | F205: 59.00 | G205: - | H205: 76 | I205: 76.00 | J205: Target Achieved | L205: 17.00 | M205: 28.81% | N205: Successful | O205: 2017-10-24
A206: 14 | B206: 2014-11-11 | D206: Snowman Logistics | E206: Buy | F206: 99.00 | G206: - | H206: 120 | I206: 120.00 | J206: Profit of Rs.21/- | L206: 21.00 | M206: 21.21% | N206: Successful | O206: 2014-11-17
A207: 15 | B207: 2014-11-13 | D207: Dharamsi Morarji Chem | E207: Buy | F207: 22.00 | G207: - | H207: 33.55 | I207: 32.00 | J207: Profit of Rs 11.55/- | L207: 11.55 | M207: 52.50% | N207: Successful | O207: 2015-07-03
A208: 16 | B208: 2014-12-03 | D208: Tatachem | E208: Buy | F208: 440.00 | G208: - | H208: 520 | I208: 520.00 | J208: Profit of Rs 80.00/- | L208: 80.00 | M208: 18.18% | N208: Successful | O208: 2015-07-23
A209: 17 | B209: 2014-12-03 | D209: Advanta | E209: Buy | F209: 360.00 | G209: - | H209: 427 | I209: 425.00 | J209: Profit of Rs.67.00/- | L209: 67.00 | M209: 18.61% | N209: Successful | O209: 2015-02-23
A210: 18 | B210: 2015-01-08 | D210: GDL | E210: Buy | F210: 360.00 | G210: - | H210: 455 | I210: 420.00 | J210: Profit of Rs.95.00/- | L210: 95.00 | M210: 26.39% | N210: Successful | O210: 2015-01-20
A211: 19 | B211: 2015-01-08 | D211: NRB Bearing | E211: Buy | F211: 130.00 | H211: 175.5 | I211: 165.00 | J211: Profit of Rs 45.50/- | L211: 45.50 | M211: 35.00% | N211: Successful | O211: 2017-12-19
A212: 20 | B212: 2015-02-05 | D212: GSFC | E212: Accu | F212: 98.00 | H212: 120 | I212: 120.00 | J212: Target Achieved | L212: 22.00 | M212: 22.45% | N212: Successful | O212: 2017-01-18
A213: 21 | B213: 2015-02-05 | D213: Sundrmfast | E213: Accu | F213: 196.00 | H213: 262 | I213: 255.00 | J213: Target Achieved | L213: 66.00 | M213: 33.67% | N213: Successful | O213: 2016-08-17
A214: 22 | B214: 2015-03-04 | D214: GPPL | E214: Accu | F214: 230-240 | I214: 280-285 | J214: Open
A215: 23 | B215: 2015-03-04 | D215: ORIENTCEM | E215: Accu | F215: 185.00 | H215: 224 | I215: 220-225 | J215: Target Achieved | L215: =H215-F215-K215 -> 39.00 | M215: =L215/F215 -> 21.08% | N215: Successful | O215: 2016-10-04
A216: 24 | B216: 2015-03-27 | D216: PFS | E216: Accu | F216: 49-50 | I216: 67.00 | J216: Open
A217: 25 | B217: 2015-03-30 | D217: Walchandnagar Ind Ltd | E217: Accu | F217: 183.50 | H217: 219 | I217: 218.00 | J217: Profit of Rs.35.50/- | L217: =H217-F217-K217 -> 35.50 | M217: =L217/F217 -> 19.35% | N217: Successful | O217: 2015-04-09
A218: 26 | B218: 2015-04-20 | D218: Kalpataru Power Transmission Ltd | E218: Accu | F218: =(227+237)/2 -> 232.00 | H218: 298 | I218: 298.00 | J218: Target Achieved | L218: 66.00 | M218: 28.45% | N218: Successful | O218: 2017-03-29
A219: 27 | B219: 2015-05-04 | D219: Mastek Ltd | E219: Buy | F219: 385.00 | H219: =212.5+331 -> 543.5 | I219: 510.00 | J219: Profit of Rs 158.50/- | L219: 158.50 | M219: 41.17% | N219: Successful | O219: 2015-08-19
A220: 28 | B220: 2015-05-04 | D220: Suprajit Eng | E220: Buy | F220: 115.50 | H220: 146 | I220: 142.00 | J220: Profit of Rs 30.50/- | L220: 30.50 | M220: 26.41% | N220: Successful | O220: 2015-07-17
A221: 29 | B221: 2015-05-27 | D221: TCI | E221: Buy | F221: 237.50 | H221: 279.5 | I221: 278.00 | J221: Target Achieved | L221: 42.00 | M221: 17.68% | N221: Successful | O221: 2015-08-06
A222: 30 | B222: 2015-06-19 | D222: HSIL | E222: Accu | F222: 340.00 | H222: 448 | I222: 448.00 | J222: Target Achieved | L222: 108.00 | M222: 31.76% | N222: Successful | O222: 2017-10-10
A223: 31 | B223: 2015-07-06 | D223: Capital First | E223: Accu | F223: 390.00 | H223: 460 | I223: 460.00 | J223: Target Achieved | L223: 70.00 | M223: 17.95% | N223: Successful | O223: 2016-04-18
A224: 32 | B224: 2015-07-10 | D224: Dolphin OffShore | E224: Accu | F224: 118-127 | I224: 172.00 | J224: Open
A225: 33 | B225: 2015-08-03 | D225: Allcargo logistics | E225: Accu | F225: 297.50 | H225: 350 | I225: 360.00 | J225: Profit of Rs 52.50/- | L225: =H225-F225-K225 -> 52.50 | M225: =L225/F225 -> 17.65% | N225: Successful | O225: 2015-08-16
A226: 34 | B226: 2015-08-03 | D226: Camline Fine | E226: Accu | F226: 115.50 | H226: 149 | I226: 140.00 | J226: Profit of Rs 33.50/- | L226: 33.50 | M226: 29.00% | N226: Successful | O226: 2017-01-05
A227: 35 | B227: 2015-09-04 | D227: TCI | E227: Accu | F227: 226.00 | H227: 292 | I227: 292.00 | J227: Target Achieved | L227: 66.00 | M227: 29.20% | N227: Successful | O227: 2015-10-09
A228: 36 | B228: 2015-09-07 | D228: Kalpataru Power Transmission Ltd | E228: Accu | F228: 232.50 | H228: 312.5 | I228: 310.00 | J228: Target Achieved | L228: 80.00 | M228: 34.41% | N228: Successful | O228: 2017-03-29
A229: 37 | B229: 2015-09-21 | D229: LLOYD ELECTRIC & ENG LTD | E229: Accu | F229: 196.50 | H229: 238 | I229: 238.00 | J229: Target Achieved | L229: 41.50 | M229: 21.12% | N229: Successful | O229: 2015-10-14
A230: 38 | B230: 2015-09-24 | D230: L&T Finance Holding | E230: Accu | F230: 65.00 | H230: 82 | I230: 82.00 | J230: Target Achieved | L230: 17.00 | M230: 26.15% | N230: Successful | O230: 2016-07-27
A231: 39 | B231: 2015-10-14 | D231: KEC International ltd | E231: Accu | F231: 144.00 | H231: 182.5 | I231: 181.00 | J231: Target Achieved | L231: 38.50 | M231: 26.74% | N231: Successful | O231: 2017-03-23
A232: 40 | B232: 2015-10-14 | D232: Gruh Finance | E232: Accu | F232: 264.00 | H232: 311 | I232: 311.00 | J232: Target Achieved | L232: 47.00 | M232: 17.80% | N232: Successful | O232: 2016-08-22
A233: 41 | B233: 2015-11-10 | D233: Pidilitind | E233: Buy | F233: 549.50 | H233: 630 | I233: 630.00 | J233: Target Achieved | L233: 80.50 | M233: 14.65% | N233: Successful | O233: 2016-02-19
A234: 42 | B234: 2015-12-04 | D234: Zensar Technology | E234: Accu | F234: 1020-1035 | I234: 1250.00 | J234: Open
A235: 43 | B235: 2015-12-29 | D235: Vinati Organics Ltd | E235: Accu | F235: 465.00 | H235: 540 | I235: 540.00 | J235: Target Achieved | L235: =H235-F235-K235 -> 75.00 | M235: =L235/F235 -> 16.13% | N235: Successful | O235: 2016-06-09
A236: 44 | B236: 2016-01-11 | D236: GSFC | E236: Buy | F236: 81.00 | H236: 110 | I236: 110.00 | J236: Target Achieved | L236: 29.00 | M236: 35.80% | N236: Successful | O236: 2017-01-10
A237: 45 | B237: 2016-01-13 | D237: SSWL | E237: Buy | F237: 417.50 | H237: 547 | I237: 535.00 | J237: Target Achieved | L237: 129.50 | M237: 31.02% | N237: Successful | O237: 2016-07-27
A238: 46 | B238: 2016-02-08 | D238: Persistent System Ltd | E238: Accu | F238: 650 | H238: 767.50 | I238: 800.00 | J238: Part profit of Rs.117.50/- | L238: 117.50 | M238: 18% | N238: Successful | O238: 2016-03-21
A239: 47 | B239: 2016-03-04 | D239: UPL | E239: Accu | F239: 437.50 | H239: 504.5 | I239: 522.00 | J239: Profit of Rs.67/- | L239: 67.00 | M239: 15.31% | N239: Successful | O239: 2016-04-20
A240: 48 | B240: 2016-03-09 | D240: Ashoka Buildcon Ltd | E240: Accu | F240: 189.50 | H240: 218 | I240: 218.00 | J240: Target Achieved | L240: 28.50 | M240: 15.04% | N240: Successful | O240: 2017-10-26
... 72 more rows

Sheet Sheet2 (hidden)
A1: SYMBOL | B1: SERIES | C1: OPEN | D1: HIGH | E1: LOW | F1: CLOSE | G1: LAST | H1: PREVCLOSE | I1: TOTTRDQTY | J1: TOTTRDVAL | K1: TIMESTAMP | L1: TOTALTRADES | M1: ISIN
A2: 20MICRONS | B2: EQ | C2: 52.25 | D2: 53.1 | E2: 52 | F2: 52.75 | G2: 52.85 | H2: 52.25 | I2: 75086 | J2: 3958037.05 | K2: 2018-01-31 | L2: 687 | M2: INE144J01027
A3: 3IINFOTECH | B3: EQ | C3: 6.2 | D3: 6.5 | E3: 6.1 | F3: 6.15 | G3: 6.2 | H3: 6.4 | I3: 6446796 | J3: 40238376.7 | K3: 2018-01-31 | L3: 3194 | M3: INE748C01020
A4: 3MINDIA | B4: EQ | C4: 18875 | D4: 18875 | E4: 18657 | F4: 18796.15 | G4: 18800 | H4: 18805.1 | I4: 8501 | J4: 159788468.4 | K4: 2018-01-31 | L4: 548 | M4: INE470A01017
A5: 5PAISA | B5: EQ | C5: 295.3 | D5: 305 | E5: 287 | F5: 290.2 | G5: 291 | H5: 299.95 | I5: 9217 | J5: 2692672.65 | K5: 2018-01-31 | L5: 366 | M5: INE618L01018
A6: 63MOONS | B6: EQ | C6: 108 | D6: 109.5 | E6: 104 | F6: 104.8 | G6: 104.5 | H6: 107.95 | I6: 233619 | J6: 24872411.15 | K6: 2018-01-31 | L6: 3323 | M6: INE111B01023
A7: 8KMILES | B7: EQ | C7: 729.9 | D7: 753 | E7: 710 | F7: 736.85 | G7: 740 | H7: 732.45 | I7: 185666 | J7: 136011103 | K7: 2018-01-31 | L7: 9143 | M7: INE650K01021
A8: A2ZINFRA | B8: EQ | C8: 37.4 | D8: 38.65 | E8: 37.25 | F8: 37.95 | G8: 37.95 | H8: 37.65 | I8: 719735 | J8: 27357584.75 | K8: 2018-01-31 | L8: 3303 | M8: INE619I01012
A9: AARTIDRUGS | B9: EQ | C9: 648.95 | D9: 651.55 | E9: 623 | F9: 624.95 | G9: 626 | H9: 642.2 | I9: 8557 | J9: 5423005.2 | K9: 2018-01-31 | L9: 612 | M9: INE767A01016
A10: AARTIIND | B10: EQ | C10: 1035 | D10: 1061.8 | E10: 1014.9 | F10: 1056.75 | G10: 1060.9 | H10: 1028.65 | I10: 40022 | J10: 41761779 | K10: 2018-01-31 | L10: 3849 | M10: INE769A01020
A11: AARVEEDEN | B11: EQ | C11: 50 | D11: 50 | E11: 48.3 | F11: 49.6 | G11: 49.4 | H11: 49.7 | I11: 22557 | J11: 1114155.7 | K11: 2018-01-31 | L11: 250 | M11: INE273D01019
A12: ABAN | B12: EQ | C12: 211.85 | D12: 215.6 | E12: 208.35 | F12: 211 | G12: 211 | H12: 213.5 | I12: 1363558 | J12: 289160002.7 | K12: 2018-01-31 | L12: 15294 | M12: INE421A01028
A13: ABB | B13: EQ | C13: 1600.05 | D13: 1665 | E13: 1585.55 | F13: 1653.2 | G13: 1654 | H13: 1605.8 | I13: 125376 | J13: 205742180.6 | K13: 2018-01-31 | L13: 9108 | M13: INE117A01022
A14: ABBOTINDIA | B14: EQ | C14: 5505 | D14: 5650 | E14: 5457.1 | F14: 5625.05 | G14: 5619 | H14: 5512.1 | I14: 6052 | J14: 33831545.75 | K14: 2018-01-31 | L14: 1147 | M14: INE358A01014
A15: ABCAPITAL | B15: EQ | C15: 170.7 | D15: 172.8 | E15: 169.85 | F15: 170.85 | G15: 171.25 | H15: 170 | I15: 1537405 | J15: 263168879.8 | K15: 2018-01-31 | L15: 15640 | M15: INE674K01013
A16: ABFRL | B16: EQ | C16: 160 | D16: 164 | E16: 158.4 | F16: 163.05 | G16: 163.85 | H16: 160 | I16: 636498 | J16: 102257197.7 | K16: 2018-01-31 | L16: 5652 | M16: INE647O01011
A17: ACC | B17: EQ | C17: 1728.1 | D17: 1737.9 | E17: 1700.05 | F17: 1715.25 | G17: 1716.2 | H17: 1728.1 | I17: 335683 | J17: 578342225.5 | K17: 2018-01-31 | L17: 11381 | M17: INE012A01025
A18: ACCELYA | B18: EQ | C18: 1405.1 | D18: 1497 | E18: 1405.05 | F18: 1441.65 | G18: 1444 | H18: 1423.8 | I18: 1534 | J18: 2197450.85 | K18: 2018-01-31 | L18: 260 | M18: INE793A01012
A19: ACE | B19: EQ | C19: 169 | D19: 175 | E19: 168.65 | F19: 172.05 | G19: 172.3 | H19: 169.95 | I19: 669804 | J19: 115298250.2 | K19: 2018-01-31 | L19: 8657 | M19: INE731H01025
A20: ADANIENT | B20: EQ | C20: 209.95 | D20: 218.75 | E20: 209.15 | F20: 213.2 | G20: 212.5 | H20: 211.3 | I20: 7732419 | J20: 1660954267 | K20: 2018-01-31 | L20: 50590 | M20: INE423A01024
A21: ADANIPORTS | B21: EQ | C21: 428 | D21: 435.5 | E21: 424.5 | F21: 428.85 | G21: 428.15 | H21: 428.25 | I21: 2734628 | J21: 1174128902 | K21: 2018-01-31 | L21: 66100 | M21: INE742F01042
A22: ADANIPOWER | B22: EQ | C22: 37.05 | D22: 38.25 | E22: 36.1 | F22: 36.65 | G22: 36.55 | H22: 37.45 | I22: 10959615 | J22: 406446925.3 | K22: 2018-01-31 | L22: 17322 | M22: INE814H01011
A23: ADANITRANS | B23: EQ | C23: 208 | D23: 215 | E23: 206.6 | F23: 208.9 | G23: 208.2 | H23: 209.15 | I23: 889978 | J23: 186895310.1 | K23: 2018-01-31 | L23: 11190 | M23: INE931S01010
A24: ADFFOODS | B24: EQ | C24: 262.15 | D24: 275 | E24: 258 | F24: 270.7 | G24: 272 | H24: 264 | I24: 208211 | J24: 55583870.15 | K24: 2018-01-31 | L24: 3710 | M24: INE982B01019
A25: ADORWELD | B25: EQ | C25: 495 | D25: 524.9 | E25: 495 | F25: 502.1 | G25: 500.15 | H25: 502.1 | I25: 30381 | J25: 15398919.55 | K25: 2018-01-31 | L25: 1343 | M25: INE045A01017
A26: ADVANIHOTR | B26: EQ | C26: 74.65 | D26: 76 | E26: 71.9 | F26: 72.35 | G26: 72.2 | H26: 74.65 | I26: 37471 | J26: 2750704.2 | K26: 2018-01-31 | L26: 336 | M26: INE199C01026
A27: ADVENZYMES | B27: EQ | C27: 265 | D27: 269 | E27: 263 | F27: 264.1 | G27: 263.55 | H27: 268.85 | I27: 126011 | J27: 33432710.05 | K27: 2018-01-31 | L27: 3024 | M27: INE837H01020
A28: AEGISCHEM | B28: EQ | C28: 248.8 | D28: 250.75 | E28: 244.5 | F28: 249 | G28: 248 | H28: 252.6 | I28: 341415 | J28: 84425357.6 | K28: 2018-01-31 | L28: 4875 | M28: INE208C01025
A29: AFL | B29: EQ | C29: 59.7 | D29: 59.7 | E29: 57.5 | F29: 58.35 | G29: 58.6 | H29: 58.55 | I29: 4341 | J29: 254221.8 | K29: 2018-01-31 | L29: 45 | M29: INE020G01017
A30: AGLSL | B30: EQ | C30: 117 | D30: 120.75 | E30: 116.5 | F30: 119.1 | G30: 117.2 | H30: 120.15 | I30: 4806 | J30: 567506.15 | K30: 2018-01-31 | L30: 65 | M30: INE517U01013
A31: AGRITECH | B31: EQ | C31: 101 | D31: 110.8 | E31: 99.15 | F31: 106.1 | G31: 107.15 | H31: 100.8 | I31: 43956 | J31: 4659242.95 | K31: 2018-01-31 | L31: 1133 | M31: INE449G01018
A32: AHLEAST | B32: EQ | C32: 392.45 | D32: 392.5 | E32: 351 | F32: 352.4 | G32: 353 | H32: 386.95 | I32: 27661 | J32: 10034294.1 | K32: 2018-01-31 | L32: 1552 | M32: INE926K01017
A33: AHLUCONT | B33: EQ | C33: 351.5 | D33: 357.9 | E33: 348 | F33: 350.5 | G33: 351.9 | H33: 351.35 | I33: 93180 | J33: 32682803.9 | K33: 2018-01-31 | L33: 2382 | M33: INE758C01029
A34: AIAENG | B34: EQ | C34: 1566 | D34: 1570 | E34: 1525 | F34: 1535.85 | G34: 1529.7 | H34: 1564.15 | I34: 27039 | J34: 41927585.05 | K34: 2018-01-31 | L34: 1564 | M34: INE212H01026
A35: AIFL | B35: EQ | C35: 459.05 | D35: 463.8 | E35: 454.7 | F35: 459 | G35: 456.2 | H35: 461.35 | I35: 78726 | J35: 36011529.1 | K35: 2018-01-31 | L35: 1208 | M35: INE428O01016
A36: AJANTPHARM | B36: EQ | C36: 1457 | D36: 1460.8 | E36: 1425.1 | F36: 1451.55 | G36: 1448.8 | H36: 1447.95 | I36: 182964 | J36: 264137001.8 | K36: 2018-01-31 | L36: 7695 | M36: INE031B01049
A37: AJMERA | B37: EQ | C37: 310 | D37: 318 | E37: 305.5 | F37: 310.7 | G37: 312.15 | H37: 310.7 | I37: 37042 | J37: 11537043.2 | K37: 2018-01-31 | L37: 1067 | M37: INE298G01027
A38: AKSHARCHEM | B38: EQ | C38: 736 | D38: 743.95 | E38: 720.1 | F38: 725.35 | G38: 726.8 | H38: 735.5 | I38: 8413 | J38: 6171661.3 | K38: 2018-01-31 | L38: 370 | M38: INE542B01011
A39: AKZOINDIA | B39: EQ | C39: 1850 | D39: 1869 | E39: 1830.1 | F39: 1841.3 | G39: 1830.1 | H39: 1860.75 | I39: 12160 | J39: 22493070.45 | K39: 2018-01-31 | L39: 464 | M39: INE133A01011
A40: ALANKIT | B40: EQ | C40: 60.55 | D40: 64.75 | E40: 60.55 | F40: 63.15 | G40: 64 | H40: 62.05 | I40: 346609 | J40: 21590273.15 | K40: 2018-01-31 | L40: 1898 | M40: INE914E01040
A41: ALBK | B41: EQ | C41: 68.15 | D41: 68.4 | E41: 66.35 | F41: 66.8 | G41: 66.7 | H41: 68.15 | I41: 2829122 | J41: 191000778.2 | K41: 2018-01-31 | L41: 10123 | M41: INE428A01015
A42: ALEMBICLTD | B42: EQ | C42: 64.9 | D42: 66.3 | E42: 63.7 | F42: 65.1 | G42: 65.15 | H42: 64.85 | I42: 2013286 | J42: 130922679.6 | K42: 2018-01-31 | L42: 13443 | M42: INE426A01027
A43: ALICON | B43: EQ | C43: 667.3 | D43: 684.4 | E43: 656 | F43: 668.7 | G43: 671.45 | H43: 673.7 | I43: 8338 | J43: 5562839.3 | K43: 2018-01-31 | L43: 746 | M43: INE062D01024
A44: ALKALI | B44: EQ | C44: 84 | D44: 84 | E44: 78.7 | F44: 80 | G44: 80 | H44: 80.6 | I44: 9381 | J44: 756221.55 | K44: 2018-01-31 | L44: 290 | M44: INE773I01017
A45: ALKEM | B45: EQ | C45: 2188.3 | D45: 2229.95 | E45: 2188 | F45: 2198.75 | G45: 2200 | H45: 2233 | I45: 18474 | J45: 40644208.8 | K45: 2018-01-31 | L45: 3079 | M45: INE540L01014
A46: ALKYLAMINE | B46: EQ | C46: 732 | D46: 746.65 | E46: 700.05 | F46: 704.55 | G46: 700.05 | H46: 737.7 | I46: 4801 | J46: 3441600.9 | K46: 2018-01-31 | L46: 481 | M46: INE150B01021
A47: ALLCARGO | B47: EQ | C47: 195 | D47: 195 | E47: 191.05 | F47: 193 | G47: 193.05 | H47: 195.9 | I47: 251948 | J47: 48718644.55 | K47: 2018-01-31 | L47: 4561 | M47: INE418H01029
A48: ALLSEC | B48: EQ | C48: 414 | D48: 418.35 | E48: 406.6 | F48: 411.25 | G48: 410.55 | H48: 414.65 | I48: 6336 | J48: 2613188.1 | K48: 2018-01-31 | L48: 231 | M48: INE835G01018
A49: ALPA | B49: EQ | C49: 40 | D49: 41 | E49: 39.55 | F49: 39.95 | G49: 39.8 | H49: 40.4 | I49: 37016 | J49: 1490016.35 | K49: 2018-01-31 | L49: 300 | M49: INE385I01010
A50: ALPHAGEO | B50: EQ | C50: 914.95 | D50: 918 | E50: 903 | F50: 908.45 | G50: 909.95 | H50: 906.45 | I50: 33483 | J50: 30473992.75 | K50: 2018-01-31 | L50: 1107 | M50: INE137C01018
A51: AMARAJABAT | B51: EQ | C51: 815.05 | D51: 820 | E51: 802.1 | F51: 810.1 | G51: 804.2 | H51: 811.25 | I51: 297406 | J51: 241199094.2 | K51: 2018-01-31 | L51: 11826 | M51: INE885A01032
A52: AMBER | B52: EQ | C52: 1232.9 | D52: 1299 | E52: 1215 | F52: 1249.65 | G52: 1251.5 | H52: 1245.25 | I52: 3002179 | J52: 3815901416 | K52: 2018-01-31 | L52: 107416 | M52: INE371P01015
A53: AMBIKCO | B53: EQ | C53: 1376.95 | D53: 1416.9 | E53: 1328.6 | F53: 1344.85 | G53: 1339.95 | H53: 1376.15 | I53: 4885 | J53: 6604956.15 | K53: 2018-01-31 | L53: 511 | M53: INE540G01014
A54: AMBUJACEM | B54: EQ | C54: 261.7 | D54: 263.3 | E54: 257.15 | F54: 261.8 | G54: 262.75 | H54: 261.5 | I54: 2708846 | J54: 703941228 | K54: 2018-01-31 | L54: 23279 | M54: INE079A01024
A55: AMDIND | B55: EQ | C55: 39.3 | D55: 44 | E55: 38.5 | F55: 40.6 | G55: 40.15 | H55: 40.1 | I55: 211162 | J55: 8954439.3 | K55: 2018-01-31 | L55: 1305 | M55: INE005I01014
A56: AMJLAND | B56: EQ | C56: 24.8 | D56: 25.8 | E56: 24.8 | F56: 25.55 | G56: 25.55 | H56: 25.15 | I56: 22372 | J56: 566043.1 | K56: 2018-01-31 | L56: 77 | M56: INE606A01024
A57: AMRUTANJAN | B57: EQ | C57: 605 | D57: 605 | E57: 591.6 | F57: 597.1 | G57: 596 | H57: 605.6 | I57: 4817 | J57: 2868926.6 | K57: 2018-01-31 | L57: 335 | M57: INE098F01023
A58: ANANTRAJ | B58: EQ | C58: 65.75 | D58: 68.15 | E58: 65.6 | F58: 66.7 | G58: 66.55 | H58: 66.25 | I58: 1324342 | J58: 88495762.5 | K58: 2018-01-31 | L58: 8174 | M58: INE242C01024
A59: ANDHRABANK | B59: EQ | C59: 52.9 | D59: 53.6 | E59: 51.9 | F59: 52.55 | G59: 52.5 | H59: 53.25 | I59: 3495843 | J59: 183790838.6 | K59: 2018-01-31 | L59: 13256 | M59: INE434A01013
A60: ANDHRACEMT | B60: EQ | C60: 12.5 | D60: 13.2 | E60: 12.4 | F60: 13.1 | G60: 13.2 | H60: 12.6 | I60: 460078 | J60: 5954153.95 | K60: 2018-01-31 | L60: 763 | M60: INE666E01012
A61: ANDHRSUGAR | B61: EQ | C61: 657.8 | D61: 664.75 | E61: 624.1 | F61: 629.35 | G61: 624.2 | H61: 655.9 | I61: 26160 | J61: 16824088.2 | K61: 2018-01-31 | L61: 1171 | M61: INE715B01013
A62: ANIKINDS | B62: EQ | C62: 40.15 | D62: 42.8 | E62: 40.15 | F62: 41.3 | G62: 41 | H62: 41.25 | I62: 6932 | J62: 286994.55 | K62: 2018-01-31 | L62: 74 | M62: INE087B01017
A63: ANSALAPI | B63: EQ | C63: 26.9 | D63: 27.5 | E63: 26 | F63: 26.5 | G63: 26.75 | H63: 26.7 | I63: 116996 | J63: 3116746.5 | K63: 2018-01-31 | L63: 661 | M63: INE436A01026
A64: ANSALHSG | B64: EQ | C64: 27.75 | D64: 28.75 | E64: 27.5 | F64: 28.05 | G64: 28 | H64: 27.6 | I64: 82847 | J64: 2323688.35 | K64: 2018-01-31 | L64: 543 | M64: INE880B01015
A65: APARINDS | B65: EQ | C65: 767.45 | D65: 768.65 | E65: 726 | F65: 736.45 | G65: 735 | H65: 760.75 | I65: 90962 | J65: 67186232.55 | K65: 2018-01-31 | L65: 5578 | M65: INE372A01015
A66: APCL | B66: EQ | C66: 225.05 | D66: 234.75 | E66: 225.05 | F66: 225.35 | G66: 225.05 | H66: 228.75 | I66: 5658 | J66: 1284466.65 | K66: 2018-01-31 | L66: 101 | M66: INE071F01012
A67: APCOTEXIND | B67: EQ | C67: 482 | D67: 484 | E67: 473.5 | F67: 478.55 | G67: 479.6 | H67: 474.2 | I67: 2005 | J67: 952997.15 | K67: 2018-01-31 | L67: 150 | M67: INE116A01024
A68: APEX | B68: EQ | C68: 620.55 | D68: 657 | E68: 614.35 | F68: 627.4 | G68: 625 | H68: 646.65 | I68: 404104 | J68: 254504421.4 | K68: 2018-01-31 | L68: 11356 | M68: INE346W01013
A69: APLAPOLLO | B69: EQ | C69: 2240 | D69: 2240 | E69: 2104.95 | F69: 2143.4 | G69: 2141 | H69: 2255.3 | I69: 89186 | J69: 191871907.4 | K69: 2018-01-31 | L69: 9664 | M69: INE702C01019
A70: APLLTD | B70: EQ | C70: 543.5 | D70: 576.9 | E70: 543.5 | F70: 567.1 | G70: 565.1 | H70: 555.25 | I70: 488735 | J70: 275385155.4 | K70: 2018-01-31 | L70: 15746 | M70: INE901L01018
A71: APOLLOHOSP | B71: EQ | C71: 1135 | D71: 1173.85 | E71: 1135 | F71: 1162.8 | G71: 1162 | H71: 1140.05 | I71: 495268 | J71: 576414111.2 | K71: 2018-01-31 | L71: 28725 | M71: INE437A01024
A72: APOLLOTYRE | B72: EQ | C72: 259.4 | D72: 263.75 | E72: 253.55 | F72: 254.85 | G72: 254.75 | H72: 258.45 | I72: 3531429 | J72: 910448242.5 | K72: 2018-01-31 | L72: 39546 | M72: INE438A01022
A73: APOLSINHOT | B73: EQ | C73: 1360 | D73: 1420 | E73: 1358.95 | F73: 1390.5 | G73: 1390 | H73: 1366.05 | I73: 339 | J73: 468488.05 | K73: 2018-01-31 | L73: 54 | M73: INE451F01016
A74: APTECHT | B74: EQ | C74: 320 | D74: 321.4 | E74: 300.9 | F74: 304.95 | G74: 304.1 | H74: 321.7 | I74: 590573 | J74: 183480857.2 | K74: 2018-01-31 | L74: 13716 | M74: INE266F01018
A75: ARCHIDPLY | B75: EQ | C75: 104 | D75: 106.35 | E75: 100.05 | F75: 102.8 | G75: 103.5 | H75: 104.5 | I75: 71537 | J75: 7384982.2 | K75: 2018-01-31 | L75: 927 | M75: INE877I01016
A76: ARCHIES | B76: EQ | C76: 43.35 | D76: 44.5 | E76: 42.55 | F76: 43 | G76: 42.75 | H76: 42.95 | I76: 793845 | J76: 34481442.95 | K76: 2018-01-31 | L76: 3800 | M76: INE731A01020
A77: ARCOTECH | B77: EQ | C77: 47.55 | D77: 48.85 | E77: 47.55 | F77: 47.9 | G77: 47.75 | H77: 48.3 | I77: 171869 | J77: 8268618.2 | K77: 2018-01-31 | L77: 1363 | M77: INE574I01035
A78: ARIHANTSUP | B78: EQ | C78: 154 | D78: 159.45 | E78: 153 | F78: 157.8 | G78: 158.3 | H78: 154.35 | I78: 58982 | J78: 9186033.5 | K78: 2018-01-31 | L78: 597 | M78: INE643K01018
A79: AROGRANITE | B79: EQ | C79: 67.75 | D79: 69.4 | E79: 66.6 | F79: 66.85 | G79: 67 | H79: 68.1 | I79: 48190 | J79: 3242189.7 | K79: 2018-01-31 | L79: 683 | M79: INE210C01013
A80: ARROWGREEN | B80: EQ | C80: 480 | D80: 480 | E80: 471.6 | F80: 473.9 | G80: 473 | H80: 480.4 | I80: 9164 | J80: 4352752.1 | K80: 2018-01-31 | L80: 355 | M80: INE570D01018
A81: ARROWTEX | B81: EQ | C81: 43 | D81: 45.55 | E81: 43 | F81: 43.6 | G81: 43.95 | H81: 43.35 | I81: 27328 | J81: 1204582.75 | K81: 2018-01-31 | L81: 384 | M81: INE933J01015
A82: ARSHIYA | B82: EQ | C82: 97.9 | D82: 99.15 | E82: 92.85 | F82: 93.7 | G82: 93.45 | H82: 97.2 | I82: 66978 | J82: 6439909.65 | K82: 2018-01-31 | L82: 941 | M82: INE968D01022
A83: ARVIND | B83: EQ | C83: 424.55 | D83: 429.85 | E83: 405.6 | F83: 413.35 | G83: 411.85 | H83: 424.9 | I83: 3019180 | J83: 1261487928 | K83: 2018-01-31 | L83: 40211 | M83: INE034A01011
A84: ARVSMART | B84: EQ | C84: 199 | D84: 202.3 | E84: 195.4 | F84: 197.65 | G84: 198.1 | H84: 198.85 | I84: 37524 | J84: 7451377.45 | K84: 2018-01-31 | L84: 643 | M84: INE034S01021
A85: ASAHIINDIA | B85: EQ | C85: 344 | D85: 347.9 | E85: 336.95 | F85: 344.45 | G85: 347.9 | H85: 344.75 | I85: 30471 | J85: 10398591.65 | K85: 2018-01-31 | L85: 990 | M85: INE439A01020
A86: ASAHISONG | B86: EQ | C86: 357.05 | D86: 368 | E86: 348.5 | F86: 350.5 | G86: 351.8 | H86: 358.85 | I86: 8066 | J86: 2868884.55 | K86: 2018-01-31 | L86: 488 | M86: INE228I01012
A87: ASAL | B87: EQ | C87: 93 | D87: 93.95 | E87: 90.25 | F87: 92.35 | G87: 92.5 | H87: 92.55 | I87: 15465 | J87: 1421463.55 | K87: 2018-01-31 | L87: 201 | M87: INE900C01027
A88: ASHAPURMIN | B88: EQ | C88: 87.5 | D88: 90 | E88: 85.95 | F88: 89.15 | G88: 89.2 | H88: 87.15 | I88: 189378 | J88: 16706962.4 | K88: 2018-01-31 | L88: 1719 | M88: INE348A01023
A89: ASHIANA | B89: EQ | C89: 190.7 | D89: 202.8 | E89: 188.5 | F89: 199.5 | G89: 199.8 | H89: 189.55 | I89: 531187 | J89: 104148222 | K89: 2018-01-31 | L89: 7096 | M89: INE365D01021
A90: ASHIMASYN | B90: EQ | C90: 30.5 | D90: 30.9 | E90: 30 | F90: 30.15 | G90: 30 | H90: 30.55 | I90: 187817 | J90: 5695777.75 | K90: 2018-01-31 | L90: 637 | M90: INE440A01010
A91: ASHOKA | B91: EQ | C91: 223.85 | D91: 229.95 | E91: 222.2 | F91: 227 | G91: 228 | H91: 223.45 | I91: 244219 | J91: 55273250.1 | K91: 2018-01-31 | L91: 11250 | M91: INE442H01029
A92: ASHOKLEY | B92: EQ | C92: 125.4 | D92: 126.55 | E92: 124.4 | F92: 126.1 | G92: 126.1 | H92: 125.75 | I92: 10040333 | J92: 1257742795 | K92: 2018-01-31 | L92: 43286 | M92: INE208A01029
A93: ASIANHOTNR | B93: EQ | C93: 255 | D93: 274.95 | E93: 255 | F93: 264.3 | G93: 269.8 | H93: 261.2 | I93: 18944 | J93: 4986077.1 | K93: 2018-01-31 | L93: 803 | M93: INE363A01022
A94: ASIANPAINT | B94: EQ | C94: 1128 | D94: 1139.8 | E94: 1124 | F94: 1128.3 | G94: 1130.8 | H94: 1126.7 | I94: 961596 | J94: 1088925994 | K94: 2018-01-31 | L94: 37877 | M94: INE021A01026
A95: ASIANTILES | B95: EQ | C95: 548 | D95: 562.5 | E95: 544 | F95: 549.9 | G95: 552.2 | H95: 550.4 | I95: 98644 | J95: 54399795.3 | K95: 2018-01-31 | L95: 4514 | M95: INE022I01019
A96: ASPINWALL | B96: EQ | C96: 495 | D96: 504 | E96: 480 | F96: 495.9 | G96: 498.5 | H96: 500.85 | I96: 3542 | J96: 1745628.15 | K96: 2018-01-31 | L96: 149 | M96: INE991I01015
A97: ASTEC | B97: EQ | C97: 601 | D97: 602.2 | E97: 590 | F97: 593.1 | G97: 596 | H97: 601.95 | I97: 26879 | J97: 15999811.65 | K97: 2018-01-31 | L97: 1050 | M97: INE563J01010
A98: ASTRAL | B98: EQ | C98: 774.25 | D98: 814 | E98: 764.05 | F98: 798.75 | G98: 796.15 | H98: 774.25 | I98: 19686 | J98: 15673885.45 | K98: 2018-01-31 | L98: 2230 | M98: INE006I01046
A99: ASTRAMICRO | B99: EQ | C99: 114.6 | D99: 115 | E99: 112.5 | F99: 114.05 | G99: 114.5 | H99: 113.7 | I99: 363561 | J99: 41438087.3 | K99: 2018-01-31 | L99: 3086 | M99: INE386C01029
A100: ASTRAZEN | B100: EQ | C100: 1111.5 | D100: 1149.9 | E100: 1111.5 | F100: 1136.45 | G100: 1139.5 | H100: 1121.4 | I100: 2398 | J100: 2722232.9 | K100: 2018-01-31 | L100: 266 | M100: INE203A01020
A101: ASTRON | B101: EQ | C101: 138 | D101: 141.5 | E101: 135.1 | F101: 136.45 | G101: 135.6 | H101: 140.2 | I101: 305865 | J101: 41909181.3 | K101: 2018-01-31 | L101: 4843 | M101: INE646X01014
A102: ATFL | B102: EQ | C102: 649.95 | D102: 667.95 | E102: 639.1 | F102: 648 | G102: 650 | H102: 655.95 | I102: 9190 | J102: 6000657.65 | K102: 2018-01-31 | L102: 638 | M102: INE209A01019
A103: ATLANTA | B103: EQ | C103: 109.55 | D103: 110.9 | E103: 107.5 | F103: 108.8 | G103: 108.55 | H103: 108.7 | I103: 150026 | J103: 16349698.55 | K103: 2018-01-31 | L103: 1704 | M103: INE285H01022
A104: ATUL | B104: EQ | C104: 2807.1 | D104: 2822.45 | E104: 2695.1 | F104: 2712.45 | G104: 2722.35 | H104: 2802.8 | I104: 13807 | J104: 37645093.3 | K104: 2018-01-31 | L104: 1810 | M104: INE100A01010
A105: ATULAUTO | B105: EQ | C105: 419 | D105: 424.85 | E105: 408.8 | F105: 410.95 | G105: 410 | H105: 418.7 | I105: 33456 | J105: 13848882.75 | K105: 2018-01-31 | L105: 1304 | M105: INE951D01028
A106: AUBANK | B106: EQ | C106: 671.35 | D106: 676 | E106: 645.4 | F106: 656.55 | G106: 660 | H106: 679.3 | I106: 370497 | J106: 242754116.2 | K106: 2018-01-31 | L106: 14286 | M106: INE949L01017
A107: AURIONPRO | B107: EQ | C107: 212.95 | D107: 219.5 | E107: 205.4 | F107: 213.15 | G107: 215 | H107: 213.6 | I107: 38563 | J107: 8235259.4 | K107: 2018-01-31 | L107: 832 | M107: INE132H01018
A108: AUROPHARMA | B108: EQ | C108: 623.2 | D108: 635.5 | E108: 623.2 | F108: 629.55 | G108: 630.4 | H108: 631.7 | I108: 1877445 | J108: 1183196625 | K108: 2018-01-31 | L108: 41152 | M108: INE406A01037
A109: AUSOMENT | B109: EQ | C109: 82 | D109: 83.75 | E109: 78.25 | F109: 79.1 | G109: 78.3 | H109: 80.3 | I109: 10202 | J109: 818553.95 | K109: 2018-01-31 | L109: 162 | M109: INE218C01016
A110: AUTOAXLES | B110: EQ | C110: 1663.5 | D110: 1694.65 | E110: 1486.6 | F110: 1560.5 | G110: 1570 | H110: 1643.5 | I110: 62038 | J110: 95919178.25 | K110: 2018-01-31 | L110: 5383 | M110: INE449A01011
A111: AUTOLITIND | B111: EQ | C111: 65.5 | D111: 67.5 | E111: 65 | F111: 65.65 | G111: 65.8 | H111: 65.7 | I111: 9853 | J111: 647929.8 | K111: 2018-01-31 | L111: 125 | M111: INE448A01013
A112: AVADHSUGAR | B112: EQ | C112: 675 | D112: 697.95 | E112: 664.95 | F112: 670.95 | G112: 677 | H112: 670.1 | I112: 18499 | J112: 12568996.7 | K112: 2018-01-31 | L112: 946 | M112: INE349W01017
A113: AVANTIFEED | B113: EQ | C113: 2274.7 | D113: 2274.7 | E113: 2171.1 | F113: 2217.15 | G113: 2221 | H113: 2274.8 | I113: 93603 | J113: 207092054.6 | K113: 2018-01-31 | L113: 10017 | M113: INE871C01020
A114: AVTNPL | B114: EQ | C114: 46 | D114: 46.35 | E114: 45.1 | F114: 45.8 | G114: 46.25 | H114: 46.6 | I114: 122468 | J114: 5604441.25 | K114: 2018-01-31 | L114: 931 | M114: INE488D01021
A115: AXISBANK | B115: EQ | C115: 589.3 | D115: 596 | E115: 587.15 | F115: 593.6 | G115: 593.6 | H115: 593.75 | I115: 7108060 | J115: 4204893323 | K115: 2018-01-31 | L115: 141039 | M115: INE238A01034
A116: AXISCADES | B116: EQ | C116: 186.5 | D116: 187.85 | E116: 180.2 | F116: 182.15 | G116: 184.6 | H116: 186.5 | I116: 84403 | J116: 15517337.15 | K116: 2018-01-31 | L116: 1441 | M116: INE555B01013
A117: AXISGOLD | B117: EQ | C117: 2630 | D117: 2639.95 | E117: 2622.25 | F117: 2625 | G117: 2622.25 | H117: 2629.9 | I117: 469 | J117: 1233464 | K117: 2018-01-31 | L117: 56 | M117: INF846K01347
A118: AXISNIFTY | B118: EQ | C118: 1103.9 | D118: 1103.9 | E118: 1102.38 | F118: 1102.71 | G118: 1102.71 | H118: 1105.77 | I118: 184 | J118: 202956.23 | K118: 2018-01-31 | L118: 4 | M118: INF846K01ZL0
A119: AYMSYNTEX | B119: EQ | C119: 63.35 | D119: 65.35 | E119: 62.5 | F119: 62.9 | G119: 62.85 | H119: 64.2 | I119: 36777 | J119: 2333873.55 | K119: 2018-01-31 | L119: 253 | M119: INE193B01039
A120: BAFNAPHARM | B120: EQ | C120: 24.35 | D120: 24.75 | E120: 24 | F120: 24.7 | G120: 24.6 | H120: 24.6 | I120: 4889 | J120: 119814 | K120: 2018-01-31 | L120: 45 | M120: INE878I01014
A121: BAJAJ-AUTO | B121: EQ | C121: 3348 | D121: 3385.8 | E121: 3256.15 | F121: 3337.15 | G121: 3330.35 | H121: 3358.3 | I121: 275934 | J121: 924013582.8 | K121: 2018-01-31 | L121: 30383 | M121: INE917I01010
A122: BAJAJCORP | B122: EQ | C122: 503 | D122: 505.05 | E122: 488 | F122: 492.1 | G122: 488.25 | H122: 505 | I122: 24013 | J122: 11891737.85 | K122: 2018-01-31 | L122: 1525 | M122: INE933K01021
A123: BAJAJELEC | B123: EQ | C123: 494 | D123: 512 | E123: 482 | F123: 488.1 | G123: 487.05 | H123: 495.2 | I123: 211283 | J123: 105167702.8 | K123: 2018-01-31 | L123: 5645 | M123: INE193E01025
A124: BAJAJFINSV | B124: EQ | C124: 4861 | D124: 4863.45 | E124: 4736.45 | F124: 4812.35 | G124: 4791 | H124: 4875.65 | I124: 220161 | J124: 1056380074 | K124: 2018-01-31 | L124: 20982 | M124: INE918I01018
A125: BAJAJHIND | B125: EQ | C125: 14.25 | D125: 14.5 | E125: 14.1 | F125: 14.15 | G125: 14.2 | H125: 14 | I125: 4833991 | J125: 69164374.35 | K125: 2018-01-31 | L125: 5631 | M125: INE306A01021
A126: BAJAJHLDNG | B126: EQ | C126: 2782.65 | D126: 2815 | E126: 2767.2 | F126: 2808.45 | G126: 2808.2 | H126: 2800.65 | I126: 33221 | J126: 93026437.25 | K126: 2018-01-31 | L126: 1434 | M126: INE118A01012
A127: BAJFINANCE | B127: EQ | C127: 1657.45 | D127: 1690 | E127: 1645 | F127: 1677.85 | G127: 1677 | H127: 1678.4 | I127: 1332225 | J127: 2217057499 | K127: 2018-01-31 | L127: 58047 | M127: INE296A01024
A128: BALAJITELE | B128: EQ | C128: 151.5 | D128: 154.4 | E128: 150 | F128: 150.15 | G128: 150.55 | H128: 152.6 | I128: 81872 | J128: 12411753.1 | K128: 2018-01-31 | L128: 2539 | M128: INE794B01026
A129: BALAMINES | B129: EQ | C129: 674 | D129: 684.45 | E129: 651.2 | F129: 656.65 | G129: 657 | H129: 681.85 | I129: 57021 | J129: 38057881.4 | K129: 2018-01-31 | L129: 2278 | M129: INE050E01027
A130: BALKRISIND | B130: EQ | C130: 1168.9 | D130: 1184.5 | E130: 1120 | F130: 1141.85 | G130: 1140.1 | H130: 1155.65 | I130: 805923 | J130: 933830946.2 | K130: 2018-01-31 | L130: 32313 | M130: INE787D01026
A131: BALLARPUR | B131: EQ | C131: 15 | D131: 16.3 | E131: 14.9 | F131: 15.7 | G131: 15.75 | H131: 14.85 | I131: 3117392 | J131: 49022381.65 | K131: 2018-01-31 | L131: 3819 | M131: INE294A01037
A132: BALMLAWRIE | B132: EQ | C132: 244.6 | D132: 247.8 | E132: 239.1 | F132: 239.85 | G132: 239.5 | H132: 246.7 | I132: 139979 | J132: 33833656.95 | K132: 2018-01-31 | L132: 2514 | M132: INE164A01016
A133: BALPHARMA | B133: EQ | C133: 98.7 | D133: 106 | E133: 98 | F133: 101.1 | G133: 101.05 | H133: 98.45 | I133: 74458 | J133: 7601151.1 | K133: 2018-01-31 | L133: 1346 | M133: INE083D01012
A134: BALRAMCHIN | B134: EQ | C134: 120 | D134: 125.2 | E134: 119.95 | F134: 122.15 | G134: 122.05 | H134: 119 | I134: 4209664 | J134: 517160707.1 | K134: 2018-01-31 | L134: 30987 | M134: INE119A01028
A135: BANARISUG | B135: EQ | C135: 1800 | D135: 1918.95 | E135: 1800 | F135: 1829.15 | G135: 1840 | H135: 1832.25 | I135: 844 | J135: 1561861.3 | K135: 2018-01-31 | L135: 126 | M135: INE459A01010
A136: BANCOINDIA | B136: EQ | C136: 238.15 | D136: 242.6 | E136: 228.9 | F136: 232.95 | G136: 231.5 | H136: 240.15 | I136: 102756 | J136: 24027085.55 | K136: 2018-01-31 | L136: 2041 | M136: INE213C01025
A137: BANG | B137: EQ | C137: 35 | D137: 36.5 | E137: 34.3 | F137: 36.1 | G137: 36.1 | H137: 35.45 | I137: 5678 | J137: 200399.2 | K137: 2018-01-31 | L137: 57 | M137: INE863I01016
A138: BANKBARODA | B138: EQ | C138: 159.2 | D138: 161.8 | E138: 155.5 | F138: 156.8 | G138: 156.35 | H138: 160.2 | I138: 13420760 | J138: 2117524348 | K138: 2018-01-31 | L138: 90998 | M138: INE028A01039
A139: BANKBEES | B139: EQ | C139: 2766.35 | D139: 2781.5 | E139: 2750.5 | F139: 2771.53 | G139: 2775 | H139: 2765.23 | I139: 8520 | J139: 23504182.16 | K139: 2018-01-31 | L139: 424 | M139: INF732E01078
A140: BANKINDIA | B140: EQ | C140: 161.95 | D140: 162.7 | E140: 155.5 | F140: 157.2 | G140: 156.75 | H140: 161.7 | I140: 4510152 | J140: 716517225.2 | K140: 2018-01-31 | L140: 33035 | M140: INE084A01016
A141: BANSWRAS | B141: EQ | C141: 127.6 | D141: 129.8 | E141: 124.2 | F141: 125.3 | G141: 125 | H141: 128.35 | I141: 4156 | J141: 525058.7 | K141: 2018-01-31 | L141: 106 | M141: INE629D01012
A142: BASF | B142: EQ | C142: 2120 | D142: 2155.95 | E142: 2116 | F142: 2128.35 | G142: 2117 | H142: 2136.3 | I142: 10798 | J142: 23022802.05 | K142: 2018-01-31 | L142: 1311 | M142: INE373A01013
A143: BASML | B143: EQ | C143: 307.25 | D143: 318.25 | E143: 305 | F143: 305.65 | G143: 305 | H143: 309.15 | I143: 5195 | J143: 1621180.55 | K143: 2018-01-31 | L143: 163 | M143: INE186H01014
A144: BATAINDIA | B144: EQ | C144: 710.1 | D144: 717.2 | E144: 700.1 | F144: 705.95 | G144: 705 | H144: 712.55 | I144: 291368 | J144: 206483553.1 | K144: 2018-01-31 | L144: 6763 | M144: INE176A01028
A145: BAYERCROP | B145: EQ | C145: 4549.95 | D145: 4599.95 | E145: 4508.05 | F145: 4551.25 | G145: 4553 | H145: 4585.05 | I145: 7801 | J145: 35482821.65 | K145: 2018-01-31 | L145: 1720 | M145: INE462A01022
A146: BBL | B146: EQ | C146: 1362 | D146: 1382.45 | E146: 1322.55 | F146: 1355.75 | G146: 1365 | H146: 1361.05 | I146: 20066 | J146: 27179367.75 | K146: 2018-01-31 | L146: 1728 | M146: INE464A01028
A147: BBTC | B147: EQ | C147: 1413 | D147: 1423.5 | E147: 1381.15 | F147: 1399.95 | G147: 1394 | H147: 1423.05 | I147: 121189 | J147: 169702427.9 | K147: 2018-01-31 | L147: 5218 | M147: INE050A01025
A148: BEARDSELL | B148: EQ | C148: 64 | D148: 65.95 | E148: 58 | F148: 60.2 | G148: 60.8 | H148: 64.4 | I148: 14896 | J148: 903031.7 | K148: 2018-01-31 | L148: 349 | M148: INE520H01022
A149: BEDMUTHA | B149: EQ | C149: 24.2 | D149: 24.9 | E149: 23.65 | F149: 24 | G149: 23.95 | H149: 23.95 | I149: 70511 | J149: 1699134.1 | K149: 2018-01-31 | L149: 208 | M149: INE844K01012
A150: BEL | B150: EQ | C150: 171.25 | D150: 172 | E150: 167.5 | F150: 169.35 | G150: 169.05 | H150: 177 | I150: 14411761 | J150: 2451240241 | K150: 2018-01-31 | L150: 105630 | M150: INE263A01024
A151: BEML | B151: EQ | C151: 1474.9 | D151: 1489.65 | E151: 1448.4 | F151: 1454.6 | G151: 1451 | H151: 1478.25 | I151: 239302 | J151: 350738731.1 | K151: 2018-01-31 | L151: 8508 | M151: INE258A01016
A152: BEPL | B152: EQ | C152: 168 | D152: 177 | E152: 164.35 | F152: 169.45 | G152: 169.3 | H152: 169.95 | I152: 1065298 | J152: 181481861.3 | K152: 2018-01-31 | L152: 12308 | M152: INE922A01025
A153: BERGEPAINT | B153: EQ | C153: 251 | D153: 253.05 | E153: 245 | F153: 250.35 | G153: 250 | H153: 252.1 | I153: 478844 | J153: 119049560.2 | K153: 2018-01-31 | L153: 8329 | M153: INE463A01038
A154: BFINVEST | B154: EQ | C154: 309 | D154: 316 | E154: 306 | F154: 307.85 | G154: 306.7 | H154: 310.25 | I154: 90689 | J154: 28292690.3 | K154: 2018-01-31 | L154: 2182 | M154: INE878K01010
A155: BFUTILITIE | B155: EQ | C155: 479.7 | D155: 496.8 | E155: 475.1 | F155: 483.85 | G155: 483.05 | H155: 481.55 | I155: 376759 | J155: 183307868.7 | K155: 2018-01-31 | L155: 9118 | M155: INE243D01012
A156: BGRENERGY | B156: EQ | C156: 132 | D156: 134.6 | E156: 131.5 | F156: 132.8 | G156: 132.6 | H156: 133.25 | I156: 61445 | J156: 8161939.55 | K156: 2018-01-31 | L156: 1111 | M156: INE661I01014
A157: BHAGERIA | B157: EQ | C157: 315.05 | D157: 327.5 | E157: 310 | F157: 316.9 | G157: 319 | H157: 316.35 | I157: 96693 | J157: 30875345.85 | K157: 2018-01-31 | L157: 3920 | M157: INE354C01027
A158: BHAGYANGR | B158: EQ | C158: 41.15 | D158: 42.7 | E158: 38.7 | F158: 41.65 | G158: 42 | H158: 42.05 | I158: 25027 | J158: 1028877.4 | K158: 2018-01-31 | L158: 490 | M158: INE458B01036
A159: BHAGYAPROP | B159: EQ | C159: 22.2 | D159: 23.1 | E159: 21.95 | F159: 22 | G159: 22 | H159: 22.45 | I159: 13002 | J159: 289691.75 | K159: 2018-01-31 | L159: 29 | M159: INE363W01018
A160: BHARATFIN | B160: EQ | C160: 1024 | D160: 1058.6 | E160: 1014 | F160: 1051.65 | G160: 1047 | H160: 1024.65 | I160: 1458271 | J160: 1518424850 | K160: 2018-01-31 | L160: 35412 | M160: INE180K01011
A161: BHARATFORG | B161: EQ | C161: 724.9 | D161: 724.9 | E161: 710.35 | F161: 717.1 | G161: 720.45 | H161: 721.1 | I161: 869666 | J161: 622125233 | K161: 2018-01-31 | L161: 39945 | M161: INE465A01025
A162: BHARATGEAR | B162: EQ | C162: 203 | D162: 203 | E162: 194.05 | F162: 197.1 | G162: 198 | H162: 203.2 | I162: 37810 | J162: 7509460.45 | K162: 2018-01-31 | L162: 1553 | M162: INE561C01019
A163: BHARATIWIN | B163: EQ | C163: 38.85 | D163: 38.85 | E163: 38.03 | F163: 38.35 | G163: 38.4 | H163: 38.58 | I163: 2224939 | J163: 85436328.03 | K163: 2018-01-31 | L163: 1774 | M163: INF109KB15Y7
A164: BHARATRAS | B164: EQ | C164: 4056.45 | D164: 4142 | E164: 3952 | F164: 4008.05 | G164: 3977.25 | H164: 4056.45 | I164: 1625 | J164: 6564686.35 | K164: 2018-01-31 | L164: 346 | M164: INE838B01013
A165: BHARATWIRE | B165: EQ | C165: 127.25 | D165: 129.8 | E165: 123.2 | F165: 125.25 | G165: 124.5 | H165: 129.75 | I165: 147061 | J165: 18576020.1 | K165: 2018-01-31 | L165: 1366 | M165: INE316L01019
A166: BHARTIARTL | B166: EQ | C166: 442.5 | D166: 446 | E166: 436.4 | F166: 439.85 | G166: 439.55 | H166: 440.6 | I166: 6371320 | J166: 2814264850 | K166: 2018-01-31 | L166: 64473 | M166: INE397D01024
A167: BHEL | B167: EQ | C167: 101.35 | D167: 103.6 | E167: 99.1 | F167: 100.2 | G167: 99.85 | H167: 101.6 | I167: 12559349 | J167: 1273676299 | K167: 2018-01-31 | L167: 39543 | M167: INE257A01026
A168: BHUSANSTL | B168: EQ | C168: 49 | D168: 53.6 | E168: 47.8 | F168: 51.15 | G168: 51.15 | H168: 49.9 | I168: 6514554 | J168: 336611720.6 | K168: 2018-01-31 | L168: 26707 | M168: INE824B01021
A169: BIGBLOC | B169: EQ | C169: 134 | D169: 138.1 | E169: 133 | F169: 135.4 | G169: 135 | H169: 133.3 | I169: 61942 | J169: 8286193.05 | K169: 2018-01-31 | L169: 779 | M169: INE412U01017
A170: BIL | B170: EQ | C170: 490 | D170: 491 | E170: 480 | F170: 480.4 | G170: 481 | H170: 484.55 | I170: 2748 | J170: 1322208.8 | K170: 2018-01-31 | L170: 170 | M170: INE828A01016
A171: BILPOWER | B171: EQ | C171: 1.8 | D171: 1.85 | E171: 1.8 | F171: 1.85 | G171: 1.85 | H171: 1.8 | I171: 1191 | J171: 2193.8 | K171: 2018-01-31 | L171: 5 | M171: INE952D01018
A172: BINDALAGRO | B172: EQ | C172: 34.35 | D172: 34.35 | E172: 32.5 | F172: 33.05 | G172: 33.2 | H172: 33.6 | I172: 141424 | J172: 4697450.7 | K172: 2018-01-31 | L172: 626 | M172: INE143A01010
A173: BIOCON | B173: EQ | C173: 631 | D173: 631 | E173: 609.05 | F173: 614.9 | G173: 614.95 | H173: 629.95 | I173: 2622093 | J173: 1623335427 | K173: 2018-01-31 | L173: 43759 | M173: INE376G01013
A174: BIRLACORPN | B174: EQ | C174: 1139.65 | D174: 1175 | E174: 1073.35 | F174: 1127.8 | G174: 1149.9 | H174: 1141.95 | I174: 84086 | J174: 94496681.75 | K174: 2018-01-31 | L174: 3490 | M174: INE340A01012
A175: BIRLAMONEY | B175: EQ | C175: 80.95 | D175: 81 | E175: 79.2 | F175: 79.7 | G175: 79.8 | H175: 80.95 | I175: 107734 | J175: 8618868.4 | K175: 2018-01-31 | L175: 1315 | M175: INE865C01022
A176: BKMINDST | B176: EQ | C176: 41 | D176: 42 | E176: 40.55 | F176: 41.75 | G176: 41.95 | H176: 40 | I176: 95421 | J176: 3987574.7 | K176: 2018-01-31 | L176: 270 | M176: INE831Q01016
A177: BLISSGVS | B177: EQ | C177: 209.55 | D177: 209.55 | E177: 204.3 | F177: 205.7 | G177: 204.5 | H177: 207.6 | I177: 534132 | J177: 110530140.2 | K177: 2018-01-31 | L177: 5024 | M177: INE416D01022
A178: BLKASHYAP | B178: EQ | C178: 55 | D178: 56.4 | E178: 54.2 | F178: 55.45 | G178: 55.75 | H178: 55.2 | I178: 220957 | J178: 12252812.9 | K178: 2018-01-31 | L178: 1250 | M178: INE350H01032
A179: BLS | B179: EQ | C179: 212 | D179: 213.8 | E179: 197.15 | F179: 198.85 | G179: 199.5 | H179: 210.65 | I179: 927141 | J179: 187887852.7 | K179: 2018-01-31 | L179: 9579 | M179: INE153T01027
A180: BLUEBLENDS | B180: EQ | C180: 32.05 | D180: 33.7 | E180: 31.65 | F180: 31.9 | G180: 32.05 | H180: 32.25 | I180: 13462 | J180: 435140.4 | K180: 2018-01-31 | L180: 119 | M180: INE113O01014
A181: BLUEDART | B181: EQ | C181: 4699 | D181: 4747 | E181: 4598 | F181: 4681.85 | G181: 4665 | H181: 4631.9 | I181: 15058 | J181: 70207752.85 | K181: 2018-01-31 | L181: 1950 | M181: INE233B01017
A182: BLUESTARCO | B182: EQ | C182: 744 | D182: 766.6 | E182: 731.3 | F182: 751.2 | G182: 752.65 | H182: 744.3 | I182: 21351 | J182: 15943289.3 | K182: 2018-01-31 | L182: 1424 | M182: INE472A01039
A183: BODALCHEM | B183: EQ | C183: 158 | D183: 160.25 | E183: 158 | F183: 159.1 | G183: 159.6 | H183: 158.95 | I183: 187480 | J183: 29812362.05 | K183: 2018-01-31 | L183: 3999 | M183: INE338D01028
A184: BOMDYEING | B184: EQ | C184: 228.6 | D184: 237.7 | E184: 224 | F184: 228.15 | G184: 229 | H184: 231.25 | I184: 1979490 | J184: 455095404.6 | K184: 2018-01-31 | L184: 19880 | M184: INE032A01023
A185: BOSCHLTD | B185: EQ | C185: 19495 | D185: 19664.95 | E185: 19291.1 | F185: 19400.25 | G185: 19360 | H185: 19495.55 | I185: 34590 | J185: 675247047.6 | K185: 2018-01-31 | L185: 6009 | M185: INE323A01026
A186: BPCL | B186: EQ | C186: 486 | D186: 493.6 | E186: 483.35 | F186: 492.3 | G186: 490.1 | H186: 485.6 | I186: 6111327 | J186: 2991442597 | K186: 2018-01-31 | L186: 169004 | M186: INE029A01011
A187: BPL | B187: EQ | C187: 101.1 | D187: 105.7 | E187: 100.55 | F187: 101.9 | G187: 101.6 | H187: 101.7 | I187: 615826 | J187: 63233415.4 | K187: 2018-01-31 | L187: 6551 | M187: INE110A01019
A188: BRFL | B188: EQ | C188: 71.8 | D188: 74.6 | E188: 71.1 | F188: 71.1 | G188: 71.1 | H188: 74.8 | I188: 266378 | J188: 19052480.8 | K188: 2018-01-31 | L188: 2664 | M188: INE589G01011
A189: BRIGADE | B189: EQ | C189: 279 | D189: 292.8 | E189: 275 | F189: 285.4 | G189: 284.9 | H189: 280.05 | I189: 67628 | J189: 19303047.7 | K189: 2018-01-31 | L189: 1980 | M189: INE791I01019
A190: BRITANNIA | B190: EQ | C190: 4690 | D190: 4712.4 | E190: 4647.2 | F190: 4684.15 | G190: 4666.65 | H190: 4705.6 | I190: 71887 | J190: 335935234.2 | K190: 2018-01-31 | L190: 7837 | M190: INE216A01022
A191: BRNL | B191: EQ | C191: 182.8 | D191: 185 | E191: 181.9 | F191: 182.7 | G191: 181.9 | H191: 183.1 | I191: 4834 | J191: 883067.1 | K191: 2018-01-31 | L191: 231 | M191: INE727S01012
A192: BROOKS | B192: EQ | C192: 104.8 | D192: 105.65 | E192: 103 | F192: 103.6 | G192: 103.65 | H192: 104.85 | I192: 37653 | J192: 3928555.2 | K192: 2018-01-31 | L192: 909 | M192: INE650L01011
A193: BSE | B193: EQ | C193: 896 | D193: 902.6 | E193: 886.5 | F193: 892.5 | G193: 892.5 | H193: 898.2 | I193: 138795 | J193: 123979073.7 | K193: 2018-01-31 | L193: 6041 | M193: INE118H01025
A194: BSL | B194: EQ | C194: 93 | D194: 96.35 | E194: 90.15 | F194: 93.5 | G194: 93.1 | H194: 93.65 | I194: 24236 | J194: 2245738.85 | K194: 2018-01-31 | L194: 515 | M194: INE594B01012
A195: BSLGOLDETF | B195: EQ | C195: 2799 | D195: 2799 | E195: 2746.1 | F195: 2750.8 | G195: 2746.1 | H195: 2769.15 | I195: 29 | J195: 80038.1 | K195: 2018-01-31 | L195: 17 | M195: INF209K01HT2
A196: BSLIMITED | B196: EQ | C196: 1.35 | D196: 1.4 | E196: 1.35 | F196: 1.4 | G196: 1.4 | H196: 1.4 | I196: 760628 | J196: 1036158.35 | K196: 2018-01-31 | L196: 386 | M196: INE043K01029
A197: BSLNIFTY | B197: EQ | C197: 109.7 | D197: 109.75 | E197: 109.5 | F197: 109.5 | G197: 109.5 | H197: 109.67 | I197: 968 | J197: 106199.8 | K197: 2018-01-31 | L197: 17 | M197: INF209K01IR4
A198: BYKE | B198: EQ | C198: 189 | D198: 193 | E198: 183.6 | F198: 187.1 | G198: 187 | H198: 187.1 | I198: 57733 | J198: 10822903.3 | K198: 2018-01-31 | L198: 939 | M198: INE319B01014
A199: CADILAHC | B199: EQ | C199: 425.35 | D199: 430.4 | E199: 420.3 | F199: 425.8 | G199: 425.55 | H199: 425.3 | I199: 1240632 | J199: 528911052 | K199: 2018-01-31 | L199: 17999 | M199: INE010B01027
A200: CAMLINFINE | B200: EQ | C200: 126.6 | D200: 128.5 | E200: 120.85 | F200: 124.95 | G200: 125.9 | H200: 127 | I200: 718250 | J200: 90275171.85 | K200: 2018-01-31 | L200: 8613 | M200: INE052I01032
... 1184 more rows

Sheet Sheet1 (hidden)

Sheet Sheet3 (hidden)

Sheet Sheet4 (hidden)

Sheet Sheet5 (hidden)

Sheet Call Tracker (Currency)
A1: Master Trade High Risk
A2: Sr.no | B2: Date | C2: Company | D2: Rec | E2: Rec Price | F2: Stop Loss | G2: Call Closed At | H2: Target | I2: Remark | K2: Profit / Loss per share | L2: Gain / Loss per Lot | M2: Lot | N2: Status | O2: Closed Date
A3: 1 | B3: 2017-05-08 | C3: USDINR MAY FUT | D3: Buy | E3: 64.3935 | F3: 64.29 | G3: 64.66 | H3: 64.59 | I3: Profit of Rs.0.27/- | K3: 0.27 | L3: 266.5 | M3: 1000 | N3: Successful | O3: 2017-05-09 | R3: P
A4: 2 | B4: 2017-05-08 | C4: USDINR JUN FUT | D4: Buy | E4: 64.6535 | F4: 64.45 | G4: 64.965 | H4: 65.05 | I4: Profit of Rs 0.31/- | K4: 0.31 | L4: 311.5 | M4: 1000 | N4: Successful | O4: 2017-05-09 | R4: P
A5: 3 | B5: 2017-05-09 | C5: EUROINR MAY FUT | D5: Sell | E5: 70.65 | F5: 70.8 | G5: 70.07 | H5: 70.4 | I5: Profit of Rs 0.58/- | K5: 0.58 | L5: 580 | M5: 1000 | N5: Successful | O5: 2017-05-12 | R5: P
A6: 4 | B6: 2017-05-09 | C6: GBPINR MAY FUT | D6: Buy | E6: 83.774 | F6: 83.37 | G6: 83.37 | H6: 84.77 | I6: Loss of Rs 0.40/- | K6: -0.40 | L6: -404 | M6: 1000 | N6: Unsuccessful | O6: 2017-05-11 | R6: P
A7: 5 | B7: 2017-05-11 | C7: USDINR MAY FUT | D7: Buy | E7: 64.6555 | F7: 64.55 | G7: 64.55 | H7: 64.86 | I7: Loss of Rs.0.1055/- | K7: -0.1055 | L7: =K7*M7 -> -105.50 | M7: 1000 | N7: Unsuccessful | O7: 2017-05-11 | R7: P
A8: 6 | B8: 2017-05-15 | C8: USDINR MAY FUT | D8: Buy | E8: 64.2275 | F8: 64.08 | G8: 64.46 | H8: 64.48 | I8: Profit of Rs 0.23/- | K8: 0.23 | L8: 232.5 | M8: 1000 | N8: Successful | O8: 2017-05-18 | R8: P
A9: 7 | B9: 2017-05-19 | C9: USDINR MAY FUT | D9: Sell | E9: 64.83 | F9: 65 | G9: 65 | H9: 64.5 | I9: Loss of Rs.0.17/- | K9: -0.17 | L9: -170 | M9: 1000 | N9: Unsuccessful | O9: 2017-05-19 | R9: P
A10: 8 | B10: 2017-05-23 | C10: USDINR MAY FUT | D10: Buy | E10: 64.83 | F10: 64.62 | G10: 64.95 | H10: 65.2 | I10: Profit of Rs 0.12/- | K10: 0.12 | L10: 120 | M10: 1000 | N10: Successful | O10: 2017-05-24 | R10: P
A11: 9 | B11: 2017-05-25 | C11: USDINR MAY FUT | D11: Buy | E11: 64.57 | F11: 64.25 | G11: 64.56 | H11: 65 | I11: Loss of Rs.0.01/- | K11: -0.01 | L11: -10 | M11: 1000 | N11: Neutral | O11: 2017-05-29 | R11: P
A12: 10 | B12: 2017-05-30 | C12: USDINR JUN FUT | D12: Buy | E12: 64.9125 | F12: 64.71 | G12: 64.71 | H12: 65.31 | I12: Loss of Rs.0.20/- | K12: -0.20 | L12: -202.5 | M12: 1000 | N12: Unsuccessful | O12: 2017-05-31 | R12: P
A13: 11 | B13: 2017-06-01 | C13: USDINR JUN FUT | D13: Buy | E13: 64.655 | F13: 64.45 | G13: 64.45 | H13: 65.05 | I13: Loss of Rs.0.20/- | K13: =G13-E13 -> -0.20 | L13: =K13*M13 -> -205 | M13: 1000.00 | N13: Unsuccessful | O13: 2017-06-08 | R13: P
A14: 12 | B14: 2017-06-12 | C14: USDINR JUN FUT | D14: Buy | E14: 64.45 | F14: 64 | G14: 64.7625 | H14: 65.2 | I14: Profit of Rs 0.31/- | K14: 0.31 | L14: 312.5 | M14: 1000 | N14: Successful | O14: 2017-06-16
A15: 13 | B15: 2017-06-16 | C15: USDINR JUN FUT | D15: Buy | E15: 64.51 | F15: 64.2 | G15: 64.7 | H15: 65.11 | I15: Profit of Rs 0.19/- | K15: 0.19 | L15: 190 | M15: 1000 | N15: Successful | O15: 2017-06-21
A16: 14 | B16: 2017-06-22 | C16: USDINR JUN FUT | D16: Buy | E16: 64.56 | F16: 64.2 | G16: 64.2 | H16: 65.1 | I16: Loss of Rs.0.36/- | K16: -0.36 | L16: -360 | M16: 1000.00 | N16: Unsuccessful | O16: 2017-06-30
A17: 15 | B17: 2017-07-10 | C17: USDINR JUL FUT | D17: Buy | E17: 64.67 | F17: 64.4 | G17: 64.4 | H17: 65.15 | I17: Loss of Rs.0.27/- | K17: -0.27 | L17: -270 | M17: 1000.00 | N17: Unsuccessful | O17: 2017-07-31
A18: 16 | B18: 2017-08-02 | C18: USDINR AUG FUT | D18: Buy | E18: 64.235 | F18: 63.98 | G18: 63.98 | H18: 64.75 | I18: Loss of Rs.0.26/- | K18: -0.26 | L18: -255 | M18: 1000.00 | N18: Unsuccessful | O18: 2017-08-02
A19: 17 | B19: 2017-08-08 | C19: USDINR AUG FUT | D19: Buy | E19: 63.9425 | F19: 63.6 | G19: 64.15 | H19: 64.5 | I19: Profit of Rs 0.21/- | K19: 0.21 | L19: 207.5 | M19: 1000 | N19: Successful | O19: 2017-08-10
A20: 18 | B20: 2017-08-22 | C20: USDINR AUG FUT | D20: Buy | E20: 64.1175 | F20: 63.9 | G20: 64.01 | H20: 64.5 | I20: Loss of Rs.0.11/- | K20: =G20-E20 -> -0.11 | L20: =K20*M20 -> -107.5 | M20: 1000.00 | N20: Unsuccessful | O20: 2017-08-29
A21: 19 | B21: 2017-09-01 | C21: USDINR SEP FUT | D21: Buy | E21: 64.1 | F21: 63.8 | G21: 64.205 | H21: 64.7 | I21: Profit of Rs 0.11/- | K21: 0.11 | L21: 105 | M21: 1000 | N21: Successful | O21: 2017-09-01
A22: 20 | B22: 2017-09-04 | C22: USDINR SEP FUT | D22: Buy | E22: 64.095 | F22: 63.8 | G22: 64.195 | H22: 64.7 | I22: Profit of Rs 0.10/- | K22: 0.10 | L22: =K22*M22 -> 100 | M22: 1000 | N22: Successful | O22: 2017-09-04
A23: 21 | B23: 2017-09-05 | C23: USDINR SEP FUT | D23: Buy | E23: 64.25 | F23: 64 | G23: 64.355 | H23: 64.75 | I23: Profit of Rs 0.11/- | K23: =G23-E23 -> 0.11 | L23: =K23*M23 -> 105 | M23: 1000 | N23: Successful | O23: 2017-09-06
A24: 22 | B24: 2017-09-06 | C24: USDINR SEP FUT | D24: Sell | E24: 64.365 | F24: 64.5 | G24: 64.265 | H24: 64 | I24: Profit of Rs 0.10/- | K24: =E24-G24 -> 0.10 | L24: 100 | M24: 1000 | N24: Successful | O24: 2017-09-06
A25: 23 | B25: 2017-09-07 | C25: USDINR SEP FUT | D25: Buy | E25: 64.145 | F25: 63.9 | G25: 64.2565 | H25: 64.65 | I25: Profit of Rs 0.11/- | K25: =G25-E25 -> 0.11 | L25: =K25*M25 -> 111.5 | M25: 1000 | N25: Successful | O25: 2017-09-14
A26: 24 | B26: 2017-09-11 | C26: JPYINR SEP FUT | D26: Sell | E26: 59.0285 | F26: 59.25 | G26: 58.645 | H26: 58.5 | I26: Profit of Rs 0.38/- | K26: =E26-G26 -> 0.38 | L26: 383.5 | M26: 1000 | N26: Successful | O26: 2017-09-12
A27: 25 | B27: 2017-09-14 | C27: USDINR SEP FUT | D27: Buy | E27: 64.145 | F27: 63.95 | G27: 64.26 | H27: 64.5 | I27: Profit of Rs 0.12/- | K27: =G27-E27 -> 0.12 | L27: 115 | M27: 1000 | N27: Successful | O27: 2017-09-19
A28: 26 | B28: 2017-09-20 | C28: USDINR SEP FUT | D28: Buy | E28: 64.3515 | F28: 64.15 | G28: 64.57 | H28: 64.75 | I28: Profit of Rs 0.22/- | K28: =G28-E28 -> 0.22 | L28: =K28*M28 -> 218.5 | M28: 1000 | N28: Successful | O28: 2017-09-21
A29: 27 | B29: 2017-09-21 | C29: USDINR SEP FUT | D29: Sell | E29: 64.795 | F29: 65.05 | G29: 65.05 | H29: 64.4 | I29: Loss of Rs.0.17/- | K29: -0.17 | L29: -170 | M29: 1000.00 | N29: Unsuccessful | O29: 2017-09-22
A30: 28 | B30: 2017-09-25 | C30: USDINR SEP FUT | D30: Buy | E30: 64.77 | F30: 64.4 | G30: 64.92 | H30: 65.1 | I30: Profit of Rs 0.15/- | K30: =G30-E30 -> 0.15 | L30: =K30*M30 -> 150 | M30: 1000 | N30: Successful | O30: 2017-09-25
A31: 29 | B31: 2017-09-25 | C31: USDINR SEP FUT | D31: Sell | E31: 65.1077 | F31: 65.3 | G31: 65.3 | H31: 64.5 | I31: Loss of Rs.0.19/- | K31: -0.19 | L31: -190 | M31: 1000.00 | N31: Unsuccessful | O31: 2017-09-26
A32: 30 | B32: 2017-09-27 | C32: USDINR SEP FUT | D32: Sell | E32: 65.7225 | F32: 65.83 | G32: 65.7 | H32: 65.52 | I32: Profit of Rs 0.02/- | K32: =E32-G32 -> 0.02 | L32: =K32*M32 -> 22.5 | M32: 1000 | N32: Neutral | O32: 2017-09-27
A33: 31 | B33: 2017-09-27 | C33: USDINR OCT FUT | D33: Sell | E33: 66 | F33: 66.5 | G33: 65.895 | H33: 65 | I33: Profit of Rs 0.11/- | K33: =E33-G33 -> 0.11 | L33: 105 | M33: 1000 | N33: Successful | O33: 2017-09-27
A34: 32 | B34: 2017-09-28 | C34: USDINR OCT FUT | D34: Sell | E34: 66.075 | F34: 66.3 | G34: 65.96 | H34: 65.4 | I34: Profit of Rs 0.12/- | K34: =E34-G34 -> 0.12 | L34: =K34*M34 -> 115 | M34: 1000 | N34: Successful | O34: 2017-09-28
A35: 33 | B35: 2017-09-29 | C35: GBPINR OCT fut | D35: Buy | E35: 87.745 | F35: 87.5 | G35: 87.84 | H35: 88.25 | I35: Profit of Rs 0.09/- | K35: =G35-E35 -> 0.09 | L35: 95 | M35: 1000 | N35: Successful | O35: 2017-09-29
A36: 34 | B36: 2017-09-29 | C36: USDINR OCT FUT | D36: Buy | E36: 65.514 | F36: 65.25 | G36: 65.85 | H36: 66 | I36: Profit of Rs 0.34/- | K36: 0.34 | L36: =K36*M36 -> 336 | M36: 1000 | N36: Successful | O36: 2017-10-03
A37: 35 | B37: 2017-10-09 | C37: USDINR OCT FUT | D37: Buy | E37: 65.48 | F37: 65.23 | G37: 65.5775 | H37: 65.95 | I37: Profit of Rs 0.10/- | K37: =G37-E37 -> 0.10 | L37: =K37*M37 -> 97.5 | M37: 1000 | N37: Successful | O37: 2017-10-09
A38: 36 | B38: 2017-10-10 | C38: USDINR OCT FUT | D38: Buy | E38: 65.41 | F38: 65.15 | G38: 65.5075 | H38: 66 | I38: Profit of Rs 0.10/- | K38: 0.10 | L38: 97.5 | M38: 1000 | N38: Successful | O38: 2017-10-10
A39: 37 | B39: 2017-10-11 | C39: USDINR OCT FUT | D39: Buy | E39: 65.38 | F39: 65.13 | G39: 65.13 | H39: 65.88 | I39: Loss of Rs.0.25/- | K39: -0.25 | L39: -250 | M39: 1000.00 | N39: Unsuccessful | O39: 2017-10-13
A40: 38 | B40: 2017-10-16 | C40: USDINR OCT FUT | D40: Buy | E40: 64.7925 | F40: 64.54 | G40: 64.905 | H40: 65.3 | I40: Profit of Rs 0.11/- | K40: =G40-E40 -> 0.11 | L40: =K40*M40 -> 112.5 | M40: 1000 | N40: Successful | O40: 2017-10-17
A41: 39 | B41: 2017-10-23 | C41: USDINR OCT FUT | D41: Buy | E41: 65.115 | F41: 64.85 | G41: 65.21 | H41: 65.5 | I41: Profit of Rs 0.09/- | K41: =G41-E41 -> 0.09 | L41: =K41*M41 -> 95 | M41: 1000 | N41: Successful | O41: 2017-10-25
A42: 40 | B42: 2017-10-23 | C42: JPYINR OCT FUT | D42: Buy | E42: 57.285 | F42: 57.03 | G42: 57.38 | H42: 58.4 | I42: Profit of Rs 0.10/- | K42: =G42-E42 -> 0.10 | L42: =K42*M42 -> 95 | M42: 1000 | N42: Successful | O42: 2017-10-23
A43: 41 | B43: 2017-10-26 | C43: USDINR OCT FUT | D43: Buy | E43: 64.755 | F43: 64.5 | G43: 64.87 | H43: 65.25 | I43: Profit of Rs 0.12/- | K43: 0.12 | L43: 115 | M43: 1000 | N43: Successful | O43: 2017-10-25
A44: 42 | B44: 2017-10-30 | C44: USDINR NOV FUT | D44: Buy | E44: 65.035 | F44: 64.79 | G44: 64.79 | H44: 65.5 | I44: Loss of Rs.0.24/- | K44: -0.24 | L44: -245 | M44: 1000.00 | N44: Unsuccessful | O44: 2017-11-01
A45: 43 | B45: 2017-11-01 | C45: JPYINR NOV FUT | D45: Buy | E45: 56.9875 | F45: 56.73 | G45: 57.0959 | H45: 57.5 | I45: Profit of Rs 0.11/- | K45: =G45-E45 -> 0.11 | L45: =K45*M45 -> 108.4 | M45: 1000 | N45: Successful | O45: 2017-11-07
A46: 44 | B46: 2017-11-02 | C46: USDINR NOV FUT | D46: Buy | E46: 64.7838 | F46: 64.5 | G46: 64.89 | H46: 65.25 | I46: Profit of Rs 0.11/- | K46: =G46-E46 -> 0.11 | L46: =K46*M46 -> 106.2 | M46: 1000 | N46: Successful | O46: 2017-11-06
A47: 45 | B47: 2017-11-08 | C47: USDINR NOV FUT | D47: Buy | E47: 65.1363 | F47: 64.8375 | G47: 65.235 | H47: 65.73 | I47: Profit of Rs 0.10/- | K47: =G47-E47 -> 0.10 | L47: =K47*M47 -> 98.7 | M47: 1000 | N47: Successful | O47: 2017-11-10
A48: 46 | B48: 2017-11-08 | C48: GBPINR NOV FUT | D48: Buy | E48: 85.4983 | F48: 85.25 | G48: 85.6 | H48: 86 | I48: Profit of Rs 0.10/- | K48: =G48-E48 -> 0.10 | L48: =K48*M48 -> 101.7 | M48: 1000 | N48: Successful | O48: 2017-11-09
A49: 47 | B49: 2017-11-16 | C49: EURINR NOV FUT | D49: Buy | E49: 76.8975 | F49: 76.3975 | G49: 76.3975 | H49: 77.8975 | I49: Loss of Rs.0.50/- | K49: =G49-E49 -> -0.50 | L49: -500 | M49: 1000.00 | N49: Unsuccessful | O49: 2017-11-01
A50: 48 | B50: 2017-11-16 | C50: JPYINR NOV FUT | D50: Buy | E50: 57.6625 | F50: 57.2675 | G50: 57.8075 | H50: 58.6675 | I50: Profit of Rs 0.14/- | K50: =G50-E50 -> 0.14 | L50: =K50*M50 -> 145 | M50: 1000 | N50: Successful | O50: 2017-11-17
A51: 49 | B51: 2017-11-22 | C51: EURINR NOV FUT | D51: Buy | E51: 76.175 | F51: 75.95 | G51: 76.335 | H51: 76.6 | I51: Profit of Rs 0.16/- | K51: 0.16 | L51: =K51*M51 -> 160 | M51: 1000 | N51: Successful | O51: 2017-11-22
A52: 50 | B52: 2017-11-22 | C52: USDINR NOV FUT | D52: Buy | E52: 64.87 | F52: 64.5 | G52: 64.5 | H52: 65.5 | I52: Loss of Rs.0.37/- | K52: -0.37 | L52: -370 | M52: 1000.00 | N52: Unsuccessful | O52: 2017-11-27
A53: 51 | B53: 2017-11-28 | C53: GBPINR DEC FUT | D53: Buy | E53: 86.17 | F53: 85.85 | G53: 86.46 | H53: 87 | I53: Profit of Rs 0.29/- | K53: 0.29 | L53: =K53*M53 -> 290 | M53: 1000 | N53: Successful | O53: 2017-11-29
A54: 52 | B54: 2017-11-28 | C54: JPYINR DEC FUT | D54: Buy | E54: 58.16 | F54: 57.85 | G54: 57.85 | H54: 58.6 | I54: Loss of Rs.0.31/- | K54: -0.31 | L54: -310 | M54: 1000.00 | N54: Unsuccessful | O54: 2017-11-29
A55: 53 | B55: 2017-11-28 | C55: USDINR DEC FUT | D55: Buy | E55: 64.63 | F55: 64.13 | G55: 64.13 | H55: 65.63 | I55: Loss of Rs.0.50/- | K55: -0.50 | L55: =K55*M55 -> -500 | M55: 1000.00 | N55: Unsuccessful | O55: 2017-12-15
A56: 54 | B56: 2017-11-28 | C56: EURINR DEC FUT | D56: Buy | E56: 76.93 | F56: 76.43 | G56: 76.43 | H56: 77.93 | I56: Loss of Rs.0.50/- | K56: =G56-E56 -> -0.50 | L56: =K56*M56 -> -500 | M56: 1000.00 | N56: Unsuccessful | O56: 2017-11-29
A57: 55 | B57: 2017-12-12 | C57: EURINR DEC FUT | D57: Buy | E57: 76.105 | F57: 75.7 | G57: 76.27 | H57: 76.8 | I57: Profit of Rs 0.16/- | K57: =G57-E57 -> 0.16 | L57: 165 | M57: 1000 | N57: Successful | O57: 2017-12-14
A58: 56 | B58: 2017-12-12 | C58: JPYINR DEC FUT | D58: Buy | E58: 56.975 | F58: 56.7 | G58: 57.21 | H58: 57.6 | I58: Profit of Rs 0.23/- | K58: =G58-E58 -> 0.23 | L58: =K58*M58 -> 235 | M58: 1000 | N58: Successful | O58: 2017-12-14
